{"text_format":"1","workbook":"xlsx","n_sheets":71,"sheets":["Sheet1","Contents","Notes and definitions","Table A1.1","Table A1.2","Table B1.1","Table B1.2","Table B1.3","Table B1.4","Table B1.5","Table B1.6","Table B1.7","Table B2.1","Table B2.2","Table B2.3","Table B2.4","Table B2.5","Table B2.6","Table B2.7","Table C1.1","Table C1.2","Table C1.3","Table C1.4","Table C1.5","Table C1.6","Table C1.7","Table C2.1","Table C2.2","Table C2.3","Table C2.4","Table C2.5","Table C2.6","Table C2.7","Table D1.1","Table D1.2","Table D1.3","Table D1.4","Table D1.5","Table D1.6","Table D1.7","Table E1.1","Table E1.2","Table E1.3","Table E1.4","Table E1.5","Table E1.6","Table E1.7","Table E2.1","Table E2.2","Table E2.3","Table E2.4","Table E2.5","Table E2.6","Table E2.7","Table F1.1","Table F1.2","Table F1.3","Table F1.4","Table F1.5","Table F1.6","Table F1.7","Figure G1","Figure G2","Figure G3","Figure G4","Figure G5","Figure G6","Figure G7","Figure G8","Annex H","Annex I"],"not_rendered":{"charts":0,"images":8,"macros":1,"external_links":3,"defined_names":92,"comments":0,"pivot_tables":0},"unopened":[],"bounds":{"document_bytes":16777216,"sheet_cells":100000,"rows_first":2000,"rows_last":500,"rows_between":2000,"halvings":0,"cell_chars":16384,"cell_head_chars":4096},"cells_cut":0,"cells_raw":0,"read":"whole","date_system":"1900"}

{"sheet":"Sheet1","index":0,"n_rows":73,"n_cols":3,"rows_kept":73,"cut":false,"hidden":true,"merged":[]}
["25 May 2017"]
["April 2017"]
[", 1 April 2017",","," Numbers"]
[null,null," and"]
[null,","," Percentages"]
["Table A1.1: UK Armed Forces and entitled civilian personnel DMS registrations, by registration location",{"$f":"A6&$A$3&$B$3&$C$3","v":"Table A1.1: UK Armed Forces and entitled civilian personnel DMS registrations, by registration location, 1 April 2017, Numbers"}]
["Table A1.2: UK Armed Forces and entitled civilian personnel DMS registrations,  registration location by Service",{"$f":"A7&$A$3&$B$3&$C$3","v":"Table A1.2: UK Armed Forces and entitled civilian personnel DMS registrations,  registration location by Service, 1 April 2017, Numbers"}]
["Table B1.1: UK Armed Forces personnel and entitled civilian personnel DMS registrations, registered to NHS Clinical Commissioning Groups by Service",{"$f":"A8&$A$3&$B$3&$C$3","v":"Table B1.1: UK Armed Forces personnel and entitled civilian personnel DMS registrations, registered to NHS Clinical Commissioning Groups by Service, 1 April 2017, Numbers"}]
["Table B2.1: UK Armed Forces personnel and entitled civilian personnel DMS registrations, registered to regions & Local Area Authorities by Service","Table B2.1: UK Armed Forces personnel and entitled civilian personnel DMS registrations, registered to regions & Local Area Authorities by Service, 1 April 2017, Numbers"]
["Table C1.1: UK Armed Forces personnel and entitled civilian personnel DMS registrations, registered to Local Health Boards by Service","Table C1.1: UK Armed Forces personnel and entitled civilian personnel DMS registrations, registered to Local Health Boards by Service, 1 April 2017, Numbers"]
["Table C2.1: UK Armed Forces personnel and entitled civilian personnel DMS registrations, registered to Local Area Authorities by Service","Table C2.1: UK Armed Forces personnel and entitled civilian personnel DMS registrations, registered to Local Area Authorities by Service, 1 April 2017, Numbers"]
["Table D1.1: UK Armed Forces personnel and entitled civilian personnel DMS registrations, registered to Health and Social Care Partnerships & Council Areas by Service","Table D1.1: UK Armed Forces personnel and entitled civilian personnel DMS registrations, registered to Health and Social Care Partnerships & Council Areas by Service, 1 April 2017, Numbers"]
["Table E1.1: UK Armed Forces personnel and entitled civilian personnel DMS registrations, registered to Local Commissioning Groups by Service","Table E1.1: UK Armed Forces personnel and entitled civilian personnel DMS registrations, registered to Local Commissioning Groups by Service, 1 April 2017, Numbers"]
["Table E2.1: UK Armed Forces personnel and entitled civilian personnel DMS registrations, registered to District Council Areas by Service","Table E2.1: UK Armed Forces personnel and entitled civilian personnel DMS registrations, registered to District Council Areas by Service, 1 April 2017, Numbers"]
["Table F1.1: UK Armed Forces personnel and entitled civilian personnel DMS registrations, registered to Defence Primary Healthcare regions by Service","Table F1.1: UK Armed Forces personnel and entitled civilian personnel DMS registrations, registered to Defence Primary Healthcare regions by Service, 1 April 2017, Numbers"]
["Table F1.2: UK Armed Forces personnel and entitled civilian personnel DMS registrations, registered to Defence Primary Healthcare regions by age band","Table F1.2: UK Armed Forces personnel and entitled civilian personnel DMS registrations, registered to Defence Primary Healthcare regions by age band, 1 April 2017, Numbers"]
["Table F1.3: UK Armed Forces personnel DMS registrations, registered to Defence Primary Healthcare regions by age band","Table F1.3: UK Armed Forces personnel DMS registrations, registered to Defence Primary Healthcare regions by age band, 1 April 2017, Numbers"]
["Table F1.4: Entitled civilian personnel DMS registrations, registered to Defence Primary Healthcare regions by age band","Table F1.4: Entitled civilian personnel DMS registrations, registered to Defence Primary Healthcare regions by age band, 1 April 2017, Numbers"]
["Table F1.5: UK Armed Forces personnel and entitled civilian personnel DMS registrations, registered to Defence Primary Healthcare regions by gender","Table F1.5: UK Armed Forces personnel and entitled civilian personnel DMS registrations, registered to Defence Primary Healthcare regions by gender, 1 April 2017, Numbers"]
["Table F1.6: UK Armed Forces males and entitled civilian males DMS registrations, registered to Defence Primary Healthcare regions by age band","Table F1.6: UK Armed Forces males and entitled civilian males DMS registrations, registered to Defence Primary Healthcare regions by age band, 1 April 2017, Numbers"]
["Table F1.7: UK Armed Forces females and entitled civilian females DMS registrations, registered to Defence Primary Healthcare regions by age band","Table F1.7: UK Armed Forces females and entitled civilian females DMS registrations, registered to Defence Primary Healthcare regions by age band, 1 April 2017, Numbers"]
["Table B1.2: UK Armed Forces personnel and entitled civilian personnel DMS registrations, registered to NHS Clinical Commissioning Groups by age band","Table B1.2: UK Armed Forces personnel and entitled civilian personnel DMS registrations, registered to NHS Clinical Commissioning Groups by age band, 1 April 2017, Numbers"]
["Table B1.3: UK Armed Forces personnel DMS registrations, registered to NHS Clinical Commissioning Groups by age band","Table B1.3: UK Armed Forces personnel DMS registrations, registered to NHS Clinical Commissioning Groups by age band, 1 April 2017, Numbers"]
["Table B1.4: Entitled civilian personnel DMS registrations, registered to NHS Clinical Commissioning Groups by age band","Table B1.4: Entitled civilian personnel DMS registrations, registered to NHS Clinical Commissioning Groups by age band, 1 April 2017, Numbers"]
["Table B1.5: UK Armed Forces personnel and entitled civilian personnel DMS registrations, registered to NHS Clinical Commissioning Groups by gender","Table B1.5: UK Armed Forces personnel and entitled civilian personnel DMS registrations, registered to NHS Clinical Commissioning Groups by gender, 1 April 2017, Numbers"]
["Table B1.6: UK Armed Forces males and entitled civilian males DMS registrations, registered to NHS Clinical Commissioning Groups by age band","Table B1.6: UK Armed Forces males and entitled civilian males DMS registrations, registered to NHS Clinical Commissioning Groups by age band, 1 April 2017, Numbers"]
["Table B1.7: UK Armed Forces females and entitled civilian females DMS registrations, registered to NHS Clinical Commissioning Groups by age band","Table B1.7: UK Armed Forces females and entitled civilian females DMS registrations, registered to NHS Clinical Commissioning Groups by age band, 1 April 2017, Numbers"]
["Table B2.2: UK Armed Forces personnel and entitled civilian personnel DMS registrations, registered to regions & Local Area Authorities by age band","Table B2.2: UK Armed Forces personnel and entitled civilian personnel DMS registrations, registered to regions & Local Area Authorities by age band, 1 April 2017, Numbers"]
["Table B2.3: UK Armed Forces personnel DMS registrations, registered to regions & Local Area Authorities by age band","Table B2.3: UK Armed Forces personnel DMS registrations, registered to regions & Local Area Authorities by age band, 1 April 2017, Numbers"]
["Table B2.4: Entitled civilian personnel DMS registrations, registered to regions & Local Area Authorities by age band","Table B2.4: Entitled civilian personnel DMS registrations, registered to regions & Local Area Authorities by age band, 1 April 2017, Numbers"]
["Table B2.5: UK Armed Forces personnel and entitled civilian personnel DMS registrations, registered to regions & Local Area Authorities by gender","Table B2.5: UK Armed Forces personnel and entitled civilian personnel DMS registrations, registered to regions & Local Area Authorities by gender, 1 April 2017, Numbers"]
["Table B2.6: UK Armed Forces males and entitled civilian males DMS registrations, registered to regions & Local Area Authorities by age band","Table B2.6: UK Armed Forces males and entitled civilian males DMS registrations, registered to regions & Local Area Authorities by age band, 1 April 2017, Numbers"]
["Table B2.7: UK Armed Forces females and entitled civilian females DMS registrations, registered to regions & Local Area Authorities by age band","Table B2.7: UK Armed Forces females and entitled civilian females DMS registrations, registered to regions & Local Area Authorities by age band, 1 April 2017, Numbers"]
["Table C1.2: UK Armed Forces personnel and entitled civilian personnel DMS registrations, registered to Local Health Boards by age band","Table C1.2: UK Armed Forces personnel and entitled civilian personnel DMS registrations, registered to Local Health Boards by age band, 1 April 2017, Numbers"]
["Table C1.3: UK Armed Forces personnel DMS registrations, registered to Local Health Boards by age band","Table C1.3: UK Armed Forces personnel DMS registrations, registered to Local Health Boards by age band, 1 April 2017, Numbers"]
["Table C1.4: Entitled civilian personnel DMS registrations, registered to Local Health Boards by age band","Table C1.4: Entitled civilian personnel DMS registrations, registered to Local Health Boards by age band, 1 April 2017, Numbers"]
["Table C1.5: UK Armed Forces personnel and entitled civilian personnel DMS registrations, registered to Local Health Boards by gender","Table C1.5: UK Armed Forces personnel and entitled civilian personnel DMS registrations, registered to Local Health Boards by gender, 1 April 2017, Numbers"]
["Table C1.6: UK Armed Forces males and entitled civilian males DMS registrations, registered to Local Health Boards by age band","Table C1.6: UK Armed Forces males and entitled civilian males DMS registrations, registered to Local Health Boards by age band, 1 April 2017, Numbers"]
["Table C1.7: UK Armed Forces females and entitled civilian females DMS registrations, registered to Local Health Boards by age band","Table C1.7: UK Armed Forces females and entitled civilian females DMS registrations, registered to Local Health Boards by age band, 1 April 2017, Numbers"]
["Table C2.2: UK Armed Forces personnel and entitled civilian personnel DMS registrations, registered to Local Area Authorities by age band","Table C2.2: UK Armed Forces personnel and entitled civilian personnel DMS registrations, registered to Local Area Authorities by age band, 1 April 2017, Numbers"]
["Table C2.3: UK Armed Forces personnel DMS registrations, registered to Local Area Authorities by age band","Table C2.3: UK Armed Forces personnel DMS registrations, registered to Local Area Authorities by age band, 1 April 2017, Numbers"]
["Table C2.4: Entitled civilian personnel DMS registrations, registered to Local Area Authorities by age band","Table C2.4: Entitled civilian personnel DMS registrations, registered to Local Area Authorities by age band, 1 April 2017, Numbers"]
["Table C2.5: UK Armed Forces personnel and entitled civilian personnel DMS registrations, registered to Local Area Authorities by gender","Table C2.5: UK Armed Forces personnel and entitled civilian personnel DMS registrations, registered to Local Area Authorities by gender, 1 April 2017, Numbers"]
["Table C2.6: UK Armed Forces males and entitled civilian males DMS registrations, registered to Local Area Authorities by age band","Table C2.6: UK Armed Forces males and entitled civilian males DMS registrations, registered to Local Area Authorities by age band, 1 April 2017, Numbers"]
["Table C2.7: UK Armed Forces females and entitled civilian females DMS registrations, registered to Local Area Authorities by age band","Table C2.7: UK Armed Forces females and entitled civilian females DMS registrations, registered to Local Area Authorities by age band, 1 April 2017, Numbers"]
["Table D1.2: UK Armed Forces personnel and entitled civilian personnel DMS registrations, registered to Health and Social Care Partnerships & Council Areas by age band","Table D1.2: UK Armed Forces personnel and entitled civilian personnel DMS registrations, registered to Health and Social Care Partnerships & Council Areas by age band, 1 April 2017, Numbers"]
["Table D1.3: UK Armed Forces personnel DMS registrations, registered to Health and Social Care Partnerships & Council Areas by age band","Table D1.3: UK Armed Forces personnel DMS registrations, registered to Health and Social Care Partnerships & Council Areas by age band, 1 April 2017, Numbers"]
["Table D1.4: Entitled civilian personnel DMS registrations, registered to Health and Social Care Partnerships & Council Areas by age band","Table D1.4: Entitled civilian personnel DMS registrations, registered to Health and Social Care Partnerships & Council Areas by age band, 1 April 2017, Numbers"]
["Table D1.5: UK Armed Forces personnel and entitled civilian personnel DMS registrations, registered to Health and Social Care Partnerships & Council Areas by gender","Table D1.5: UK Armed Forces personnel and entitled civilian personnel DMS registrations, registered to Health and Social Care Partnerships & Council Areas by gender, 1 April 2017, Numbers"]
["Table D1.6: UK Armed Forces males and entitled civilian males DMS registrations, registered to Health and Social Care Partnerships & Council Areas by age band","Table D1.6: UK Armed Forces males and entitled civilian males DMS registrations, registered to Health and Social Care Partnerships & Council Areas by age band, 1 April 2017, Numbers"]
["Table D1.7: UK Armed Forces females and entitled civilian females DMS registrations, registered to Health and Social Care Partnerships & Council Areas by age band","Table D1.7: UK Armed Forces females and entitled civilian females DMS registrations, registered to Health and Social Care Partnerships & Council Areas by age band, 1 April 2017, Numbers"]
["Table E1.2: UK Armed Forces personnel and entitled civilian personnel DMS registrations, registered to Local Commissioning Groups by age band","Table E1.2: UK Armed Forces personnel and entitled civilian personnel DMS registrations, registered to Local Commissioning Groups by age band, 1 April 2017, Numbers"]
["Table E1.3: UK Armed Forces personnel DMS registrations, registered to Local Commissioning Groups by age band","Table E1.3: UK Armed Forces personnel DMS registrations, registered to Local Commissioning Groups by age band, 1 April 2017, Numbers"]
["Table E1.4: Entitled civilian personnel DMS registrations, registered to Local Commissioning Groups by age band","Table E1.4: Entitled civilian personnel DMS registrations, registered to Local Commissioning Groups by age band, 1 April 2017, Numbers"]
["Table E1.5: UK Armed Forces personnel and entitled civilian personnel DMS registrations, registered to Local Commissioning Groups by gender","Table E1.5: UK Armed Forces personnel and entitled civilian personnel DMS registrations, registered to Local Commissioning Groups by gender, 1 April 2017, Numbers"]
["Table E1.6: UK Armed Forces males and entitled civilian males DMS registrations, registered to Local Commissioning Groups by age band","Table E1.6: UK Armed Forces males and entitled civilian males DMS registrations, registered to Local Commissioning Groups by age band, 1 April 2017, Numbers"]
["Table E1.7: UK Armed Forces females and entitled civilian females DMS registrations, registered to Local Commissioning Groups by age band","Table E1.7: UK Armed Forces females and entitled civilian females DMS registrations, registered to Local Commissioning Groups by age band, 1 April 2017, Numbers"]
["Table E2.2: UK Armed Forces personnel and entitled civilian personnel DMS registrations, registered to District Council Areas by age band","Table E2.2: UK Armed Forces personnel and entitled civilian personnel DMS registrations, registered to District Council Areas by age band, 1 April 2017, Numbers"]
["Table E2.3: UK Armed Forces personnel DMS registrations, registered to District Council Areas by age band","Table E2.3: UK Armed Forces personnel DMS registrations, registered to District Council Areas by age band, 1 April 2017, Numbers"]
["Table E2.4: Entitled civilian personnel DMS registrations, registered to District Council Areas by age band","Table E2.4: Entitled civilian personnel DMS registrations, registered to District Council Areas by age band, 1 April 2017, Numbers"]
["Table E2.5: UK Armed Forces personnel and entitled civilian personnel DMS registrations, registered to District Council Areas by gender","Table E2.5: UK Armed Forces personnel and entitled civilian personnel DMS registrations, registered to District Council Areas by gender, 1 April 2017, Numbers"]
["Table E2.6: UK Armed Forces males and entitled civilian males DMS registrations, registered to District Council Areas by age band","Table E2.6: UK Armed Forces males and entitled civilian males DMS registrations, registered to District Council Areas by age band, 1 April 2017, Numbers"]
["Table E2.7: UK Armed Forces females and entitled civilian females DMS registrations, registered to District Council Areas by age band","Table E2.7: UK Armed Forces females and entitled civilian females DMS registrations, registered to District Council Areas by age band, 1 April 2017, Numbers"]
["Figure G1: UK Armed Forces and entitled civilian personnel DMS registrations, by registration location",{"$f":"A64&$A$3&$B$3&$C$3&$C$4&$C$5","v":"Figure G1: UK Armed Forces and entitled civilian personnel DMS registrations, by registration location, 1 April 2017, Numbers and Percentages"}]
["Figure G2: UK Armed Forces DMS registrations, by country and quarter","Figure G2: UK Armed Forces DMS registrations, by country and quarter, 1 April 2017, Numbers"]
["Figure G3: UK Armed Forces DMS registrations, by gender and age band","Figure G3: UK Armed Forces DMS registrations, by gender and age band, 1 April 2017, Numbers"]
["Figure G4: Entitled civilian DMS registrations, by country and quarter","Figure G4: Entitled civilian DMS registrations, by country and quarter, 1 April 2017, Numbers"]
["Figure G5: Entitled civilian DMS registrations, by gender and age band","Figure G5: Entitled civilian DMS registrations, by gender and age band, 1 April 2017, Numbers"]
["Figure G6: UK Armed Forces and entitled civilian England DMS registrations",{"$f":"A69&$A$3&$B$3&$C$3&$C$4&$C$5","v":"Figure G6: UK Armed Forces and entitled civilian England DMS registrations, 1 April 2017, Numbers and Percentages"}]
["Figure G7: UK Armed Forces and entitled civilian Wales DMS registrations",{"$f":"A70&$A$3&$B$3&$C$3&$C$4&$C$5","v":"Figure G7: UK Armed Forces and entitled civilian Wales DMS registrations, 1 April 2017, Numbers and Percentages"}]
["Figure G8: UK Armed Forces and entitled civilian Scotland DMS registrations",{"$f":"A71&$A$3&$B$3&$C$3&$C$4&$C$5","v":"Figure G8: UK Armed Forces and entitled civilian Scotland DMS registrations, 1 April 2017, Numbers and Percentages"}]
["ANNEX H: DPHC region mapping of CCGs",{"$f":"A72","v":"ANNEX H: DPHC region mapping of CCGs"}]
["ANNEX I: MOD UK medical centres offering primary healthcare to entitled civilians",{"$f":"A73","v":"ANNEX I: MOD UK medical centres offering primary healthcare to entitled civilians"}]

{"sheet":"Contents","index":1,"n_rows":104,"n_cols":13,"rows_kept":104,"cut":false,"hidden":false,"merged":[[97,1,97,19],[98,1,98,19],[99,1,99,19],[92,1,92,19],[93,1,93,19],[94,1,94,19],[95,1,95,19],[96,1,96,19],[77,1,77,19],[76,1,76,19],[84,1,84,19],[83,1,83,19],[80,1,80,19],[79,1,79,19],[78,1,78,19],[89,1,89,19],[88,1,88,19],[87,1,87,19],[86,1,86,19],[85,1,85,19],[58,1,58,19],[55,1,55,19],[56,1,56,19],[75,1,75,19],[74,1,74,19],[66,1,66,19],[65,1,65,19],[61,1,61,19],[60,1,60,19],[59,1,59,19],[71,1,71,19],[70,1,70,18],[69,1,69,19],[68,1,68,18],[67,1,67,19],[57,1,57,19],[46,1,46,19],[45,1,45,19],[51,1,51,19],[50,1,50,19],[49,1,49,19],[48,1,48,19],[47,1,47,19],[31,1,31,19],[32,1,32,19],[42,1,42,18],[41,1,41,18],[40,1,40,18],[39,1,39,18],[38,1,38,18],[37,1,37,18],[4,1,4,19],[12,1,12,15],[13,1,13,15],[17,1,17,19],[18,1,18,19],[5,1,5,19],[6,1,6,19],[19,1,19,17],[20,1,20,16],[21,1,21,19],[22,1,22,19],[23,1,23,19],[26,1,26,19],[27,1,27,19],[28,1,28,16],[29,1,29,16],[30,1,30,19]]}
[null,"Quarterly NHS Commissioning Population Statistics: based on military and entitled civilian medical patient registrations"]
[]
[null,"25 May 2017 Edition",null,null,null,null,null,null,null,null,null,null,"https://www.gov.uk/government/organisations/ministry-of-defence/about/statistics"]
[]
[null,"This quarterly Official Statistic provides summary statistics on the number of serving UK Armed Forces personnel and entitled civilian personnel with a Defence Medical Services (DMS) registration. This report uses a snapshot of data as at 1 April 2017.  Reports are released eight weeks after the reporting point. "]
[null,"Defence Statistics (Health) are currently running a consultation on the proposed reduction in frequency of this report. Further details about this change and ways to respond can be found here:"]
[null,"https://www.gov.uk/government/consultations/proposed-reduced-frequency-of-the-quarterly-nhs-commissioning-population-statistics-official-statistic"]
[null,"Contents"]
[]
[null,"Background"]
[null,"Notes and Definitions"]
[null,"Annex A - All"]
[null,"Table A1.1: UK Armed Forces and entitled civilian personnel DMS registrations, by registration location, 1 April 2017, Numbers"]
[null,"Table A1.2: UK Armed Forces and entitled civilian personnel DMS registrations,  registration location by Service, 1 April 2017, Numbers"]
[]
[null,"Annex B - England"]
[null,"Annex B1 - England, by NHS Clinical Commissioning Group"]
[null,"Table B1.1: UK Armed Forces personnel and entitled civilian personnel DMS registrations, registered to NHS Clinical Commissioning Groups by Service, 1 April 2017, Numbers"]
[null,"Table B1.2: UK Armed Forces personnel and entitled civilian personnel DMS registrations, registered to NHS Clinical Commissioning Groups by age band, 1 April 2017, Numbers"]
[null,"Table B1.3: UK Armed Forces personnel DMS registrations, registered to NHS Clinical Commissioning Groups by age band, 1 April 2017, Numbers"]
[null,"Table B1.4: Entitled civilian personnel DMS registrations, registered to NHS Clinical Commissioning Groups by age band, 1 April 2017, Numbers"]
[null,"Table B1.5: UK Armed Forces personnel and entitled civilian personnel DMS registrations, registered to NHS Clinical Commissioning Groups by gender, 1 April 2017, Numbers"]
[null,"Table B1.6: UK Armed Forces males and entitled civilian males DMS registrations, registered to NHS Clinical Commissioning Groups by age band, 1 April 2017, Numbers"]
[null,"Table B1.7: UK Armed Forces females and entitled civilian females DMS registrations, registered to NHS Clinical Commissioning Groups by age band, 1 April 2017, Numbers"]
[]
[null,"Annex B2 - England, by Regions and Local Authorities"]
[null,"Table B2.1: UK Armed Forces personnel and entitled civilian personnel DMS registrations, registered to regions & Local Area Authorities by Service, 1 April 2017, Numbers"]
[null,"Table B2.2: UK Armed Forces personnel and entitled civilian personnel DMS registrations, registered to regions & Local Area Authorities by age band, 1 April 2017, Numbers"]
[null,"Table B2.3: UK Armed Forces personnel DMS registrations, registered to regions & Local Area Authorities by age band, 1 April 2017, Numbers"]
[null,"Table B2.4: Entitled civilian personnel DMS registrations, registered to regions & Local Area Authorities by age band, 1 April 2017, Numbers"]
[null,"Table B2.5: UK Armed Forces personnel and entitled civilian personnel DMS registrations, registered to regions & Local Area Authorities by gender, 1 April 2017, Numbers"]
[null,"Table B2.6: UK Armed Forces males and entitled civilian males DMS registrations, registered to regions & Local Area Authorities by age band, 1 April 2017, Numbers"]
[null,"Table B2.7: UK Armed Forces females and entitled civilian females DMS registrations, registered to regions & Local Area Authorities by age band, 1 April 2017, Numbers"]
[]
[null,"Annex C - Wales"]
[null,"Annex C1 - Wales, by Local Health Boards"]
[null,"Table C1.1: UK Armed Forces personnel and entitled civilian personnel DMS registrations, registered to Local Health Boards by Service, 1 April 2017, Numbers"]
[null,"Table C1.2: UK Armed Forces personnel and entitled civilian personnel DMS registrations, registered to Local Health Boards by age band, 1 April 2017, Numbers"]
[null,"Table C1.3: UK Armed Forces personnel DMS registrations, registered to Local Health Boards by age band, 1 April 2017, Numbers"]
[null,"Table C1.4: Entitled civilian personnel DMS registrations, registered to Local Health Boards by age band, 1 April 2017, Numbers"]
[null,"Table C1.5: UK Armed Forces personnel and entitled civilian personnel DMS registrations, registered to Local Health Boards by gender, 1 April 2017, Numbers"]
[null,"Table C1.6: UK Armed Forces males and entitled civilian males DMS registrations, registered to Local Health Boards by age band, 1 April 2017, Numbers"]
[null,"Table C1.7: UK Armed Forces females and entitled civilian females DMS registrations, registered to Local Health Boards by age band, 1 April 2017, Numbers"]
[]
[null,"Annex C2 - Wales, by Local Authorities"]
[null,"Table C2.1: UK Armed Forces personnel and entitled civilian personnel DMS registrations, registered to Local Area Authorities by Service, 1 April 2017, Numbers"]
[null,"Table C2.2: UK Armed Forces personnel and entitled civilian personnel DMS registrations, registered to Local Area Authorities by age band, 1 April 2017, Numbers"]
[null,"Table C2.3: UK Armed Forces personnel DMS registrations, registered to Local Area Authorities by age band, 1 April 2017, Numbers"]
[null,"Table C2.4: Entitled civilian personnel DMS registrations, registered to Local Area Authorities by age band, 1 April 2017, Numbers"]
[null,"Table C2.5: UK Armed Forces personnel and entitled civilian personnel DMS registrations, registered to Local Area Authorities by gender, 1 April 2017, Numbers"]
[null,"Table C2.6: UK Armed Forces males and entitled civilian males DMS registrations, registered to Local Area Authorities by age band, 1 April 2017, Numbers"]
[null,"Table C2.7: UK Armed Forces females and entitled civilian females DMS registrations, registered to Local Area Authorities by age band, 1 April 2017, Numbers"]
[]
[null,"Annex D Scotland"]
[null,"Annex D1 - Scotland, by Health and Social Care Partnerships & Council Areas"]
[null,"Table D1.1: UK Armed Forces personnel and entitled civilian personnel DMS registrations, registered to Health and Social Care Partnerships & Council Areas by Service, 1 April 2017, Numbers"]
[null,"Table D1.2: UK Armed Forces personnel and entitled civilian personnel DMS registrations, registered to Health and Social Care Partnerships & Council Areas by age band, 1 April 2017, Numbers"]
[null,"Table D1.3: UK Armed Forces personnel DMS registrations, registered to Health and Social Care Partnerships & Council Areas by age band, 1 April 2017, Numbers"]
[null,"Table D1.4: Entitled civilian personnel DMS registrations, registered to Health and Social Care Partnerships & Council Areas by age band, 1 April 2017, Numbers"]
[null,"Table D1.5: UK Armed Forces personnel and entitled civilian personnel DMS registrations, registered to Health and Social Care Partnerships & Council Areas by gender, 1 April 2017, Numbers"]
[null,"Table D1.6: UK Armed Forces males and entitled civilian males DMS registrations, registered to Health and Social Care Partnerships & Council Areas by age band, 1 April 2017, Numbers"]
[null,"Table D1.7: UK Armed Forces females and entitled civilian females DMS registrations, registered to Health and Social Care Partnerships & Council Areas by age band, 1 April 2017, Numbers"]
[]
[null,"Annex E - Northern Ireland"]
[null,"Annex E1 - Northern Ireland, by Local Commissioning Groups"]
[null,"Table E1.1: UK Armed Forces personnel and entitled civilian personnel DMS registrations, registered to Local Commissioning Groups by Service, 1 April 2017, Numbers"]
[null,"Table E1.2: UK Armed Forces personnel and entitled civilian personnel DMS registrations, registered to Local Commissioning Groups by age band, 1 April 2017, Numbers"]
[null,"Table E1.3: UK Armed Forces personnel DMS registrations, registered to Local Commissioning Groups by age band, 1 April 2017, Numbers"]
[null,"Table E1.4: Entitled civilian personnel DMS registrations, registered to Local Commissioning Groups by age band, 1 April 2017, Numbers"]
[null,"Table E1.5: UK Armed Forces personnel and entitled civilian personnel DMS registrations, registered to Local Commissioning Groups by gender, 1 April 2017, Numbers"]
[null,"Table E1.6: UK Armed Forces males and entitled civilian males DMS registrations, registered to Local Commissioning Groups by age band, 1 April 2017, Numbers"]
[null,"Table E1.7: UK Armed Forces females and entitled civilian females DMS registrations, registered to Local Commissioning Groups by age band, 1 April 2017, Numbers"]
[]
[null,"Annex E2 - Northern Ireland, by District Council Areas"]
[null,"Table E2.1: UK Armed Forces personnel and entitled civilian personnel DMS registrations, registered to District Council Areas by Service, 1 April 2017, Numbers"]
[null,"Table E2.2: UK Armed Forces personnel and entitled civilian personnel DMS registrations, registered to District Council Areas by age band, 1 April 2017, Numbers"]
[null,"Table E2.3: UK Armed Forces personnel DMS registrations, registered to District Council Areas by age band, 1 April 2017, Numbers"]
[null,"Table E2.4: Entitled civilian personnel DMS registrations, registered to District Council Areas by age band, 1 April 2017, Numbers"]
[null,"Table E2.5: UK Armed Forces personnel and entitled civilian personnel DMS registrations, registered to District Council Areas by gender, 1 April 2017, Numbers"]
[null,"Table E2.6: UK Armed Forces males and entitled civilian males DMS registrations, registered to District Council Areas by age band, 1 April 2017, Numbers"]
[null,"Table E2.7: UK Armed Forces females and entitled civilian females DMS registrations, registered to District Council Areas by age band, 1 April 2017, Numbers"]
[]
[null,"Annex F - Defence Primary Healthcare Regions"]
[null,"Table F1.1: UK Armed Forces personnel and entitled civilian personnel DMS registrations, registered to Defence Primary Healthcare regions by Service, 1 April 2017, Numbers"]
[null,"Table F1.2: UK Armed Forces personnel and entitled civilian personnel DMS registrations, registered to Defence Primary Healthcare regions by age band, 1 April 2017, Numbers"]
[null,"Table F1.3: UK Armed Forces personnel DMS registrations, registered to Defence Primary Healthcare regions by age band, 1 April 2017, Numbers"]
[null,"Table F1.4: Entitled civilian personnel DMS registrations, registered to Defence Primary Healthcare regions by age band, 1 April 2017, Numbers"]
[null,"Table F1.5: UK Armed Forces personnel and entitled civilian personnel DMS registrations, registered to Defence Primary Healthcare regions by gender, 1 April 2017, Numbers"]
[null,"Table F1.6: UK Armed Forces males and entitled civilian males DMS registrations, registered to Defence Primary Healthcare regions by age band, 1 April 2017, Numbers"]
[null,"Table F1.7: UK Armed Forces females and entitled civilian females DMS registrations, registered to Defence Primary Healthcare regions by age band, 1 April 2017, Numbers"]
[]
[null,"Annex G - Report figures"]
[null,"Figure G1: UK Armed Forces and entitled civilian personnel DMS registrations, by registration location, 1 April 2017, Numbers and Percentages"]
[null,"Figure G2: UK Armed Forces DMS registrations, by country and quarter, 1 April 2017, Numbers"]
[null,"Figure G3: UK Armed Forces DMS registrations, by gender and age band, 1 April 2017, Numbers"]
[null,"Figure G4: Entitled civilian DMS registrations, by country and quarter, 1 April 2017, Numbers"]
[null,"Figure G5: Entitled civilian DMS registrations, by gender and age band, 1 April 2017, Numbers"]
[null,"Figure G6: UK Armed Forces and entitled civilian England DMS registrations, 1 April 2017, Numbers and Percentages"]
[null,"Figure G7: UK Armed Forces and entitled civilian Wales DMS registrations, 1 April 2017, Numbers and Percentages"]
[null,"Figure G8: UK Armed Forces and entitled civilian Scotland DMS registrations, 1 April 2017, Numbers and Percentages"]
[]
[null,"ANNEX H: DPHC region mapping of CCGs"]
[]
[null,"ANNEX I: MOD UK medical centres offering primary healthcare to entitled civilians"]

{"sheet":"Notes and definitions","index":2,"n_rows":47,"n_cols":4,"rows_kept":47,"cut":false,"hidden":false,"merged":[[32,1,32,12],[20,1,20,12],[10,1,10,12],[15,1,15,12],[36,1,37,12]]}
[null,"Quarterly NHS Commissioning Population Statistics: based on military and entitled civilian medical patient registrations"]
[]
[null,"25 May 2017 Edition"]
[]
[null,"Notes and Definitions"]
[]
[null,"Definitions"]
[]
[null,"Unknown includes data quality issues and data management practice registrations."]
[null,"Naval Service includes Royal Navy and Royal Marines"]
[null,"Where possible, UK Armed Forces patients registered in other overseas locations are allocated back to their last known UK, Germany or Cyprus practice in the last 12 months. No civilian patients registered in other overseas locations are allocated back to previous regions."]
[]
[]
[null,"Data Sources and Quality"]
[]
[null,"Please see our Background Quality Report on GOV.UK for more detail on the data sources, data quality and processes carried out to produce these statistics:"]
[null,"www.gov.uk/government/collections/defence-statistics-background-quality-reports-index"]
[]
[null,"Statistical Disclosure Control"]
[]
[null,"The tables in this report have been scrutinised to ensure individual identities have not been revealed inadvertently. In line with Joint Service Publication 200 (March 2016), figures have been rounded to the nearest 10 in keeping with the ONS Dissemination of Health Statistics: Confidentiality Guidance. All numbers five or fewer have been suppressed and presented as ‘~’. Rounding is desirable both as a means of disclosure control and to improve the clarity of outputs and convey appropriate levels of precision to users. Totals and sub-totals have been rounded separately and so may not equal the sums of their rounded parts. Numbers ending in “5” have been rounded to the nearest multiple of 20 to prevent systematic bias."]
[]
[null," Due to rounding, please note that totals may not equal the sum of their parts."]
[]
[null,"Symbols"]
[]
[null," ~     denotes 5 or fewer"]
[null," +/-   indicates percentage changes in figures over the last quarter:"]
[null," +     indicates there has been between 5% and 10% increase"]
[null," ++   indicates there has been a greater than 10% increase"]
[null," -      indicates there has been between 5% and 10% decrease"]
[null," --     indicates there has been a greater than 10% decrease"]
[null,"Percentage changes have not been shown where population figures were below 20 in both the current and previous quarters. This is because a difference of a small number of people can show a large percentage change, creating a false sense of change over the three month period."]
[]
[null,"Contact Us:"]
[]
[null,"Defence Statistics welcome feedback on our statistical products. If you have any comments or questions about this publication or about the statistics produced by Defence Statistics in general, you can contact us as follows:"]
[]
[]
[null,"Defence Statistics (Health)"]
[]
[null,"Tel: ",null,"03067984423"]
[]
[null,"Email: ",null,"DefStrat-Stat-Health-PQ-FOI@mod.uk"]
[]
[null,"Visit our website at:"]
[null,"www.gov.uk/government/organisations/ministry-of-defence/about/statistics"]

{"sheet":"Table A1.1","index":3,"n_rows":26,"n_cols":10,"rows_kept":26,"cut":false,"hidden":false,"merged":[[24,1,24,19],[5,3,5,4],[6,1,6,4],[23,1,23,19],[25,1,25,19]]}
[null,"Annex A - All"]
[]
[null,"Table A1.1: UK Armed Forces and entitled civilian personnel DMS registrations, by registration location, 1 April 2017, Numbers"]
[null,"Defence Statistics (Health)"]
[]
[null,null,null,"Return to contents"]
[null,"Location",null,null,null,"All persons","UK Armed Forces","+/-","Civilian","+/-"]
[null,"ALL",null,null,null,177032,147861,"",29171,""]
[null,null,"UNITED KINGDOM",null,null,154945,139269,"",15676,""]
[null,null,null,"of which:"]
[null,null,null,null,"England",139177,124645,"",14532,""]
[null,null,null,null,"Wales",1381,1154,"",227,""]
[null,null,null,null,"Scotland",11797,11291,"+",506,""]
[null,null,null,null,"Northern Ireland",2590,2179,"",411,""]
[null,null,"OTHER",null,null,22087,8592,"",13495,""]
[null,null,null,"of which:"]
[null,null,null,null,"Germany",10466,4457,"",6009,""]
[null,null,null,null,"Cyprus",6556,2244,"",4312,""]
[null,null,null,null,"Other overseas",3828,772,"",3056,""]
[null,null,null,null,"Reserve Practices",195,190,"+",5,""]
[null,null,null,null,"Unknown3",1042,929,"",113,"++"]
[]
[null,"Source: DMICP Data Warehouse"]
[null,"1. The presence of  +/- indicates percentage changes in figures over the last quarter.  + indicates there has been a 5% to 10% increase and - indicates there has been between a 5% to 10% decrease.  ++ indicates a greater than 10% increase and -- indicates a greater than 10% decrease."]
[null,"2. Where possible, UK Armed Forces patients registered in other overseas locations are allocated back to their last known UK, Germany or Cyprus practice in the last 12 months. No entitled civilian patients registered in other overseas locations are allocated back to previous regions."]
[null,"3. Unknown includes data quality issues and data management practice registrations."]

{"sheet":"Table A1.2","index":4,"n_rows":25,"n_cols":13,"rows_kept":25,"cut":false,"hidden":false,"merged":[[6,1,6,4],[5,8,5,10],[5,3,5,4],[23,1,23,15],[24,1,24,15]]}
[null,"Annex A - All"]
[]
[null,"Table A1.2: UK Armed Forces and entitled civilian personnel DMS registrations,  registration location by Service, 1 April 2017, Numbers"]
[null," Defence Statistics (Health)"]
[]
[null,null,null,"Return to contents",null,null,null,null,"UK Armed Forces split by"]
[null,"Location",null,null,null,"All persons","All UK Armed Forces","+/-","Naval Service","Army","Royal Air Force","Civilian","+/-"]
[null,"ALL",null,null,null,177032,147861,"",31880,82780,33201,29171,""]
[null,null,"UNITED KINGDOM",null,null,154945,139269,"",31220,76304,31745,15676,""]
[null,null,null,"of which:"]
[null,null,null,null,"England",139177,124645,"",25564,69479,29602,14532,""]
[null,null,null,null,"Wales",1381,1154,"",27,877,250,227,""]
[null,null,null,null,"Scotland",11797,11291,"+",5601,3872,1818,506,""]
[null,null,null,null,"Northern Ireland",2590,2179,"",28,2076,75,411,""]
[null,null,"OTHER",null,null,22087,8592,"",660,6476,1456,13495,""]
[null,null,null,"of which:"]
[null,null,null,null,"Germany",10466,4457,"",200,3871,386,6009,""]
[null,null,null,null,"Cyprus",6556,2244,"",25,1370,849,4312,""]
[null,null,null,null,"Other overseas",3828,772,"",8,748,16,3056,""]
[null,null,null,null,"Reserve Practices",195,190,"+",36,154,0,5,""]
[null,null,null,null,"Unknown2",1042,929,"",391,333,205,113,"++"]
[]
[null,"Source: DMICP Data Warehouse"]
[null,"1. The presence of  +/- indicates percentage changes in figures over the last quarter.  + indicates there has been a 5% to 10% increase and - indicates there has been between a 5% to 10% decrease.  ++ indicates a greater than 10% increase and -- indicates a greater than 10% decrease."]
[null,"2. Unknown includes data quality issues and data management practice registrations."]

{"sheet":"Table B1.1","index":5,"n_rows":100,"n_cols":15,"rows_kept":100,"cut":false,"hidden":false,"merged":[[6,1,6,4],[5,10,5,12],[98,1,98,17],[99,1,99,17],[5,3,5,4],[97,1,97,15]]}
[null,"Annex B1 - England, by NHS Clinical Commissioning Group"]
[]
[null,"Table B1.1: UK Armed Forces personnel and entitled civilian personnel DMS registrations, registered to NHS Clinical Commissioning Groups by Service, 1 April 2017, Numbers"]
[null,"Defence Statistics (Health)"]
[]
[null,null,null,"Return to contents",null,"NEW","OLD",null,null,null,"UK Armed Forces split by "]
[null,"Area Name",null,null,null,"Area Code","Area Code","All Persons","All UK Armed Forces","+/-","Naval Service","Army","RAF","Civilian","+/-"]
[null,"ENGLAND                            ",null,null,null,"E92000001",null,139180,124640,"",25560,69480,29600,14530,""]
[null,null,"NORTH OF ENGLAND                        ",null,null,"E40000001",null,18110,16390,"",160,13860,2360,1720,""]
[null,null,null,"CHESHIRE, WARRINGTON AND WIRRAL",null,"E39000001",null,660,660,"",30,610,20,0,""]
[null,null,null,null,"NHS West Cheshire","E38000196","02F",660,660,"",30,610,20,0,""]
[null,null,null,"LANCASHIRE",null,"E39000004",null,990,990,"","~",970,10,0,""]
[null,null,null,null,"NHS Fylde & Wyre","E38000060","02M",580,580,"","~",560,10,0,""]
[null,null,null,null,"NHS Greater Preston","E38000065","01E",410,410,"",0,410,"~",0,""]
[null,null,null,"CUMBRIA, NORTHUMBERLAND, TYNE AND WEAR",null,"E39000006",null,1410,1410,"",70,740,600,0,""]
[null,null,null,null,"NHS Cumbria","E38000041","01H",150,150,"+",60,"~",90,0,""]
[null,null,null,null,"NHS Northumberland","E38000130","00L",1260,1260,"",10,740,510,0,""]
[null,null,null,"NORTH YORKSHIRE AND HUMBER",null,"E39000007",null,15050,13330,"",60,11530,1740,1720,""]
[null,null,null,null,"NHS East Riding of Yorkshire","E38000052","02Y",400,400,"",30,350,20,0,""]
[null,null,null,null,"NHS Hambleton, Richmondshire and Whitby","E38000069","03D",10360,8830,"",10,7420,1400,1530,""]
[null,null,null,null,"NHS Harrogate and Rural District","E38000073","03E",2810,2810,"-",10,2800,"~","~",""]
[null,null,null,null,"NHS Scarborough and Ryedale","E38000145","03M",100,100,"",0,0,100,0,""]
[null,null,null,null,"NHS Vale of York","E38000188","03Q",1380,1190,"",10,960,220,190,"-"]
[null,null,"MIDLANDS AND EAST OF ENGLAND",null,null,"E40000002",null,33210,29540,"",1270,14160,14110,3670,""]
[null,null,null,"ARDEN, HEREFORDSHIRE AND WORCESTERSHIRE",null,"E39000010",null,860,860,"","~",850,10,0,""]
[null,null,null,null,"NHS Coventry and Rugby","E38000038","05A",640,640,"",0,640,0,0,""]
[null,null,null,null,"NHS South Warwickshire","E38000164","05R",220,220,"","~",200,10,0,""]
[null,null,null,"BIRMINGHAM AND THE BLACK COUNTRY",null,"E39000011",null,620,620,"-",140,350,140,0,""]
[null,null,null,null,"NHS Birmingham CrossCity","E38000012","13P",620,620,"-",140,350,140,0,""]
[null,null,null,"DERBYSHIRE AND NOTTINGHAMSHIRE",null,"E39000012",null,910,900,"","~",890,10,"~",""]
[null,null,null,null,"NHS Nottingham West","E38000134","04M",910,900,"","~",890,10,"~",""]
[null,null,null,"EAST ANGLIA",null,"E39000013",null,8900,7440,"",70,2580,4800,1460,""]
[null,null,null,null,"NHS Cambridgeshire and Peterborough","E38000026","06H",2260,1760,"",40,430,1290,500,""]
[null,null,null,null,"NHS Ipswich and East Suffolk","E38000086","06L",3180,3180,"",10,1740,1420,10,""]
[null,null,null,null,"NHS South Norfolk","E38000159","06Y",380,380,"",0,380,0,"~",""]
[null,null,null,null,"NHS West Norfolk","E38000203","07J",3080,2120,"",20,20,2080,950,""]
[null,null,null,"ESSEX",null,"E39000014",null,4000,4000,"",20,3940,40,"~",""]
[null,null,null,null,"NHS North East Essex","E38000117","06T",3230,3230,"",20,3160,40,"~",""]
[null,null,null,null,"NHS West Essex","E38000197","07H",780,780,"",0,780,0,0,""]
[null,null,null,"HERTFORDSHIRE AND THE SOUTH MIDLANDS",null,"E39000015",null,2340,2330,"",650,900,780,10,""]
[null,null,null,null,"NHS Bedfordshire","E38000010","06F",1130,1130,"",110,590,430,"~",""]
[null,null,null,null,"NHS Herts Valleys","E38000079","06N",1210,1200,"",540,300,350,10,""]
[null,null,null,"LEICESTERSHIRE AND LINCOLNSHIRE",null,"E39000016",null,9690,8190,"",150,1910,6130,1500,""]
[null,null,null,null,"NHS East Leicestershire and Rutland","E38000051","03W",2320,1540,"",0,1520,20,780,""]
[null,null,null,null,"NHS Lincolnshire East","E38000099","03T",2170,2070,"","~",10,2050,110,"++"]
[null,null,null,null,"NHS Lincolnshire West","E38000100","04D",2840,2840,"",50,60,2730,"~",""]
[null,null,null,null,"NHS South West Lincolnshire ","E38000165","04Q",2350,1740,"",100,310,1330,610,""]
[null,null,null,"SHROPSHIRE AND STAFFORDSHIRE",null,"E39000017",null,5880,5180,"",230,2760,2200,700,""]
[null,null,null,null,"NHS Shropshire","E38000147","05N",3510,2810,"",100,880,1820,700,""]
[null,null,null,null,"NHS South East Staffs and Seisdon and Peninsular","E38000153","05Q",840,840,"- -",120,550,170,0,""]
[null,null,null,null,"NHS Stafford and Surrounds","E38000173","05V",1530,1530,"",0,1320,210,0,""]
[null,null,null,null,"NHS Telford & Wrekin","E38000183","05X","~","~","",0,"~",0,0,""]
[null,null,"LONDON",null,null,"E40000003",null,5090,4620,"",370,3230,1020,460,""]
[null,null,null,"LONDON",null,"E39000018",null,5090,4620,"",370,3230,1020,460,""]
[null,null,null,null,"NHS Central London (Westminster)","E38000031","09A",400,400,"- -",0,400,0,0,""]
[null,null,null,null,"NHS Hillingdon","E38000082","08G",1280,820,"",20,150,660,460,""]
[null,null,null,null,"NHS Hounslow","E38000084","07Y",560,560,"",0,560,0,0,""]
[null,null,null,null,"NHS Greenwich","E38000066","08A",850,850,"",0,850,"~","~",""]
[null,null,null,null,"NHS Lambeth","E38000092","08K",1990,1990,"++",360,1270,360,"~",""]
[null,null,"SOUTH OF ENGLAND",null,null,"E40000004",null,82780,74100,"",23760,38220,12110,8680,""]
[null,null,null,"BATH, GLOUCESTERSHIRE, SWINDON AND WILTSHIRE",null,"E39000019",null,24470,19410,"",480,18080,850,5060,""]
[null,null,null,null,"NHS Gloucestershire","E38000062","11M",2060,2060,"",60,1870,130,0,""]
[null,null,null,null,"NHS Swindon","E38000181","12D",1100,1100,"++",200,730,180,"~",""]
[null,null,null,null,"NHS Wiltshire","E38000206","99N",21310,16250,"",220,15490,540,5060,""]
[null,null,null,"BRISTOL, NORTH SOMERSET, SOMERSET AND SOUTH GLOS",null,"E39000020",null,4650,4650,"",3210,930,500,"~",""]
[null,null,null,null,"NHS Somerset","E38000150","11X",3340,3340,"",2770,540,20,"~",""]
[null,null,null,null,"NHS South Gloucestershire","E38000155","12A",1310,1310,"",440,390,480,0,""]
[null,null,null,"DEVON, CORNWALL AND ISLES OF SCILLY",null,"E39000021",null,12040,12010,"",10770,1000,230,40,"++"]
[null,null,null,null,"NHS Kernow","E38000089","11N",3170,3170,"",2890,120,150,"~",""]
[null,null,null,null,"NHS North, East, West Devon","E38000129","99P",8410,8370,"-",7410,880,80,40,"++"]
[null,null,null,null,"NHS South Devon and Torbay","E38000152","99Q",470,470,"++",470,0,"~",0,""]
[null,null,null,"KENT AND MEDWAY",null,"E39000022",null,1980,1970,"",10,1920,40,"~",""]
[null,null,null,null,"NHS Medway","E38000104","09W",510,510,"- -","~",500,"~",0,""]
[null,null,null,null,"NHS South Kent Coast","E38000156","10A",860,860,"",10,800,40,0,""]
[null,null,null,null,"NHS West Kent","E38000199","99J",610,610,"",0,610,0,"~",""]
[null,null,null,"SURREY AND SUSSEX",null,"E39000023",null,4300,3620,"+",30,3490,100,680,""]
[null,null,null,null,"NHS Coastal West Sussex","E38000213","09G",920,920,"","~",890,30,"~",""]
[null,null,null,null,"NHS North West Surrey","E38000128","09Y",2640,1960,"++","~",1960,"~",680,""]
[null,null,null,null,"NHS Surrey Downs","E38000177","99H",150,150,"-",10,80,60,"~",""]
[null,null,null,null,"NHS Surrey Heath","E38000178","10C",590,580,"+",10,560,10,"~",""]
[null,null,null,"THAMES VALLEY",null,"E39000024",null,16160,13290,"",70,4940,8270,2870,""]
[null,null,null,null,"NHS Aylesbury Vale","E38000003","10Y",3490,2980,"",40,50,2890,520,""]
[null,null,null,null,"NHS Bracknell and Ascot","E38000017","10G",1940,1290,"+","~",1290,"~",640,""]
[null,null,null,null,"NHS Newbury and District","E38000110","10M",320,320,"",10,300,10,0,""]
[null,null,null,null,"NHS Oxfordshire","E38000136","10Q",9380,7680,"",20,2290,5370,1710,""]
[null,null,null,null,"NHS Windsor, Ascot and Maidenhead","E38000207","11C",1020,1020,"",0,1020,0,"~",""]
[null,null,null,null,"NHS Wokingham","E38000209","11D","~","~","",0,"~",0,"~",""]
[null,null,null,"WESSEX",null,"E39000025",null,19180,19150,"",9190,7850,2110,30,""]
[null,null,null,null,"NHS Fareham and Gosport","E38000059","10K",3360,3360,"",3050,160,160,"~",""]
[null,null,null,null,"NHS North East Hampshire and Farnham","E38000118","99M",4920,4920,"",10,4880,20,0,""]
[null,null,null,null,"NHS North Hampshire","E38000120","10J",1770,1760,"",10,130,1630,"~",""]
[null,null,null,null,"NHS Portsmouth","E38000137","10R",6120,6100,"",6000,70,20,30,""]
[null,null,null,null,"NHS South Eastern Hampshire","E38000154","10V","~","~","",0,"~",0,0,""]
[null,null,null,null,"NHS West Hampshire","E38000198","11A",3020,3010,"",110,2620,280,"~",""]
[]
[]
[null,"Source: DMICP Data Warehouse"]
[null,"1. In line with Joint Service Publication 200, numbers 5 or fewer have been supressed and presented as '~'."]
[null,"2. Due to rounding, please note that totals may not equal the sum of their parts."]
[null,"3. The presence of  +/- indicates percentage changes in figures over the last quarter.  + indicates there has been a 5% to 10% increase and - indicates there has been between a 5% to 10% decrease.  ++ indicates a greater than 10% increase and -- indicates a greater than 10% decrease."]

{"sheet":"Table B1.2","index":6,"n_rows":101,"n_cols":34,"rows_kept":101,"cut":false,"hidden":false,"merged":[[5,2,5,3],[7,1,7,3],[100,1,100,20],[97,1,97,19],[98,1,98,19],[99,1,99,24]]}
[null,"Annex B1 - England, by NHS Clinical Commissioning Group"]
[]
[null,"Table B1.2: UK Armed Forces personnel and entitled civilian personnel DMS registrations, registered to NHS Clinical Commissioning Groups by age band, 1 April 2017, Numbers"]
[null,"Defence Statistics (Health)"]
[]
[null,null,"Return to contents"]
[null,null,null,null,null,"NEW","OLD"]
[null,"Area Name",null,null,null,"Area Code","Area Code","All Persons","0-4","+/-","5-9","+/-","10-14","+/-","15-19","+/-","20-24","+/-","25-29","+/-","30-34","+/-","35-39","+/-","40-44","+/-","45-49","+/-","50-54","+/-","55-59","+/-","60+","+/-"]
[null,"ENGLAND                            ",null,null,null,"E92000001",null,139180,4010,"",2740,"",1420,"",7710,"+",24140,"",30800,"",24440,"",19740,"",11620,"",7660,"",4140,"",690,"+",70,""]
[null,null,"NORTH OF ENGLAND                        ",null,null,"E40000001",null,18110,510,null,340,null,180,null,2320,null,3490,null,4210,null,2950,null,2130,null,1140,null,560,null,240,null,50,null,"~"]
[null,null,null,"CHESHIRE, WARRINGTON AND WIRRAL",null,"E39000001",null,660,0,null,0,null,0,null,30,null,160,null,200,null,110,null,90,null,50,null,20,null,10,null,10,null,0]
[null,null,null,null,"NHS West Cheshire","E38000196","02F",660,0,null,0,null,0,null,30,null,160,null,200,null,110,null,90,null,50,null,20,null,10,null,10,null,0]
[null,null,null,"LANCASHIRE",null,"E39000004",null,990,0,null,0,null,0,null,40,null,220,null,280,null,180,null,120,null,80,null,40,null,20,null,"~",null,0]
[null,null,null,null,"NHS Fylde & Wyre","E38000060","02M",580,0,null,0,null,0,null,30,null,150,null,170,null,100,null,70,null,40,null,20,null,"~",null,"~",null,0]
[null,null,null,null,"NHS Greater Preston","E38000065","01E",410,0,null,0,null,0,null,"~",null,80,null,120,null,80,null,60,null,40,null,20,null,20,null,"~",null,0]
[null,null,null,"CUMBRIA, NORTHUMBERLAND, TYNE AND WEAR",null,"E39000006",null,1410,0,null,0,null,0,null,40,null,280,null,360,null,290,null,200,null,130,null,70,null,40,null,"~",null,0]
[null,null,null,null,"NHS Cumbria ","E38000041","01H",150,0,null,0,null,0,null,"~",null,10,null,30,null,40,null,20,null,20,null,10,null,10,null,"~",null,0]
[null,null,null,null,"NHS Northumberland ","E38000130","00L",1260,0,null,0,null,0,null,40,null,270,null,330,null,260,null,180,null,110,null,60,null,30,null,"~",null,0]
[null,null,null,"NORTH YORKSHIRE AND HUMBER                 ",null,"E39000007",null,15050,510,null,340,null,180,null,2220,null,2830,null,3370,null,2360,null,1720,null,890,null,430,null,180,null,40,null,"~"]
[null,null,null,null,"NHS East Riding of Yorkshire ","E38000052","02Y",400,0,null,0,null,0,null,90,null,80,null,50,null,50,null,60,null,40,null,20,null,10,null,"~",null,0]
[null,null,null,null,"NHS Hambleton, Richmondshire and Whitby ","E38000069","03D",10360,450,null,300,null,160,null,990,null,2190,null,2480,null,1680,null,1130,null,580,null,260,null,110,null,20,null,"~"]
[null,null,null,null,"NHS Harrogate and Rural District ","E38000073","03E",2810,0,null,0,null,0,null,1110,null,370,null,530,null,350,null,270,null,120,null,40,null,10,null,"~",null,"~"]
[null,null,null,null,"NHS Scarborough and Ryedale ","E38000145","03M",100,0,null,0,null,0,null,0,null,"~",null,20,null,20,null,20,null,10,null,20,null,"~",null,0,null,0]
[null,null,null,null,"NHS Vale of York ","E38000188","03Q",1380,60,null,30,null,20,null,20,null,180,null,280,null,260,null,240,null,150,null,90,null,40,null,10,null,"~"]
[null,null,"MIDLANDS AND EAST OF ENGLAND",null,null,"E40000002",null,33210,990,null,710,null,340,null,950,null,5410,null,7440,null,6040,null,5090,null,3040,null,2010,null,980,null,190,null,20]
[null,null,null,"ARDEN, HEREFORDSHIRE AND WORCESTERSHIRE",null,"E39000010",null,860,0,null,0,null,0,null,10,null,200,null,240,null,150,null,160,null,70,null,20,null,10,null,"~",null,0]
[null,null,null,null,"NHS Coventry and Rugby ","E38000038","05A",640,0,null,0,null,0,null,10,null,160,null,170,null,110,null,130,null,50,null,20,null,"~",null,"~",null,0]
[null,null,null,null,"NHS South Warwickshire ","E38000164","05R",220,0,null,0,null,0,null,"~",null,40,null,70,null,40,null,30,null,20,null,10,null,10,null,0,null,0]
[null,null,null,"BIRMINGHAM AND THE BLACK COUNTRY",null,"E39000011",null,620,0,null,0,null,0,null,10,null,80,null,140,null,140,null,100,null,60,null,40,null,30,null,10,null,0]
[null,null,null,null,"NHS Birmingham CrossCity ","E38000012","13P",620,0,null,0,null,0,null,10,null,80,null,140,null,140,null,100,null,60,null,40,null,30,null,10,null,0]
[null,null,null,"DERBYSHIRE AND NOTTINGHAMSHIRE",null,"E39000012",null,910,0,null,0,null,0,null,"~",null,60,null,120,null,160,null,190,null,160,null,150,null,40,null,10,null,0]
[null,null,null,null,"NHS Nottingham West ","E38000134","04M",910,0,null,0,null,0,null,"~",null,60,null,120,null,160,null,190,null,160,null,150,null,40,null,10,null,0]
[null,null,null,"EAST ANGLIA",null,"E39000013",null,8900,420,null,290,null,120,null,210,null,1410,null,2160,null,1650,null,1220,null,680,null,470,null,230,null,50,null,"~"]
[null,null,null,null,"NHS Cambridgeshire and Peterborough ","E38000026","06H",2260,120,null,110,null,60,null,50,null,230,null,480,null,380,null,330,null,220,null,170,null,80,null,20,null,"~"]
[null,null,null,null,"NHS Ipswich and East Suffolk ","E38000086","06L",3180,0,null,"~",null,0,null,100,null,660,null,900,null,630,null,450,null,230,null,140,null,70,null,10,null,"~"]
[null,null,null,null,"NHS South Norfolk ","E38000159","06Y",380,0,null,0,null,0,null,10,null,110,null,110,null,80,null,60,null,20,null,"~",null,0,null,"~",null,"~"]
[null,null,null,null,"NHS West Norfolk ","E38000203","07J",3080,300,null,180,null,60,null,60,null,410,null,660,null,560,null,390,null,200,null,160,null,80,null,10,null,0]
[null,null,null,"ESSEX",null,"E39000014",null,4000,0,null,0,null,0,null,140,null,970,null,1250,null,720,null,530,null,280,null,80,null,30,null,10,null,"~"]
[null,null,null,null,"NHS North East Essex ","E38000117","06T",3230,0,null,0,null,0,null,120,null,810,null,1000,null,580,null,410,null,220,null,60,null,20,null,"~",null,"~"]
[null,null,null,null,"NHS West Essex ","E38000197","07H",780,0,null,0,null,0,null,20,null,160,null,250,null,140,null,120,null,60,null,20,null,10,null,"~",null,0]
[null,null,null,"HERTFORDSHIRE AND THE SOUTH MIDLANDS",null,"E39000015",null,2340,0,null,"~",null,0,null,20,null,150,null,360,null,480,null,460,null,380,null,290,null,180,null,20,null,"~"]
[null,null,null,null,"NHS Bedfordshire ","E38000010","06F",1130,0,null,0,null,0,null,20,null,120,null,240,null,270,null,200,null,140,null,80,null,60,null,"~",null,0]
[null,null,null,null,"NHS Herts Valleys ","E38000079","06N",1210,0,null,"~",null,0,null,0,null,30,null,120,null,220,null,250,null,240,null,210,null,130,null,20,null,"~"]
[null,null,null,"LEICESTERSHIRE AND LINCOLNSHIRE",null,"E39000016",null,9690,400,null,320,null,170,null,180,null,1220,null,1930,null,1810,null,1640,null,970,null,690,null,300,null,50,null,10]
[null,null,null,null,"NHS East Leicestershire and Rutland ","E38000051","03W",2320,240,null,170,null,60,null,70,null,440,null,480,null,390,null,300,null,120,null,40,null,10,null,"~",null,"~"]
[null,null,null,null,"NHS Lincolnshire East ","E38000099","03T",2170,30,null,20,null,20,null,40,null,270,null,520,null,440,null,400,null,250,null,140,null,50,null,10,null,0]
[null,null,null,null,"NHS Lincolnshire West ","E38000100","04D",2840,0,null,0,null,0,null,20,null,240,null,520,null,600,null,590,null,380,null,340,null,150,null,20,null,0]
[null,null,null,null,"NHS South West Lincolnshire ","E38000165","04Q",2350,130,null,120,null,100,null,40,null,280,null,420,null,380,null,350,null,220,null,180,null,100,null,20,null,10]
[null,null,null,"SHROPSHIRE AND STAFFORDSHIRE",null,"E39000017",null,5880,170,null,100,null,50,null,370,null,1320,null,1250,null,930,null,780,null,440,null,280,null,140,null,40,null,"~"]
[null,null,null,null,"NHS Shropshire ","E38000147","05N",3510,170,null,100,null,50,null,240,null,780,null,700,null,500,null,420,null,250,null,180,null,90,null,30,null,"~"]
[null,null,null,null,"NHS South East Staffs and Seisdon and Peninsular","E38000153","05Q",840,0,null,0,null,0,null,90,null,200,null,120,null,130,null,110,null,80,null,60,null,50,null,10,null,"~"]
[null,null,null,null,"NHS Stafford and Surrounds ","E38000173","05V",1530,0,null,0,null,0,null,50,null,330,null,430,null,300,null,260,null,110,null,40,null,10,null,0,null,0]
[null,null,null,null,"NHS Telford & Wrekin ","E38000183","05X","~",0,null,0,null,0,null,0,null,0,null,0,null,0,null,0,null,0,null,"~",null,0,null,0,null,0]
[null,null,"LONDON",null,null,"E40000003",null,5090,120,null,70,null,30,null,220,null,820,null,1000,null,840,null,710,null,510,null,450,null,260,null,40,null,"~"]
[null,null,null,"LONDON",null,"E39000018",null,5090,120,null,70,null,30,null,220,null,820,null,1000,null,840,null,710,null,510,null,450,null,260,null,40,null,"~"]
[null,null,null,null,"NHS Central London (Westminster) ","E38000031","09A",400,0,null,0,null,0,null,30,null,140,null,110,null,60,null,40,null,20,null,10,null,0,null,0,null,0]
[null,null,null,null,"NHS Hillingdon ","E38000082","08G",1280,120,null,70,null,30,null,40,null,120,null,250,null,240,null,160,null,120,null,70,null,40,null,10,null,"~"]
[null,null,null,null,"NHS Hounslow ","E38000084","07Y",560,0,null,0,null,0,null,20,null,150,null,160,null,100,null,60,null,30,null,10,null,10,null,"~",null,0]
[null,null,null,null,"NHS Greenwich ","E38000066","08A",850,0,null,0,null,0,null,50,null,260,null,250,null,140,null,100,null,40,null,20,null,10,null,"~",null,0]
[null,null,null,null,"NHS Lambeth ","E38000092","08K",1990,0,null,0,null,0,null,80,null,150,null,230,null,300,null,350,null,310,null,330,null,200,null,30,null,"~"]
[null,null,"SOUTH OF ENGLAND",null,null,"E40000004",null,82780,2390,null,1620,null,870,null,4220,null,14420,null,18150,null,14610,null,11810,null,6930,null,4650,null,2650,null,400,null,40]
[null,null,null,"BATH, GLOUCESTERSHIRE, SWINDON AND WILTSHIRE",null,"E39000019",null,24470,1420,null,1020,null,520,null,1240,null,3990,null,4850,null,4260,null,3520,null,1920,null,1040,null,610,null,70,null,10]
[null,null,null,null,"NHS Gloucestershire ","E38000062","11M",2060,0,null,0,null,0,null,50,null,380,null,430,null,400,null,360,null,230,null,120,null,80,null,10,null,0]
[null,null,null,null,"NHS Swindon ","E38000181","12D",1100,0,null,0,null,0,null,0,null,"~",null,50,null,280,null,280,null,210,null,150,null,100,null,10,null,"~"]
[null,null,null,null,"NHS Wiltshire ","E38000206","99N",21310,1420,null,1020,null,520,null,1180,null,3600,null,4370,null,3570,null,2890,null,1480,null,770,null,430,null,50,null,10]
[null,null,null,"BRISTOL, NORTH SOMERSET, SOMERSET AND SOUTH GLOS",null,"E39000020",null,4650,0,null,0,null,0,null,70,null,600,null,980,null,840,null,770,null,520,null,500,null,330,null,40,null,"~"]
[null,null,null,null,"NHS Somerset ","E38000150","11X",3340,0,null,0,null,0,null,70,null,600,null,930,null,690,null,480,null,270,null,200,null,90,null,20,null,"~"]
[null,null,null,null,"NHS South Gloucestershire ","E38000155","12A",1310,0,null,0,null,0,null,0,null,10,null,50,null,150,null,290,null,250,null,300,null,240,null,20,null,"~"]
[null,null,null,"DEVON, CORNWALL AND ISLES OF SCILLY",null,"E39000021",null,12040,0,null,0,null,0,null,700,null,2670,null,3070,null,2100,null,1480,null,950,null,670,null,360,null,50,null,"~"]
[null,null,null,null,"NHS Kernow ","E38000089","11N",3170,0,null,0,null,0,null,340,null,640,null,680,null,540,null,380,null,270,null,180,null,110,null,10,null,"~"]
[null,null,null,null,"NHS North, East, West Devon ","E38000129","99P",8410,0,null,0,null,0,null,340,null,1810,null,2270,null,1510,null,1070,null,670,null,470,null,230,null,40,null,"~"]
[null,null,null,null,"NHS South Devon and Torbay","E38000152","99Q",470,0,null,0,null,0,null,20,null,220,null,120,null,40,null,30,null,10,null,20,null,10,null,"~",null,0]
[null,null,null,"KENT AND MEDWAY",null,"E39000022",null,1980,0,null,0,null,0,null,100,null,450,null,490,null,380,null,310,null,160,null,60,null,20,null,"~",null,"~"]
[null,null,null,null,"NHS Medway ","E38000104","09W",510,0,null,0,null,0,null,80,null,120,null,100,null,100,null,50,null,30,null,20,null,10,null,"~",null,0]
[null,null,null,null,"NHS South Kent Coast ","E38000156","10A",860,0,null,0,null,0,null,20,null,210,null,180,null,150,null,160,null,90,null,30,null,10,null,"~",null,0]
[null,null,null,null,"NHS West Kent ","E38000199","99J",610,0,null,0,null,0,null,10,null,120,null,200,null,130,null,100,null,40,null,10,null,"~",null,0,null,"~"]
[null,null,null,"SURREY AND SUSSEX",null,"E39000023",null,4300,190,null,110,null,70,null,500,null,880,null,1010,null,700,null,430,null,220,null,110,null,50,null,20,null,"~"]
[null,null,null,null,"NHS Coastal West Sussex ","E38000213","09G",920,0,null,0,null,0,null,20,null,210,null,260,null,210,null,140,null,60,null,10,null,"~",null,"~",null,"~"]
[null,null,null,null,"NHS North West Surrey ","E38000128","09Y",2640,190,null,110,null,70,null,380,null,560,null,620,null,360,null,180,null,80,null,50,null,20,null,"~",null,0]
[null,null,null,null,"NHS Surrey Downs ","E38000177","99H",150,0,null,0,null,0,null,"~",null,"~",null,20,null,40,null,40,null,20,null,10,null,10,null,"~",null,0]
[null,null,null,null,"NHS Surrey Heath ","E38000178","10C",590,0,null,0,null,0,null,100,null,100,null,110,null,90,null,70,null,60,null,40,null,20,null,10,null,0]
[null,null,null,"THAMES VALLEY",null,"E39000024",null,16160,780,null,490,null,280,null,650,null,2270,null,3220,null,2760,null,2490,null,1450,null,1030,null,600,null,110,null,10]
[null,null,null,null,"NHS Aylesbury Vale ","E38000003","10Y",3490,130,null,80,null,70,null,320,null,350,null,380,null,450,null,540,null,420,null,420,null,270,null,60,null,"~"]
[null,null,null,null,"NHS Bracknell and Ascot ","E38000017","10G",1940,150,null,100,null,50,null,50,null,470,null,410,null,250,null,210,null,110,null,70,null,50,null,10,null,"~"]
[null,null,null,null,"NHS Newbury and District ","E38000110","10M",320,0,null,0,null,0,null,"~",null,30,null,90,null,70,null,60,null,30,null,20,null,10,null,0,null,"~"]
[null,null,null,null,"NHS Oxfordshire ","E38000136","10Q",9380,500,null,310,null,160,null,270,null,1180,null,2020,null,1770,null,1540,null,830,null,510,null,260,null,40,null,"~"]
[null,null,null,null,"NHS Windsor, Ascot and Maidenhead ","E38000207","11C",1020,0,null,0,null,0,null,10,null,240,null,330,null,220,null,140,null,60,null,20,null,"~",null,"~",null,0]
[null,null,null,null,"NHS Wokingham ","E38000209","11D","~",0,null,0,null,0,null,0,null,0,null,"~",null,0,null,0,null,0,null,0,null,0,null,0,null,"~"]
[null,null,null,"WESSEX",null,"E39000025",null,19180,0,null,0,null,0,null,960,null,3560,null,4520,null,3570,null,2820,null,1700,null,1240,null,690,null,120,null,10]
[null,null,null,null,"NHS Fareham and Gosport ","E38000059","10K",3360,0,null,0,null,0,null,260,null,560,null,820,null,660,null,450,null,260,null,200,null,130,null,20,null,"~"]
[null,null,null,null,"NHS North East Hampshire and Farnham ","E38000118","99M",4920,0,null,0,null,0,null,290,null,1170,null,1240,null,880,null,720,null,380,null,170,null,60,null,"~",null,0]
[null,null,null,null,"NHS North Hampshire ","E38000120","10J",1770,0,null,0,null,0,null,20,null,270,null,460,null,440,null,290,null,160,null,80,null,40,null,10,null,0]
[null,null,null,null,"NHS Portsmouth ","E38000137","10R",6120,0,null,0,null,0,null,150,null,1000,null,1350,null,1090,null,890,null,630,null,580,null,350,null,60,null,10]
[null,null,null,null,"NHS South Eastern Hampshire ","E38000154","10V","~",0,null,0,null,0,null,0,null,0,null,0,null,0,null,0,null,0,null,0,null,0,null,0,null,"~"]
[null,null,null,null,"NHS West Hampshire ","E38000198","11A",3020,0,null,0,null,0,null,230,null,550,null,650,null,500,null,470,null,270,null,210,null,110,null,20,null,"~"]
[]
[null,"Source: DMICP Data Warehouse"]
[null,"1. In line with Joint Service Publication 200, numbers 5 or fewer have been supressed and presented as '~'."]
[null,"2. Due to rounding, please note that totals may not equal the sum of their parts."]
[null,"3. The presence of  +/- indicates percentage changes in figures over the last quarter.  + indicates there has been a 5% to 10% increase and - indicates there has been between a 5% to 10% decrease.  ++ indicates a greater than 10% increase and -- indicates a greater than 10% decrease."]
[null,"4. Age bands are based on age as at time of data extraction."]

{"sheet":"Table B1.3","index":7,"n_rows":103,"n_cols":28,"rows_kept":103,"cut":false,"hidden":false,"merged":[[5,2,5,3],[102,1,102,9],[101,1,101,20],[100,1,100,20],[99,1,99,20],[8,1,8,4]]}
[null,"Annex B1 - England, by NHS Clinical Commissioning Group"]
[]
[null,"Table B1.3: UK Armed Forces personnel DMS registrations, registered to NHS Clinical Commissioning Groups by age band, 1 April 2017, Numbers"]
[null,"Defence Statistics (Health)"]
[]
[null,null,"Return to contents"]
[]
[null,null,null,null,null,"NEW","OLD"]
[null,"Area Name",null,null,null,"Area Code","Area Code","All UK Armed Forces","16-19","+/-","20-24","+/-","25-29","+/-","30-34","+/-","35-39","+/-","40-44","+/-","45-49","+/-","50-54","+/-","55-59","+/-","60+","+/-"]
[null,"ENGLAND                            ",null,null,null,"E92000001",null,124640,7050,"+",23560,"",29420,"",22970,"",18650,"",11060,"",7290,"",3960,"",640,"+",50,"-"]
[null,null,"NORTH OF ENGLAND                        ",null,null,"E40000001",null,16390,2250,null,3440,null,4050,null,2780,null,1980,null,1080,null,520,null,220,null,50,null,"~"]
[null,null,null,"CHESHIRE, WARRINGTON AND WIRRAL",null,"E39000001",null,660,30,null,160,null,200,null,110,null,90,null,50,null,20,null,10,null,10,null,0]
[null,null,null,null,"NHS West Cheshire","E38000196","02F",660,30,null,160,null,200,null,110,null,90,null,50,null,20,null,10,null,10,null,0]
[null,null,null,"LANCASHIRE",null,"E39000004",null,990,40,null,220,null,280,null,180,null,120,null,80,null,40,null,20,null,"~",null,0]
[null,null,null,null,"NHS Fylde & Wyre","E38000060","02M",580,30,null,150,null,170,null,100,null,70,null,40,null,20,null,"~",null,"~",null,0]
[null,null,null,null,"NHS Greater Preston","E38000065","01E",410,"~",null,80,null,120,null,80,null,60,null,40,null,20,null,20,null,"~",null,0]
[null,null,null,"CUMBRIA, NORTHUMBERLAND, TYNE AND WEAR",null,"E39000006",null,1410,40,null,280,null,360,null,290,null,200,null,130,null,70,null,40,null,"~",null,0]
[null,null,null,null,"NHS Cumbria ","E38000041","01H",150,"~",null,10,null,30,null,40,null,20,null,20,null,10,null,10,null,"~",null,0]
[null,null,null,null,"NHS Northumberland ","E38000130","00L",1260,40,null,270,null,330,null,260,null,180,null,110,null,60,null,30,null,"~",null,0]
[null,null,null,"NORTH YORKSHIRE AND HUMBER                 ",null,"E39000007",null,13330,2140,null,2780,null,3210,null,2200,null,1570,null,840,null,390,null,160,null,30,null,"~"]
[null,null,null,null,"NHS East Riding of Yorkshire ","E38000052","02Y",400,90,null,80,null,50,null,50,null,60,null,40,null,20,null,10,null,"~",null,0]
[null,null,null,null,"NHS Hambleton, Richmondshire and Whitby ","E38000069","03D",8830,930,null,2150,null,2340,null,1530,null,1010,null,530,null,230,null,90,null,20,null,"~"]
[null,null,null,null,"NHS Harrogate and Rural District ","E38000073","03E",2810,1110,null,370,null,530,null,350,null,270,null,120,null,40,null,10,null,"~",null,"~"]
[null,null,null,null,"NHS Scarborough and Ryedale ","E38000145","03M",100,0,null,"~",null,20,null,20,null,20,null,10,null,20,null,"~",null,0,null,0]
[null,null,null,null,"NHS Vale of York ","E38000188","03Q",1190,10,null,180,null,270,null,240,null,220,null,140,null,80,null,40,null,10,null,"~"]
[null,null,"MIDLANDS AND EAST OF ENGLAND",null,null,"E40000002",null,29540,800,null,5220,null,7060,null,5700,null,4820,null,2900,null,1890,null,950,null,180,null,20]
[null,null,null,"ARDEN, HEREFORDSHIRE AND WORCESTERSHIRE",null,"E39000010",null,860,10,null,200,null,240,null,150,null,160,null,70,null,20,null,10,null,"~",null,0]
[null,null,null,null,"NHS Coventry and Rugby ","E38000038","05A",640,10,null,160,null,170,null,110,null,130,null,50,null,20,null,"~",null,"~",null,0]
[null,null,null,null,"NHS South Warwickshire ","E38000164","05R",220,"~",null,40,null,70,null,40,null,30,null,20,null,10,null,10,null,0,null,0]
[null,null,null,"BIRMINGHAM AND THE BLACK COUNTRY",null,"E39000011",null,620,10,null,80,null,140,null,140,null,100,null,60,null,40,null,30,null,10,null,0]
[null,null,null,null,"NHS Birmingham CrossCity ","E38000012","13P",620,10,null,80,null,140,null,140,null,100,null,60,null,40,null,30,null,10,null,0]
[null,null,null,"DERBYSHIRE AND NOTTINGHAMSHIRE",null,"E39000012",null,900,"~",null,60,null,120,null,160,null,190,null,160,null,150,null,40,null,10,null,0]
[null,null,null,null,"NHS Nottingham West ","E38000134","04M",900,"~",null,60,null,120,null,160,null,190,null,160,null,150,null,40,null,10,null,0]
[null,null,null,"EAST ANGLIA",null,"E39000013",null,7440,150,null,1340,null,2020,null,1490,null,1120,null,630,null,420,null,220,null,40,null,"~"]
[null,null,null,null,"NHS Cambridgeshire and Peterborough ","E38000026","06H",1760,10,null,220,null,440,null,340,null,290,null,210,null,150,null,80,null,20,null,"~"]
[null,null,null,null,"NHS Ipswich and East Suffolk ","E38000086","06L",3180,100,null,660,null,900,null,630,null,450,null,230,null,140,null,70,null,10,null,"~"]
[null,null,null,null,"NHS South Norfolk ","E38000159","06Y",380,10,null,110,null,110,null,80,null,60,null,20,null,"~",null,0,null,"~",null,0]
[null,null,null,null,"NHS West Norfolk ","E38000203","07J",2120,30,null,360,null,570,null,450,null,330,null,170,null,130,null,70,null,10,null,0]
[null,null,null,"ESSEX",null,"E39000014",null,4000,140,null,970,null,1250,null,720,null,530,null,280,null,80,null,30,null,10,null,"~"]
[null,null,null,null,"NHS North East Essex ","E38000117","06T",3230,120,null,810,null,1000,null,580,null,410,null,220,null,60,null,20,null,"~",null,"~"]
[null,null,null,null,"NHS West Essex ","E38000197","07H",780,20,null,160,null,250,null,140,null,120,null,60,null,20,null,10,null,"~",null,0]
[null,null,null,"HERTFORDSHIRE AND THE SOUTH MIDLANDS",null,"E39000015",null,2330,20,null,150,null,360,null,480,null,450,null,380,null,290,null,180,null,20,null,"~"]
[null,null,null,null,"NHS Bedfordshire ","E38000010","06F",1130,20,null,120,null,240,null,270,null,200,null,140,null,80,null,60,null,"~",null,0]
[null,null,null,null,"NHS Herts Valleys ","E38000079","06N",1200,0,null,30,null,120,null,220,null,250,null,240,null,210,null,130,null,20,null,"~"]
[null,null,null,"LEICESTERSHIRE AND LINCOLNSHIRE",null,"E39000016",null,8190,130,null,1160,null,1800,null,1690,null,1520,null,910,null,650,null,290,null,50,null,10]
[null,null,null,null,"NHS East Leicestershire and Rutland ","E38000051","03W",1540,50,null,390,null,390,null,320,null,240,null,110,null,30,null,10,null,"~",null,0]
[null,null,null,null,"NHS Lincolnshire East ","E38000099","03T",2070,40,null,270,null,510,null,430,null,390,null,240,null,130,null,40,null,10,null,0]
[null,null,null,null,"NHS Lincolnshire West ","E38000100","04D",2840,20,null,240,null,520,null,600,null,590,null,370,null,340,null,150,null,20,null,0]
[null,null,null,null,"NHS South West Lincolnshire ","E38000165","04Q",1740,20,null,260,null,380,null,340,null,290,null,190,null,150,null,80,null,20,null,10]
[null,null,null,"SHROPSHIRE AND STAFFORDSHIRE",null,"E39000017",null,5180,340,null,1250,null,1150,null,860,null,740,null,410,null,260,null,140,null,40,null,"~"]
[null,null,null,null,"NHS Shropshire ","E38000147","05N",2810,210,null,720,null,590,null,430,null,370,null,220,null,160,null,80,null,20,null,"~"]
[null,null,null,null,"NHS South East Staffs and Seisdon and Peninsular","E38000153","05Q",840,90,null,200,null,120,null,130,null,110,null,80,null,60,null,50,null,10,null,"~"]
[null,null,null,null,"NHS Stafford and Surrounds ","E38000173","05V",1530,50,null,330,null,430,null,300,null,260,null,110,null,40,null,10,null,0,null,0]
[null,null,null,null,"NHS Telford & Wrekin ","E38000183","05X","~",0,null,0,null,0,null,0,null,0,null,0,null,"~",null,0,null,0,null,0]
[null,null,"LONDON",null,null,"E40000003",null,4620,190,null,800,null,960,null,780,null,680,null,480,null,430,null,260,null,40,null,"~"]
[null,null,null,"LONDON",null,"E39000018",null,4620,190,null,800,null,960,null,780,null,680,null,480,null,430,null,260,null,40,null,"~"]
[null,null,null,null,"NHS Central London (Westminster) ","E38000031","09A",400,30,null,140,null,110,null,60,null,40,null,20,null,10,null,0,null,0,null,0]
[null,null,null,null,"NHS Hillingdon ","E38000082","08G",820,10,null,100,null,210,null,180,null,130,null,90,null,60,null,40,null,10,null,"~"]
[null,null,null,null,"NHS Hounslow ","E38000084","07Y",560,20,null,150,null,160,null,100,null,60,null,30,null,10,null,10,null,"~",null,0]
[null,null,null,null,"NHS Greenwich ","E38000066","08A",850,50,null,260,null,250,null,140,null,100,null,40,null,20,null,10,null,"~",null,0]
[null,null,null,null,"NHS Lambeth ","E38000092","08K",1990,80,null,150,null,230,null,300,null,350,null,310,null,330,null,200,null,30,null,"~"]
[null,null,"SOUTH OF ENGLAND",null,null,"E40000004",null,74100,3810,null,14100,null,17350,null,13700,null,11170,null,6590,null,4440,null,2540,null,370,null,30]
[null,null,null,"BATH, GLOUCESTERSHIRE, SWINDON AND WILTSHIRE",null,"E39000019",null,19410,1030,null,3780,null,4370,null,3730,null,3140,null,1760,null,960,null,570,null,60,null,10]
[null,null,null,null,"NHS Gloucestershire ","E38000062","11M",2060,50,null,380,null,430,null,400,null,360,null,230,null,120,null,80,null,10,null,0]
[null,null,null,null,"NHS Swindon ","E38000181","12D",1100,0,null,"~",null,50,null,280,null,280,null,210,null,150,null,100,null,10,null,0]
[null,null,null,null,"NHS Wiltshire ","E38000206","99N",16250,980,null,3400,null,3880,null,3040,null,2510,null,1310,null,690,null,390,null,50,null,10]
[null,null,null,"BRISTOL, NORTH SOMERSET, SOMERSET AND SOUTH GLOS",null,"E39000020",null,4650,70,null,600,null,980,null,840,null,770,null,520,null,500,null,330,null,40,null,"~"]
[null,null,null,null,"NHS Somerset ","E38000150","11X",3340,70,null,600,null,930,null,690,null,480,null,270,null,200,null,90,null,20,null,"~"]
[null,null,null,null,"NHS South Gloucestershire ","E38000155","12A",1310,0,null,10,null,50,null,150,null,290,null,250,null,300,null,240,null,20,null,"~"]
[null,null,null,"DEVON, CORNWALL AND ISLES OF SCILLY",null,"E39000021",null,12010,690,null,2670,null,3070,null,2090,null,1470,null,940,null,670,null,350,null,50,null,"~"]
[null,null,null,null,"NHS Kernow ","E38000089","11N",3170,340,null,640,null,680,null,540,null,380,null,270,null,180,null,110,null,10,null,"~"]
[null,null,null,null,"NHS North, East, West Devon ","E38000129","99P",8370,330,null,1810,null,2270,null,1500,null,1070,null,660,null,470,null,220,null,40,null,0]
[null,null,null,null,"NHS South Devon and Torbay","E38000152","99Q",470,20,null,220,null,120,null,40,null,30,null,10,null,20,null,10,null,"~",null,0]
[null,null,null,"KENT AND MEDWAY",null,"E39000022",null,1970,100,null,450,null,490,null,380,null,310,null,160,null,60,null,20,null,"~",null,0]
[null,null,null,null,"NHS Medway ","E38000104","09W",510,80,null,120,null,100,null,100,null,50,null,30,null,20,null,10,null,"~",null,0]
[null,null,null,null,"NHS South Kent Coast ","E38000156","10A",860,20,null,210,null,180,null,150,null,160,null,90,null,30,null,10,null,"~",null,0]
[null,null,null,null,"NHS West Kent ","E38000199","99J",610,10,null,120,null,200,null,130,null,100,null,40,null,10,null,"~",null,0,null,0]
[null,null,null,"SURREY AND SUSSEX",null,"E39000023",null,3620,480,null,850,null,920,null,620,null,390,null,200,null,100,null,50,null,20,null,0]
[null,null,null,null,"NHS Coastal West Sussex ","E38000213","09G",920,20,null,210,null,260,null,210,null,140,null,60,null,10,null,"~",null,"~",null,0]
[null,null,null,null,"NHS North West Surrey ","E38000128","09Y",1960,360,null,530,null,530,null,280,null,150,null,60,null,40,null,20,null,"~",null,0]
[null,null,null,null,"NHS Surrey Downs ","E38000177","99H",150,"~",null,0,null,20,null,40,null,40,null,20,null,10,null,10,null,"~",null,0]
[null,null,null,null,"NHS Surrey Heath ","E38000178","10C",580,100,null,100,null,110,null,90,null,60,null,60,null,40,null,20,null,10,null,0]
[null,null,null,"THAMES VALLEY",null,"E39000024",null,13290,480,null,2180,null,2990,null,2480,null,2270,null,1310,null,920,null,540,null,90,null,10]
[null,null,null,null,"NHS Aylesbury Vale ","E38000003","10Y",2980,280,null,350,null,350,null,410,null,510,null,390,null,380,null,250,null,60,null,"~"]
[null,null,null,null,"NHS Bracknell and Ascot ","E38000017","10G",1290,10,null,440,null,350,null,180,null,160,null,70,null,50,null,40,null,"~",null,"~"]
[null,null,null,null,"NHS Newbury and District ","E38000110","10M",320,"~",null,30,null,90,null,70,null,60,null,30,null,20,null,10,null,0,null,"~"]
[null,null,null,null,"NHS Oxfordshire ","E38000136","10Q",7680,170,null,1130,null,1880,null,1600,null,1410,null,760,null,460,null,240,null,30,null,"~"]
[null,null,null,null,"NHS Windsor, Ascot and Maidenhead ","E38000207","11C",1020,10,null,240,null,330,null,220,null,140,null,60,null,20,null,"~",null,"~",null,0]
[null,null,null,null,"NHS Wokingham ","E38000209","11D","~",0,null,0,null,"~",null,0,null,0,null,0,null,0,null,0,null,0,null,0]
[null,null,null,"WESSEX",null,"E39000025",null,19150,960,null,3550,null,4520,null,3570,null,2810,null,1700,null,1230,null,680,null,110,null,10]
[null,null,null,null,"NHS Fareham and Gosport ","E38000059","10K",3360,260,null,560,null,820,null,660,null,450,null,260,null,200,null,130,null,20,null,"~"]
[null,null,null,null,"NHS North East Hampshire and Farnham ","E38000118","99M",4920,290,null,1170,null,1240,null,880,null,720,null,380,null,170,null,60,null,"~",null,0]
[null,null,null,null,"NHS North Hampshire ","E38000120","10J",1760,20,null,270,null,460,null,440,null,290,null,160,null,80,null,40,null,10,null,0]
[null,null,null,null,"NHS Portsmouth ","E38000137","10R",6100,150,null,1000,null,1350,null,1090,null,890,null,630,null,580,null,340,null,60,null,"~"]
[null,null,null,null,"NHS South Eastern Hampshire ","E38000154","10V","~",0,null,0,null,0,null,0,null,0,null,0,null,0,null,0,null,0,null,"~"]
[null,null,null,null,"NHS West Hampshire ","E38000198","11A",3010,230,null,550,null,650,null,500,null,470,null,270,null,210,null,110,null,20,null,"~"]
[]
[]
[null,"Source: DMICP Data Warehouse"]
[null,"1. In line with Joint Service Publication 200, numbers 5 or fewer have been supressed and presented as '~'."]
[null,"2. Due to rounding, please note that totals may not equal the sum of their parts."]
[null,"3. The presence of  +/- indicates percentage changes in figures over the last quarter.  + indicates there has been a 5% to 10% increase and - indicates there has been between a 5% to 10% decrease.  ++ indicates a greater than 10% increase and -- indicates a greater than 10% decrease."]
[null,"4. Age bands are based on age as at time of data extraction."]

{"sheet":"Table B1.4","index":8,"n_rows":103,"n_cols":34,"rows_kept":103,"cut":false,"hidden":false,"merged":[[8,1,8,4],[5,2,5,3],[99,1,99,21],[100,1,100,21],[101,1,101,21]]}
[null,"Annex B1 - England, by NHS Clinical Commissioning Group"]
[]
[null,"Table B1.4: Entitled civilian personnel DMS registrations, registered to NHS Clinical Commissioning Groups by age band, 1 April 2017, Numbers"]
[null,"Defence Statistics (Health)"]
[]
[null,null,"Return to contents"]
[]
[null,null,null,null,null,"NEW","OLD"]
[null,"Area Name",null,null,null,"Area Code","Area Code","All Civilians","0-4","+/-","5-9","+/-","10-14","+/-","15-19","+/-","20-24","+/-","25-29","+/-","30-34","+/-","35-39","+/-","40-44","+/-","45-49","+/-","50-54","+/-","55-59","+/-","60+","+/-"]
[null,"ENGLAND                            ",null,null,null,"E92000001",null,14530,4010,"",2740,"",1420,"",660,"",580,"",1380,"",1480,"",1090,"",570,"",370,"",180,"",50,"",20,"++"]
[null,"NORTH OF ENGLAND                        ",null,null,null,"E40000001",null,1720,510,null,340,null,180,null,70,null,50,null,160,null,160,null,140,null,60,null,30,null,20,null,"~",null,0]
[null,null,null,"CHESHIRE, WARRINGTON AND WIRRAL",null,"E39000001",null,0,0,null,0,null,0,null,0,null,0,null,0,null,0,null,0,null,0,null,0,null,0,null,0,null,0]
[null,null,null,null,"NHS West Cheshire","E38000196","02F",0,0,null,0,null,0,null,0,null,0,null,0,null,0,null,0,null,0,null,0,null,0,null,0,null,0]
[null,null,null,"LANCASHIRE",null,"E39000004",null,0,0,null,0,null,0,null,0,null,0,null,0,null,0,null,0,null,0,null,0,null,0,null,0,null,0]
[null,null,null,null,"NHS Fylde & Wyre","E38000060","02M",0,0,null,0,null,0,null,0,null,0,null,0,null,0,null,0,null,0,null,0,null,0,null,0,null,0]
[null,null,null,null,"NHS Greater Preston","E38000065","01E",0,0,null,0,null,0,null,0,null,0,null,0,null,0,null,0,null,0,null,0,null,0,null,0,null,0]
[null,null,null,"CUMBRIA, NORTHUMBERLAND, TYNE AND WEAR",null,"E39000006",null,0,0,null,0,null,0,null,0,null,0,null,0,null,0,null,0,null,0,null,0,null,0,null,0,null,0]
[null,null,null,null,"NHS Cumbria ","E38000041","01H",0,0,null,0,null,0,null,0,null,0,null,0,null,0,null,0,null,0,null,0,null,0,null,0,null,0]
[null,null,null,null,"NHS Northumberland ","E38000130","00L",0,0,null,0,null,0,null,0,null,0,null,0,null,0,null,0,null,0,null,0,null,0,null,0,null,0]
[null,null,null,"NORTH YORKSHIRE AND HUMBER                 ",null,"E39000007",null,1720,510,null,340,null,180,null,70,null,50,null,160,null,160,null,140,null,60,null,30,null,20,null,"~",null,0]
[null,null,null,null,"NHS East Riding of Yorkshire ","E38000052","02Y",0,0,null,0,null,0,null,0,null,0,null,0,null,0,null,0,null,0,null,0,null,0,null,0,null,0]
[null,null,null,null,"NHS Hambleton, Richmondshire and Whitby ","E38000069","03D",1530,450,null,300,null,160,null,60,null,40,null,140,null,140,null,120,null,50,null,30,null,20,null,"~",null,0]
[null,null,null,null,"NHS Harrogate and Rural District ","E38000073","03E","~",0,null,0,null,0,null,0,null,0,null,0,null,"~",null,0,null,0,null,0,null,0,null,0,null,0]
[null,null,null,null,"NHS Scarborough and Ryedale ","E38000145","03M",0,0,null,0,null,0,null,0,null,0,null,0,null,0,null,0,null,0,null,0,null,0,null,0,null,0]
[null,null,null,null,"NHS Vale of York ","E38000188","03Q",190,60,null,30,null,20,null,10,null,"~",null,10,null,20,null,20,null,10,null,"~",null,"~",null,"~",null,0]
[null,"MIDLANDS AND EAST OF ENGLAND",null,null,null,"E40000002",null,3670,990,null,710,null,340,null,150,null,200,null,380,null,340,null,270,null,140,null,110,null,30,null,10,null,"~"]
[null,null,null,"ARDEN, HEREFORDSHIRE AND WORCESTERSHIRE",null,"E39000010",null,0,0,null,0,null,0,null,0,null,0,null,0,null,0,null,0,null,0,null,0,null,0,null,0,null,0]
[null,null,null,null,"NHS Coventry and Rugby ","E38000038","05A",0,0,null,0,null,0,null,0,null,0,null,0,null,0,null,0,null,0,null,0,null,0,null,0,null,0]
[null,null,null,null,"NHS South Warwickshire ","E38000164","05R",0,0,null,0,null,0,null,0,null,0,null,0,null,0,null,0,null,0,null,0,null,0,null,0,null,0]
[null,null,null,"BIRMINGHAM AND THE BLACK COUNTRY",null,"E39000011",null,0,0,null,0,null,0,null,0,null,0,null,0,null,0,null,0,null,0,null,0,null,0,null,0,null,0]
[null,null,null,null,"NHS Birmingham CrossCity ","E38000012","13P",0,0,null,0,null,0,null,0,null,0,null,0,null,0,null,0,null,0,null,0,null,0,null,0,null,0]
[null,null,null,"DERBYSHIRE AND NOTTINGHAMSHIRE",null,"E39000012",null,"~",0,null,0,null,0,null,0,null,0,null,0,null,0,null,0,null,0,null,0,null,"~",null,0,null,0]
[null,null,null,null,"NHS Nottingham West ","E38000134","04M","~",0,null,0,null,0,null,0,null,0,null,0,null,0,null,0,null,0,null,0,null,"~",null,0,null,0]
[null,null,null,"EAST ANGLIA",null,"E39000013",null,1460,420,null,290,null,120,null,60,null,70,null,140,null,160,null,100,null,50,null,50,null,10,null,"~",null,"~"]
[null,null,null,null,"NHS Cambridgeshire and Peterborough ","E38000026","06H",500,120,null,110,null,60,null,40,null,20,null,40,null,40,null,40,null,20,null,20,null,"~",null,"~",null,0]
[null,null,null,null,"NHS Ipswich and East Suffolk ","E38000086","06L",10,0,null,"~",null,0,null,0,null,"~",null,"~",null,0,null,0,null,0,null,0,null,"~",null,0,null,0]
[null,null,null,null,"NHS South Norfolk ","E38000159","06Y","~",0,null,0,null,0,null,0,null,0,null,0,null,0,null,0,null,0,null,0,null,0,null,0,null,"~"]
[null,null,null,null,"NHS West Norfolk ","E38000203","07J",950,300,null,180,null,60,null,30,null,50,null,100,null,110,null,60,null,30,null,30,null,"~",null,"~",null,0]
[null,null,null,"ESSEX",null,"E39000014",null,"~",0,null,0,null,0,null,0,null,0,null,"~",null,0,null,0,null,0,null,0,null,0,null,0,null,0]
[null,null,null,null,"NHS North East Essex ","E38000117","06T","~",0,null,0,null,0,null,0,null,0,null,"~",null,0,null,0,null,0,null,0,null,0,null,0,null,0]
[null,null,null,null,"NHS West Essex ","E38000197","07H",0,0,null,0,null,0,null,0,null,0,null,0,null,0,null,0,null,0,null,0,null,0,null,0,null,0]
[null,null,null,"HERTFORDSHIRE AND THE SOUTH MIDLANDS",null,"E39000015",null,10,0,null,"~",null,0,null,0,null,0,null,"~",null,"~",null,"~",null,0,null,"~",null,"~",null,"~",null,0]
[null,null,null,null,"NHS Bedfordshire ","E38000010","06F","~",0,null,0,null,0,null,0,null,0,null,0,null,"~",null,0,null,0,null,0,null,0,null,0,null,0]
[null,null,null,null,"NHS Herts Valleys ","E38000079","06N",10,0,null,"~",null,0,null,0,null,0,null,"~",null,0,null,"~",null,0,null,"~",null,"~",null,"~",null,0]
[null,null,null,"LEICESTERSHIRE AND LINCOLNSHIRE",null,"E39000016",null,1500,400,null,320,null,170,null,50,null,60,null,130,null,120,null,120,null,60,null,40,null,10,null,"~",null,"~"]
[null,null,null,null,"NHS East Leicestershire and Rutland ","E38000051","03W",780,240,null,170,null,60,null,20,null,50,null,90,null,70,null,60,null,20,null,10,null,"~",null,0,null,"~"]
[null,null,null,null,"NHS Lincolnshire East ","E38000099","03T",110,30,null,20,null,20,null,10,null,"~",null,10,null,"~",null,"~",null,10,null,10,null,"~",null,0,null,0]
[null,null,null,null,"NHS Lincolnshire West ","E38000100","04D","~",0,null,0,null,0,null,"~",null,0,null,0,null,0,null,0,null,"~",null,0,null,0,null,0,null,0]
[null,null,null,null,"NHS South West Lincolnshire ","E38000165","04Q",610,130,null,120,null,100,null,20,null,10,null,40,null,50,null,60,null,40,null,30,null,10,null,"~",null,"~"]
[null,null,null,"SHROPSHIRE AND STAFFORDSHIRE",null,"E39000017",null,700,170,null,100,null,50,null,30,null,70,null,100,null,70,null,50,null,30,null,20,null,10,null,"~",null,0]
[null,null,null,null,"NHS Shropshire ","E38000147","05N",700,170,null,100,null,50,null,30,null,70,null,100,null,70,null,50,null,30,null,20,null,10,null,"~",null,0]
[null,null,null,null,"NHS South East Staffs and Seisdon and Peninsular","E38000153","05Q",0,0,null,0,null,0,null,0,null,0,null,0,null,0,null,0,null,0,null,0,null,0,null,0,null,0]
[null,null,null,null,"NHS Stafford and Surrounds ","E38000173","05V",0,0,null,0,null,0,null,0,null,0,null,0,null,0,null,0,null,0,null,0,null,0,null,0,null,0]
[null,null,null,null,"NHS Telford & Wrekin ","E38000183","05X",0,0,null,0,null,0,null,0,null,0,null,0,null,0,null,0,null,0,null,0,null,0,null,0,null,0]
[null,"LONDON",null,null,null,"E40000003",null,460,120,null,70,null,30,null,30,null,20,null,40,null,60,null,30,null,30,null,20,null,"~",null,0,null,0]
[null,null,null,"LONDON",null,"E39000018",null,460,120,null,70,null,30,null,30,null,20,null,40,null,60,null,30,null,30,null,20,null,"~",null,0,null,0]
[null,null,null,null,"NHS Central London (Westminster) ","E38000031","09A",0,0,null,0,null,0,null,0,null,0,null,0,null,0,null,0,null,0,null,0,null,0,null,0,null,0]
[null,null,null,null,"NHS Hillingdon ","E38000082","08G",460,120,null,70,null,30,null,30,null,20,null,40,null,60,null,30,null,30,null,20,null,"~",null,0,null,0]
[null,null,null,null,"NHS Hounslow ","E38000084","07Y",0,0,null,0,null,0,null,0,null,0,null,0,null,0,null,0,null,0,null,0,null,0,null,0,null,0]
[null,null,null,null,"NHS Greenwich ","E38000066","08A","~",0,null,0,null,0,null,0,null,0,null,0,null,0,null,0,null,"~",null,0,null,0,null,0,null,0]
[null,null,null,null,"NHS Lambeth ","E38000092","08K","~",0,null,0,null,0,null,0,null,0,null,"~",null,0,null,0,null,0,null,0,null,0,null,0,null,0]
[null,"SOUTH OF ENGLAND",null,null,null,"E40000004",null,8680,2390,null,1620,null,870,null,410,null,320,null,800,null,910,null,650,null,340,null,210,null,120,null,30,null,20]
[null,null,null,"BATH, GLOUCESTERSHIRE, SWINDON AND WILTSHIRE",null,"E39000019",null,5060,1420,null,1020,null,520,null,200,null,200,null,480,null,530,null,380,null,170,null,80,null,40,null,10,null,"~"]
[null,null,null,null,"NHS Gloucestershire ","E38000062","11M",0,0,null,0,null,0,null,0,null,0,null,0,null,0,null,0,null,0,null,0,null,0,null,0,null,0]
[null,null,null,null,"NHS Swindon ","E38000181","12D","~",0,null,0,null,0,null,0,null,0,null,0,null,0,null,0,null,0,null,0,null,0,null,0,null,"~"]
[null,null,null,null,"NHS Wiltshire ","E38000206","99N",5060,1420,null,1020,null,520,null,200,null,200,null,480,null,530,null,380,null,170,null,80,null,40,null,10,null,"~"]
[null,null,null,"BRISTOL, NORTH SOMERSET, SOMERSET AND SOUTH GLOS",null,"E39000020",null,"~",0,null,0,null,0,null,0,null,0,null,0,null,0,null,0,null,0,null,0,null,0,null,"~",null,0]
[null,null,null,null,"NHS Somerset ","E38000150","11X","~",0,null,0,null,0,null,0,null,0,null,0,null,0,null,0,null,0,null,0,null,0,null,"~",null,0]
[null,null,null,null,"NHS South Gloucestershire ","E38000155","12A",0,0,null,0,null,0,null,0,null,0,null,0,null,0,null,0,null,0,null,0,null,0,null,0,null,0]
[null,null,null,"DEVON, CORNWALL AND ISLES OF SCILLY",null,"E39000021",null,40,0,null,0,null,0,null,"~",null,0,null,"~",null,10,null,"~",null,10,null,"~",null,10,null,"~",null,"~"]
[null,null,null,null,"NHS Kernow ","E38000089","11N","~",0,null,0,null,0,null,0,null,0,null,0,null,"~",null,0,null,0,null,0,null,0,null,0,null,0]
[null,null,null,null,"NHS North, East, West Devon ","E38000129","99P",40,0,null,0,null,0,null,"~",null,0,null,"~",null,10,null,"~",null,10,null,"~",null,10,null,"~",null,"~"]
[null,null,null,null,"NHS South Devon and Torbay","E38000152","99Q",0,0,null,0,null,0,null,0,null,0,null,0,null,0,null,0,null,0,null,0,null,0,null,0,null,0]
[null,null,null,"KENT AND MEDWAY",null,"E39000022",null,"~",0,null,0,null,0,null,0,null,0,null,0,null,0,null,0,null,0,null,0,null,0,null,0,null,"~"]
[null,null,null,null,"NHS Medway ","E38000104","09W",0,0,null,0,null,0,null,0,null,0,null,0,null,0,null,0,null,0,null,0,null,0,null,0,null,0]
[null,null,null,null,"NHS South Kent Coast ","E38000156","10A",0,0,null,0,null,0,null,0,null,0,null,0,null,0,null,0,null,0,null,0,null,0,null,0,null,0]
[null,null,null,null,"NHS West Kent ","E38000199","99J","~",0,null,0,null,0,null,0,null,0,null,0,null,0,null,0,null,0,null,0,null,0,null,0,null,"~"]
[null,null,null,"SURREY AND SUSSEX",null,"E39000023",null,680,190,null,110,null,70,null,30,null,30,null,90,null,80,null,40,null,20,null,10,null,"~",null,0,null,"~"]
[null,null,null,null,"NHS Coastal West Sussex ","E38000213","09G","~",0,null,0,null,0,null,0,null,0,null,0,null,0,null,0,null,0,null,0,null,0,null,0,null,"~"]
[null,null,null,null,"NHS North West Surrey ","E38000128","09Y",680,190,null,110,null,70,null,30,null,30,null,90,null,80,null,40,null,20,null,10,null,"~",null,0,null,0]
[null,null,null,null,"NHS Surrey Downs ","E38000177","99H","~",0,null,0,null,0,null,0,null,"~",null,0,null,0,null,0,null,0,null,0,null,0,null,0,null,0]
[null,null,null,null,"NHS Surrey Heath ","E38000178","10C","~",0,null,0,null,0,null,0,null,0,null,0,null,0,null,"~",null,0,null,0,null,0,null,0,null,0]
[null,null,null,"THAMES VALLEY",null,"E39000024",null,2870,780,null,490,null,280,null,180,null,80,null,230,null,280,null,220,null,140,null,100,null,60,null,20,null,10]
[null,null,null,null,"NHS Aylesbury Vale ","E38000003","10Y",520,130,null,80,null,70,null,40,null,"~",null,30,null,40,null,40,null,30,null,30,null,20,null,"~",null,"~"]
[null,null,null,null,"NHS Bracknell and Ascot ","E38000017","10G",640,150,null,100,null,50,null,40,null,30,null,60,null,70,null,50,null,40,null,20,null,10,null,"~",null,"~"]
[null,null,null,null,"NHS Newbury and District ","E38000110","10M",0,0,null,0,null,0,null,0,null,0,null,0,null,0,null,0,null,0,null,0,null,0,null,0,null,0]
[null,null,null,null,"NHS Oxfordshire ","E38000136","10Q",1710,500,null,310,null,160,null,100,null,50,null,140,null,170,null,130,null,60,null,50,null,20,null,10,null,"~"]
[null,null,null,null,"NHS Windsor, Ascot and Maidenhead ","E38000207","11C","~",0,null,0,null,0,null,0,null,0,null,0,null,"~",null,0,null,0,null,0,null,0,null,0,null,0]
[null,null,null,null,"NHS Wokingham ","E38000209","11D","~",0,null,0,null,0,null,0,null,0,null,0,null,0,null,0,null,0,null,0,null,0,null,0,null,"~"]
[null,null,null,"WESSEX",null,"E39000025",null,30,0,null,0,null,0,null,0,null,"~",null,0,null,"~",null,"~",null,"~",null,"~",null,10,null,"~",null,"~"]
[null,null,null,null,"NHS Fareham and Gosport ","E38000059","10K","~",0,null,0,null,0,null,0,null,0,null,0,null,0,null,0,null,0,null,0,null,0,null,"~",null,0]
[null,null,null,null,"NHS North East Hampshire and Farnham ","E38000118","99M",0,0,null,0,null,0,null,0,null,0,null,0,null,0,null,0,null,0,null,0,null,0,null,0,null,0]
[null,null,null,null,"NHS North Hampshire ","E38000120","10J","~",0,null,0,null,0,null,0,null,0,null,0,null,0,null,"~",null,0,null,"~",null,0,null,0,null,0]
[null,null,null,null,"NHS Portsmouth ","E38000137","10R",30,0,null,0,null,0,null,0,null,"~",null,0,null,"~",null,"~",null,"~",null,"~",null,10,null,"~",null,"~"]
[null,null,null,null,"NHS South Eastern Hampshire ","E38000154","10V",0,0,null,0,null,0,null,0,null,0,null,0,null,0,null,0,null,0,null,0,null,0,null,0,null,0]
[null,null,null,null,"NHS West Hampshire ","E38000198","11A","~",0,null,0,null,0,null,0,null,"~",null,0,null,0,null,0,null,"~",null,0,null,0,null,0,null,0]
[]
[]
[null,"Source: DMICP Data Warehouse"]
[null,"1. In line with Joint Service Publication 200, numbers 5 or fewer have been supressed and presented as '~'."]
[null,"2. Due to rounding, please note that totals may not equal the sum of their parts."]
[null,"3. The presence of  +/- indicates percentage changes in figures over the last quarter.  + indicates there has been a 5% to 10% increase and - indicates there has been between a 5% to 10% decrease.  ++ indicates a greater than 10% increase and -- indicates a greater than 10% decrease."]
[null,"4. Age bands are based on age as at time of data extraction."]

{"sheet":"Table B1.5","index":9,"n_rows":103,"n_cols":25,"rows_kept":103,"cut":false,"hidden":false,"merged":[[5,2,5,3],[8,1,8,4],[7,19,7,24],[7,13,7,18],[101,1,101,19],[100,1,100,19],[99,1,99,19]]}
[null,"Annex B1 - England, by NHS Clinical Commissioning Group"]
[]
[null,"Table B1.5: UK Armed Forces personnel and entitled civilian personnel DMS registrations, registered to NHS Clinical Commissioning Groups by gender, 1 April 2017, Numbers"]
[null,"Defence Statistics (Health)"]
[]
[null,null,"Return to contents"]
[]
[null,null,null,null,null,"NEW","OLD",null,null,"All Persons",null,null,null,"UK Armed Forces",null,null,null,null,null,"Civilian"]
[null,"Area Name",null,null,null,"Area Code","Area Code","All","+/-","Male","+/-","Female","+/-","All","+/-","Male","+/-","Female","+/-","All","+/-","Male","+/-","Female","+/-"]
[null,"ENGLAND                            ",null,null,null,"E92000001",null,139180,"",116050,"",23120,"",124640,"",111070,"",13580,"",14530,"",4980,"",9550,""]
[null,null,"NORTH OF ENGLAND                        ",null,null,"E40000001",null,18110,null,15590,null,2510,null,16390,null,15000,null,1390,null,1720,null,600,null,1120]
[null,null,null,"CHESHIRE, WARRINGTON AND WIRRAL",null,"E39000001",null,660,null,620,null,40,null,660,null,620,null,40,null,0,null,0,null,0]
[null,null,null,null,"NHS West Cheshire","E38000196","02F",660,null,620,null,40,null,660,null,620,null,40,null,0,null,0,null,0]
[null,null,null,"LANCASHIRE",null,"E39000004",null,990,null,880,null,100,null,990,null,880,null,100,null,0,null,0,null,0]
[null,null,null,null,"NHS Fylde & Wyre","E38000060","02M",580,null,560,null,20,null,580,null,560,null,20,null,0,null,0,null,0]
[null,null,null,null,"NHS Greater Preston","E38000065","01E",410,null,330,null,80,null,410,null,330,null,80,null,0,null,0,null,0]
[null,null,null,"CUMBRIA, NORTHUMBERLAND, TYNE AND WEAR",null,"E39000006",null,1410,null,1280,null,130,null,1410,null,1280,null,130,null,0,null,0,null,0]
[null,null,null,null,"NHS Cumbria ","E38000041","01H",150,null,140,null,10,null,150,null,140,null,10,null,0,null,0,null,0]
[null,null,null,null,"NHS Northumberland ","E38000130","00L",1260,null,1140,null,120,null,1260,null,1140,null,120,null,0,null,0,null,0]
[null,null,null,"NORTH YORKSHIRE AND HUMBER                 ",null,"E39000007",null,15050,null,12800,null,2250,null,13330,null,12210,null,1130,null,1720,null,600,null,1120]
[null,null,null,null,"NHS East Riding of Yorkshire ","E38000052","02Y",400,null,360,null,40,null,400,null,360,null,40,null,0,null,0,null,0]
[null,null,null,null,"NHS Hambleton, Richmondshire and Whitby ","E38000069","03D",10360,null,8700,null,1660,null,8830,null,8160,null,670,null,1530,null,540,null,990]
[null,null,null,null,"NHS Harrogate and Rural District ","E38000073","03E",2810,null,2560,null,250,null,2810,null,2560,null,250,null,"~",null,0,null,"~"]
[null,null,null,null,"NHS Scarborough and Ryedale ","E38000145","03M",100,null,90,null,10,null,100,null,90,null,10,null,0,null,0,null,0]
[null,null,null,null,"NHS Vale of York ","E38000188","03Q",1380,null,1090,null,290,null,1190,null,1030,null,160,null,190,null,60,null,130]
[null,null,"MIDLANDS AND EAST OF ENGLAND",null,null,"E40000002",null,33210,null,27330,null,5880,null,29540,null,25980,null,3550,null,3670,null,1350,null,2320]
[null,null,null,"ARDEN, HEREFORDSHIRE AND WORCESTERSHIRE",null,"E39000010",null,860,null,800,null,60,null,860,null,800,null,60,null,0,null,0,null,0]
[null,null,null,null,"NHS Coventry and Rugby ","E38000038","05A",640,null,600,null,50,null,640,null,600,null,50,null,0,null,0,null,0]
[null,null,null,null,"NHS South Warwickshire ","E38000164","05R",220,null,200,null,20,null,220,null,200,null,20,null,0,null,0,null,0]
[null,null,null,"BIRMINGHAM AND THE BLACK COUNTRY",null,"E39000011",null,620,null,260,null,360,null,620,null,260,null,360,null,0,null,0,null,0]
[null,null,null,null,"NHS Birmingham CrossCity ","E38000012","13P",620,null,260,null,360,null,620,null,260,null,360,null,0,null,0,null,0]
[null,null,null,"DERBYSHIRE AND NOTTINGHAMSHIRE",null,"E39000012",null,910,null,850,null,60,null,900,null,850,null,60,null,"~",null,"~",null,0]
[null,null,null,null,"NHS Nottingham West ","E38000134","04M",910,null,850,null,60,null,900,null,850,null,60,null,"~",null,"~",null,0]
[null,null,null,"EAST ANGLIA",null,"E39000013",null,8900,null,7230,null,1670,null,7440,null,6740,null,700,null,1460,null,500,null,970]
[null,null,null,null,"NHS Cambridgeshire and Peterborough ","E38000026","06H",2260,null,1690,null,570,null,1760,null,1520,null,240,null,500,null,170,null,330]
[null,null,null,null,"NHS Ipswich and East Suffolk ","E38000086","06L",3180,null,2960,null,230,null,3180,null,2950,null,220,null,10,null,10,null,"~"]
[null,null,null,null,"NHS South Norfolk ","E38000159","06Y",380,null,370,null,10,null,380,null,370,null,10,null,"~",null,"~",null,0]
[null,null,null,null,"NHS West Norfolk ","E38000203","07J",3080,null,2210,null,860,null,2120,null,1900,null,230,null,950,null,320,null,640]
[null,null,null,"ESSEX",null,"E39000014",null,4000,null,3750,null,250,null,4000,null,3750,null,250,null,"~",null,"~",null,0]
[null,null,null,null,"NHS North East Essex ","E38000117","06T",3230,null,3020,null,210,null,3230,null,3010,null,210,null,"~",null,"~",null,0]
[null,null,null,null,"NHS West Essex ","E38000197","07H",780,null,740,null,40,null,780,null,740,null,40,null,0,null,0,null,0]
[null,null,null,"HERTFORDSHIRE AND THE SOUTH MIDLANDS",null,"E39000015",null,2340,null,1960,null,380,null,2330,null,1960,null,370,null,10,null,"~",null,"~"]
[null,null,null,null,"NHS Bedfordshire ","E38000010","06F",1130,null,910,null,220,null,1130,null,910,null,220,null,"~",null,0,null,"~"]
[null,null,null,null,"NHS Herts Valleys ","E38000079","06N",1210,null,1050,null,160,null,1200,null,1040,null,160,null,10,null,"~",null,"~"]
[null,null,null,"LEICESTERSHIRE AND LINCOLNSHIRE",null,"E39000016",null,9690,null,7690,null,2000,null,8190,null,7160,null,1030,null,1500,null,530,null,970]
[null,null,null,null,"NHS East Leicestershire and Rutland ","E38000051","03W",2320,null,1610,null,710,null,1540,null,1350,null,200,null,780,null,260,null,510]
[null,null,null,null,"NHS Lincolnshire East ","E38000099","03T",2170,null,1920,null,260,null,2070,null,1860,null,200,null,110,null,50,null,60]
[null,null,null,null,"NHS Lincolnshire West ","E38000100","04D",2840,null,2540,null,310,null,2840,null,2540,null,300,null,"~",null,"~",null,"~"]
[null,null,null,null,"NHS South West Lincolnshire ","E38000165","04Q",2350,null,1620,null,730,null,1740,null,1410,null,330,null,610,null,210,null,400]
[null,null,null,"SHROPSHIRE AND STAFFORDSHIRE",null,"E39000017",null,5880,null,4780,null,1100,null,5180,null,4460,null,720,null,700,null,310,null,390]
[null,null,null,null,"NHS Shropshire ","E38000147","05N",3510,null,2850,null,660,null,2810,null,2540,null,270,null,700,null,310,null,390]
[null,null,null,null,"NHS South East Staffs and Seisdon and Peninsular","E38000153","05Q",840,null,520,null,320,null,840,null,520,null,320,null,0,null,0,null,0]
[null,null,null,null,"NHS Stafford and Surrounds ","E38000173","05V",1530,null,1410,null,120,null,1530,null,1410,null,120,null,0,null,0,null,0]
[null,null,null,null,"NHS Telford & Wrekin ","E38000183","05X","~",null,"~",null,0,null,"~",null,"~",null,0,null,0,null,0,null,0]
[null,null,"LONDON",null,null,"E40000003",null,5090,null,4270,null,820,null,4620,null,4120,null,510,null,460,null,150,null,310]
[null,null,null,"LONDON",null,"E39000018",null,5090,null,4270,null,820,null,4620,null,4120,null,510,null,460,null,150,null,310]
[null,null,null,null,"NHS Central London (Westminster) ","E38000031","09A",400,null,390,null,10,null,400,null,390,null,10,null,0,null,0,null,0]
[null,null,null,null,"NHS Hillingdon ","E38000082","08G",1280,null,820,null,460,null,820,null,670,null,150,null,460,null,150,null,310]
[null,null,null,null,"NHS Hounslow ","E38000084","07Y",560,null,530,null,30,null,560,null,530,null,30,null,0,null,0,null,0]
[null,null,null,null,"NHS Greenwich ","E38000066","08A",850,null,760,null,100,null,850,null,750,null,100,null,"~",null,"~",null,0]
[null,null,null,null,"NHS Lambeth ","E38000092","08K",1990,null,1770,null,220,null,1990,null,1770,null,220,null,"~",null,0,null,"~"]
[null,null,"SOUTH OF ENGLAND",null,null,"E40000004",null,82780,null,68860,null,13920,null,74100,null,65970,null,8120,null,8680,null,2890,null,5790]
[null,null,null,"BATH, GLOUCESTERSHIRE, SWINDON AND WILTSHIRE",null,"E39000019",null,24470,null,19330,null,5150,null,19410,null,17650,null,1760,null,5060,null,1680,null,3380]
[null,null,null,null,"NHS Gloucestershire ","E38000062","11M",2060,null,1830,null,230,null,2060,null,1830,null,230,null,0,null,0,null,0]
[null,null,null,null,"NHS Swindon ","E38000181","12D",1100,null,970,null,130,null,1100,null,970,null,130,null,"~",null,0,null,"~"]
[null,null,null,null,"NHS Wiltshire ","E38000206","99N",21310,null,16530,null,4780,null,16250,null,14860,null,1400,null,5060,null,1680,null,3380]
[null,null,null,"BRISTOL, NORTH SOMERSET, SOMERSET AND SOUTH GLOS",null,"E39000020",null,4650,null,4300,null,350,null,4650,null,4300,null,350,null,"~",null,"~",null,"~"]
[null,null,null,null,"NHS Somerset ","E38000150","11X",3340,null,3100,null,240,null,3340,null,3100,null,230,null,"~",null,"~",null,"~"]
[null,null,null,null,"NHS South Gloucestershire ","E38000155","12A",1310,null,1200,null,110,null,1310,null,1200,null,110,null,0,null,0,null,0]
[null,null,null,"DEVON, CORNWALL AND ISLES OF SCILLY",null,"E39000021",null,12040,null,10850,null,1200,null,12010,null,10830,null,1180,null,40,null,20,null,20]
[null,null,null,null,"NHS Kernow ","E38000089","11N",3170,null,2790,null,380,null,3170,null,2780,null,380,null,"~",null,"~",null,0]
[null,null,null,null,"NHS North, East, West Devon ","E38000129","99P",8410,null,7660,null,740,null,8370,null,7640,null,730,null,40,null,20,null,20]
[null,null,null,null,"NHS South Devon and Torbay","E38000152","99Q",470,null,400,null,70,null,470,null,400,null,70,null,0,null,0,null,0]
[null,null,null,"KENT AND MEDWAY",null,"E39000022",null,1980,null,1930,null,40,null,1970,null,1930,null,40,null,"~",null,"~",null,0]
[null,null,null,null,"NHS Medway ","E38000104","09W",510,null,480,null,20,null,510,null,480,null,20,null,0,null,0,null,0]
[null,null,null,null,"NHS South Kent Coast ","E38000156","10A",860,null,850,null,10,null,860,null,850,null,10,null,0,null,0,null,0]
[null,null,null,null,"NHS West Kent ","E38000199","99J",610,null,590,null,10,null,610,null,590,null,10,null,"~",null,"~",null,0]
[null,null,null,"SURREY AND SUSSEX",null,"E39000023",null,4300,null,3400,null,900,null,3620,null,3180,null,430,null,680,null,220,null,460]
[null,null,null,null,"NHS Coastal West Sussex ","E38000213","09G",920,null,820,null,100,null,920,null,820,null,100,null,"~",null,"~",null,0]
[null,null,null,null,"NHS North West Surrey ","E38000128","09Y",2640,null,1980,null,660,null,1960,null,1760,null,200,null,680,null,220,null,460]
[null,null,null,null,"NHS Surrey Downs ","E38000177","99H",150,null,90,null,60,null,150,null,90,null,60,null,"~",null,0,null,"~"]
[null,null,null,null,"NHS Surrey Heath ","E38000178","10C",590,null,520,null,70,null,580,null,520,null,70,null,"~",null,"~",null,"~"]
[null,null,null,"THAMES VALLEY",null,"E39000024",null,16160,null,12320,null,3830,null,13290,null,11390,null,1900,null,2870,null,940,null,1930]
[null,null,null,null,"NHS Aylesbury Vale ","E38000003","10Y",3490,null,2580,null,920,null,2980,null,2390,null,580,null,520,null,180,null,330]
[null,null,null,null,"NHS Bracknell and Ascot ","E38000017","10G",1940,null,1310,null,630,null,1290,null,1120,null,180,null,640,null,190,null,450]
[null,null,null,null,"NHS Newbury and District ","E38000110","10M",320,null,290,null,40,null,320,null,290,null,40,null,0,null,0,null,0]
[null,null,null,null,"NHS Oxfordshire ","E38000136","10Q",9380,null,7180,null,2200,null,7680,null,6620,null,1060,null,1710,null,560,null,1150]
[null,null,null,null,"NHS Windsor, Ascot and Maidenhead ","E38000207","11C",1020,null,970,null,50,null,1020,null,970,null,50,null,"~",null,"~",null,"~"]
[null,null,null,null,"NHS Wokingham ","E38000209","11D","~",null,"~",null,0,null,"~",null,"~",null,0,null,"~",null,"~",null,0]
[null,null,null,"WESSEX",null,"E39000025",null,19180,null,16730,null,2460,null,19150,null,16700,null,2450,null,30,null,30,null,"~"]
[null,null,null,null,"NHS Fareham and Gosport ","E38000059","10K",3360,null,3030,null,330,null,3360,null,3030,null,330,null,"~",null,"~",null,0]
[null,null,null,null,"NHS North East Hampshire and Farnham ","E38000118","99M",4920,null,4370,null,540,null,4920,null,4370,null,540,null,0,null,0,null,0]
[null,null,null,null,"NHS North Hampshire ","E38000120","10J",1770,null,1570,null,190,null,1760,null,1570,null,190,null,"~",null,"~",null,0]
[null,null,null,null,"NHS Portsmouth ","E38000137","10R",6120,null,5270,null,860,null,6100,null,5240,null,850,null,30,null,20,null,"~"]
[null,null,null,null,"NHS South Eastern Hampshire ","E38000154","10V","~",null,"~",null,0,null,"~",null,"~",null,0,null,0,null,0,null,0]
[null,null,null,null,"NHS West Hampshire ","E38000198","11A",3020,null,2480,null,530,null,3010,null,2480,null,530,null,"~",null,"~",null,"~"]
[]
[]
[null,"Source: DMICP Data Warehouse"]
[null,"1. In line with Joint Service Publication 200, numbers 5 or fewer have been supressed and presented as '~'."]
[null,"2. Due to rounding, please note that totals may not equal the sum of their parts."]
[null,"3. The presence of  +/- indicates percentage changes in figures over the last quarter.  + indicates there has been a 5% to 10% increase and - indicates there has been between a 5% to 10% decrease.  ++ indicates a greater than 10% increase and -- indicates a greater than 10% decrease."]
[null,"4. Age bands are based on age as at time of data extraction."]

{"sheet":"Table B1.6","index":10,"n_rows":103,"n_cols":34,"rows_kept":103,"cut":false,"hidden":false,"merged":[[5,2,5,3],[8,1,8,4],[99,1,99,18],[102,1,102,20],[101,1,101,20],[100,1,100,20]]}
[null,"Annex B1 - England, by NHS Clinical Commissioning Group"]
[]
[null,"Table B1.6: UK Armed Forces males and entitled civilian males DMS registrations, registered to NHS Clinical Commissioning Groups by age band, 1 April 2017, Numbers"]
[null,"Source: Defence Statistics (Health)"]
[]
[null,null,"Return to contents"]
[]
[null,null,null,null,null,"NEW","OLD"]
[null,"Area Name",null,null,null,"Area Code","Area Code","All Males","0-4","+/-","5-9","+/-","10-14","+/-","15-19","+/-","20-24","+/-","25-29","+/-","30-34","+/-","35-39","+/-","40-44","+/-","45-49","+/-","50-54","+/-","55-59","+/-","60+","+/-"]
[null,"ENGLAND                            ",null,null,null,"E92000001",null,116050,2070,"",1390,"",730,"",6740,"+",21240,"",26140,"",20160,"",16370,"",9950,"",6740,"",3810,"",630,"+",60,""]
[null,null,"NORTH OF ENGLAND                        ",null,null,"E40000001",null,15590,260,null,180,null,90,null,2150,null,3160,null,3680,null,2540,null,1790,null,990,null,490,null,210,null,50,null,"~"]
[null,null,null,"CHESHIRE, WARRINGTON AND WIRRAL",null,"E39000001",null,620,0,null,0,null,0,null,30,null,150,null,180,null,100,null,80,null,40,null,20,null,10,null,10,null,0]
[null,null,null,null,"NHS West Cheshire","E38000196","02F",620,0,null,0,null,0,null,30,null,150,null,180,null,100,null,80,null,40,null,20,null,10,null,10,null,0]
[null,null,null,"LANCASHIRE",null,"E39000004",null,880,0,null,0,null,0,null,30,null,190,null,250,null,160,null,110,null,70,null,40,null,20,null,"~",null,0]
[null,null,null,null,"NHS Fylde & Wyre","E38000060","02M",560,0,null,0,null,0,null,30,null,140,null,160,null,100,null,60,null,30,null,20,null,"~",null,"~",null,0]
[null,null,null,null,"NHS Greater Preston","E38000065","01E",330,0,null,0,null,0,null,"~",null,50,null,90,null,70,null,40,null,40,null,20,null,20,null,"~",null,0]
[null,null,null,"CUMBRIA, NORTHUMBERLAND, TYNE AND WEAR",null,"E39000006",null,1280,0,null,0,null,0,null,30,null,250,null,330,null,270,null,180,null,120,null,60,null,40,null,"~",null,0]
[null,null,null,null,"NHS Cumbria ","E38000041","01H",140,0,null,0,null,0,null,"~",null,10,null,30,null,40,null,20,null,20,null,10,null,10,null,"~",null,0]
[null,null,null,null,"NHS Northumberland ","E38000130","00L",1140,0,null,0,null,0,null,30,null,240,null,300,null,240,null,160,null,100,null,50,null,30,null,"~",null,0]
[null,null,null,"NORTH YORKSHIRE AND HUMBER                 ",null,"E39000007",null,12800,260,null,180,null,90,null,2060,null,2560,null,2920,null,2000,null,1420,null,760,null,360,null,150,null,40,null,"~"]
[null,null,null,null,"NHS East Riding of Yorkshire ","E38000052","02Y",360,0,null,0,null,0,null,90,null,70,null,40,null,40,null,50,null,40,null,20,null,10,null,"~",null,0]
[null,null,null,null,"NHS Hambleton, Richmondshire and Whitby ","E38000069","03D",8700,240,null,160,null,90,null,940,null,2010,null,2130,null,1400,null,920,null,480,null,210,null,90,null,20,null,"~"]
[null,null,null,null,"NHS Harrogate and Rural District ","E38000073","03E",2560,0,null,0,null,0,null,1020,null,330,null,480,null,330,null,240,null,110,null,40,null,10,null,"~",null,0]
[null,null,null,null,"NHS Scarborough and Ryedale ","E38000145","03M",90,0,null,0,null,0,null,0,null,"~",null,20,null,20,null,20,null,10,null,10,null,"~",null,0,null,0]
[null,null,null,null,"NHS Vale of York ","E38000188","03Q",1090,20,null,20,null,10,null,20,null,150,null,240,null,200,null,200,null,120,null,70,null,40,null,10,null,"~"]
[null,null,"MIDLANDS AND EAST OF ENGLAND",null,null,"E40000002",null,27330,530,null,360,null,190,null,760,null,4680,null,6260,null,4910,null,4220,null,2590,null,1740,null,900,null,170,null,20]
[null,null,null,"ARDEN, HEREFORDSHIRE AND WORCESTERSHIRE",null,"E39000010",null,800,0,null,0,null,0,null,10,null,180,null,220,null,140,null,160,null,60,null,20,null,10,null,"~",null,0]
[null,null,null,null,"NHS Coventry and Rugby ","E38000038","05A",600,0,null,0,null,0,null,10,null,150,null,150,null,100,null,130,null,40,null,20,null,"~",null,"~",null,0]
[null,null,null,null,"NHS South Warwickshire ","E38000164","05R",200,0,null,0,null,0,null,"~",null,30,null,70,null,40,null,30,null,20,null,10,null,10,null,0,null,0]
[null,null,null,"BIRMINGHAM AND THE BLACK COUNTRY",null,"E39000011",null,260,0,null,0,null,0,null,"~",null,20,null,40,null,50,null,60,null,40,null,30,null,20,null,10,null,0]
[null,null,null,null,"NHS Birmingham CrossCity ","E38000012","13P",260,0,null,0,null,0,null,"~",null,20,null,40,null,50,null,60,null,40,null,30,null,20,null,10,null,0]
[null,null,null,"DERBYSHIRE AND NOTTINGHAMSHIRE",null,"E39000012",null,850,0,null,0,null,0,null,"~",null,60,null,110,null,150,null,180,null,160,null,140,null,40,null,10,null,0]
[null,null,null,null,"NHS Nottingham West ","E38000134","04M",850,0,null,0,null,0,null,"~",null,60,null,110,null,150,null,180,null,160,null,140,null,40,null,10,null,0]
[null,null,null,"EAST ANGLIA",null,"E39000013",null,7230,230,null,140,null,60,null,170,null,1240,null,1830,null,1330,null,990,null,580,null,400,null,220,null,40,null,"~"]
[null,null,null,null,"NHS Cambridgeshire and Peterborough ","E38000026","06H",1690,60,null,60,null,30,null,20,null,180,null,370,null,290,null,250,null,180,null,140,null,80,null,20,null,"~"]
[null,null,null,null,"NHS Ipswich and East Suffolk ","E38000086","06L",2960,0,null,"~",null,0,null,90,null,620,null,840,null,580,null,400,null,210,null,130,null,60,null,10,null,"~"]
[null,null,null,null,"NHS South Norfolk ","E38000159","06Y",370,0,null,0,null,0,null,10,null,100,null,110,null,70,null,60,null,20,null,"~",null,0,null,"~",null,"~"]
[null,null,null,null,"NHS West Norfolk ","E38000203","07J",2210,170,null,90,null,30,null,40,null,340,null,510,null,390,null,290,null,160,null,120,null,70,null,10,null,0]
[null,null,null,"ESSEX",null,"E39000014",null,3750,0,null,0,null,0,null,130,null,920,null,1170,null,660,null,490,null,260,null,70,null,30,null,10,null,"~"]
[null,null,null,null,"NHS North East Essex ","E38000117","06T",3020,0,null,0,null,0,null,110,null,770,null,940,null,530,null,380,null,210,null,60,null,20,null,"~",null,"~"]
[null,null,null,null,"NHS West Essex ","E38000197","07H",740,0,null,0,null,0,null,20,null,150,null,240,null,130,null,120,null,50,null,20,null,10,null,"~",null,0]
[null,null,null,"HERTFORDSHIRE AND THE SOUTH MIDLANDS",null,"E39000015",null,1960,0,null,0,null,0,null,10,null,100,null,270,null,400,null,380,null,340,null,260,null,180,null,20,null,"~"]
[null,null,null,null,"NHS Bedfordshire ","E38000010","06F",910,0,null,0,null,0,null,10,null,80,null,180,null,220,null,170,null,120,null,70,null,50,null,"~",null,0]
[null,null,null,null,"NHS Herts Valleys ","E38000079","06N",1050,0,null,0,null,0,null,0,null,20,null,90,null,170,null,210,null,220,null,190,null,130,null,20,null,"~"]
[null,null,null,"LEICESTERSHIRE AND LINCOLNSHIRE",null,"E39000016",null,7690,220,null,160,null,90,null,140,null,1010,null,1560,null,1440,null,1320,null,800,null,610,null,280,null,50,null,10]
[null,null,null,null,"NHS East Leicestershire and Rutland ","E38000051","03W",1610,120,null,80,null,40,null,60,null,340,null,340,null,280,null,220,null,100,null,30,null,10,null,"~",null,0]
[null,null,null,null,"NHS Lincolnshire East ","E38000099","03T",1920,20,null,10,null,10,null,40,null,230,null,470,null,390,null,350,null,220,null,130,null,40,null,10,null,0]
[null,null,null,null,"NHS Lincolnshire West ","E38000100","04D",2540,0,null,0,null,0,null,20,null,210,null,450,null,520,null,520,null,340,null,320,null,140,null,20,null,0]
[null,null,null,null,"NHS South West Lincolnshire ","E38000165","04Q",1620,80,null,70,null,40,null,30,null,230,null,300,null,260,null,240,null,140,null,130,null,80,null,20,null,10]
[null,null,null,"SHROPSHIRE AND STAFFORDSHIRE",null,"E39000017",null,4780,80,null,50,null,30,null,290,null,1150,null,1060,null,740,null,640,null,360,null,220,null,130,null,30,null,"~"]
[null,null,null,null,"NHS Shropshire ","E38000147","05N",2850,80,null,50,null,30,null,210,null,730,null,590,null,380,null,320,null,200,null,150,null,80,null,20,null,"~"]
[null,null,null,null,"NHS South East Staffs and Seisdon and Peninsular","E38000153","05Q",520,0,null,0,null,0,null,40,null,120,null,80,null,80,null,70,null,50,null,40,null,40,null,10,null,"~"]
[null,null,null,null,"NHS Stafford and Surrounds ","E38000173","05V",1410,0,null,0,null,0,null,40,null,300,null,390,null,280,null,240,null,100,null,40,null,10,null,0,null,0]
[null,null,null,null,"NHS Telford & Wrekin ","E38000183","05X","~",0,null,0,null,0,null,0,null,0,null,0,null,0,null,0,null,0,null,"~",null,0,null,0,null,0]
[null,null,"LONDON",null,null,"E40000003",null,4270,60,null,30,null,10,null,200,null,740,null,860,null,680,null,590,null,410,null,400,null,250,null,40,null,"~"]
[null,null,null,"LONDON",null,"E39000018",null,4270,60,null,30,null,10,null,200,null,740,null,860,null,680,null,590,null,410,null,400,null,250,null,40,null,"~"]
[null,null,null,null,"NHS Central London (Westminster) ","E38000031","09A",390,0,null,0,null,0,null,30,null,140,null,110,null,60,null,40,null,10,null,10,null,0,null,0,null,0]
[null,null,null,null,"NHS Hillingdon ","E38000082","08G",820,60,null,30,null,10,null,20,null,90,null,170,null,150,null,120,null,70,null,50,null,40,null,10,null,"~"]
[null,null,null,null,"NHS Hounslow ","E38000084","07Y",530,0,null,0,null,0,null,20,null,150,null,160,null,100,null,50,null,30,null,10,null,10,null,"~",null,0]
[null,null,null,null,"NHS Greenwich ","E38000066","08A",760,0,null,0,null,0,null,40,null,220,null,220,null,120,null,90,null,30,null,20,null,10,null,"~",null,0]
[null,null,null,null,"NHS Lambeth ","E38000092","08K",1770,0,null,0,null,0,null,80,null,140,null,200,null,250,null,290,null,260,null,310,null,190,null,30,null,"~"]
[null,null,"SOUTH OF ENGLAND",null,null,"E40000004",null,68860,1210,null,820,null,440,null,3640,null,12670,null,15340,null,12030,null,9780,null,5960,null,4110,null,2450,null,370,null,40]
[null,null,null,"BATH, GLOUCESTERSHIRE, SWINDON AND WILTSHIRE",null,"E39000019",null,19330,730,null,520,null,260,null,1050,null,3490,null,3980,null,3380,null,2810,null,1590,null,900,null,550,null,60,null,10]
[null,null,null,null,"NHS Gloucestershire ","E38000062","11M",1830,0,null,0,null,0,null,50,null,340,null,380,null,370,null,300,null,210,null,110,null,70,null,10,null,0]
[null,null,null,null,"NHS Swindon ","E38000181","12D",970,0,null,0,null,0,null,0,null,"~",null,40,null,240,null,240,null,180,null,150,null,100,null,10,null,0]
[null,null,null,null,"NHS Wiltshire ","E38000206","99N",16530,730,null,520,null,260,null,1000,null,3150,null,3550,null,2770,null,2270,null,1200,null,650,null,370,null,50,null,10]
[null,null,null,"BRISTOL, NORTH SOMERSET, SOMERSET AND SOUTH GLOS",null,"E39000020",null,4300,0,null,0,null,0,null,60,null,560,null,910,null,750,null,700,null,480,null,480,null,320,null,40,null,"~"]
[null,null,null,null,"NHS Somerset ","E38000150","11X",3100,0,null,0,null,0,null,60,null,560,null,860,null,630,null,440,null,250,null,190,null,90,null,20,null,"~"]
[null,null,null,null,"NHS South Gloucestershire ","E38000155","12A",1200,0,null,0,null,0,null,0,null,"~",null,40,null,130,null,260,null,230,null,280,null,240,null,20,null,"~"]
[null,null,null,"DEVON, CORNWALL AND ISLES OF SCILLY",null,"E39000021",null,10850,0,null,0,null,0,null,630,null,2400,null,2730,null,1870,null,1320,null,870,null,630,null,350,null,50,null,"~"]
[null,null,null,null,"NHS Kernow ","E38000089","11N",2790,0,null,0,null,0,null,300,null,560,null,580,null,480,null,320,null,250,null,160,null,110,null,10,null,"~"]
[null,null,null,null,"NHS North, East, West Devon ","E38000129","99P",7660,0,null,0,null,0,null,320,null,1670,null,2040,null,1350,null,970,null,610,null,450,null,220,null,40,null,0]
[null,null,null,null,"NHS South Devon and Torbay","E38000152","99Q",400,0,null,0,null,0,null,10,null,170,null,100,null,40,null,20,null,10,null,20,null,10,null,"~",null,0]
[null,null,null,"KENT AND MEDWAY",null,"E39000022",null,1930,0,null,0,null,0,null,100,null,440,null,470,null,370,null,300,null,160,null,60,null,20,null,"~",null,"~"]
[null,null,null,null,"NHS Medway ","E38000104","09W",480,0,null,0,null,0,null,80,null,110,null,100,null,100,null,50,null,30,null,20,null,"~",null,"~",null,0]
[null,null,null,null,"NHS South Kent Coast ","E38000156","10A",850,0,null,0,null,0,null,20,null,210,null,180,null,150,null,160,null,90,null,30,null,10,null,"~",null,0]
[null,null,null,null,"NHS West Kent ","E38000199","99J",590,0,null,0,null,0,null,10,null,120,null,200,null,120,null,90,null,40,null,10,null,"~",null,0,null,"~"]
[null,null,null,"SURREY AND SUSSEX",null,"E39000023",null,3400,90,null,60,null,40,null,430,null,750,null,820,null,550,null,340,null,180,null,90,null,40,null,10,null,"~"]
[null,null,null,null,"NHS Coastal West Sussex ","E38000213","09G",820,0,null,0,null,0,null,10,null,180,null,230,null,190,null,140,null,60,null,10,null,"~",null,"~",null,"~"]
[null,null,null,null,"NHS North West Surrey ","E38000128","09Y",1980,90,null,60,null,40,null,340,null,470,null,480,null,250,null,130,null,60,null,40,null,20,null,"~",null,0]
[null,null,null,null,"NHS Surrey Downs ","E38000177","99H",90,0,null,0,null,0,null,"~",null,0,null,10,null,30,null,20,null,10,null,10,null,10,null,"~",null,0]
[null,null,null,null,"NHS Surrey Heath ","E38000178","10C",520,0,null,0,null,0,null,80,null,100,null,100,null,80,null,50,null,50,null,30,null,20,null,10,null,0]
[null,null,null,"THAMES VALLEY",null,"E39000024",null,12320,400,null,240,null,130,null,510,null,1900,null,2540,null,2080,null,1930,null,1160,null,830,null,520,null,90,null,10]
[null,null,null,null,"NHS Aylesbury Vale ","E38000003","10Y",2580,70,null,40,null,30,null,270,null,290,null,270,null,300,null,370,null,320,null,330,null,240,null,60,null,"~"]
[null,null,null,null,"NHS Bracknell and Ascot ","E38000017","10G",1310,80,null,50,null,30,null,30,null,390,null,300,null,150,null,140,null,70,null,40,null,40,null,"~",null,"~"]
[null,null,null,null,"NHS Newbury and District ","E38000110","10M",290,0,null,0,null,0,null,"~",null,30,null,80,null,60,null,50,null,30,null,20,null,10,null,0,null,"~"]
[null,null,null,null,"NHS Oxfordshire ","E38000136","10Q",7180,250,null,150,null,80,null,200,null,960,null,1580,null,1360,null,1240,null,690,null,420,null,230,null,30,null,"~"]
[null,null,null,null,"NHS Windsor, Ascot and Maidenhead ","E38000207","11C",970,0,null,0,null,0,null,10,null,230,null,310,null,210,null,130,null,60,null,20,null,"~",null,"~",null,0]
[null,null,null,null,"NHS Wokingham ","E38000209","11D","~",0,null,0,null,0,null,0,null,0,null,"~",null,0,null,0,null,0,null,0,null,0,null,0,null,"~"]
[null,null,null,"WESSEX",null,"E39000025",null,16730,0,null,0,null,0,null,860,null,3120,null,3900,null,3040,null,2380,null,1530,null,1130,null,660,null,110,null,10]
[null,null,null,null,"NHS Fareham and Gosport ","E38000059","10K",3030,0,null,0,null,0,null,240,null,520,null,730,null,580,null,400,null,240,null,180,null,120,null,20,null,"~"]
[null,null,null,null,"NHS North East Hampshire and Farnham ","E38000118","99M",4370,0,null,0,null,0,null,280,null,1070,null,1100,null,760,null,620,null,340,null,150,null,60,null,"~",null,0]
[null,null,null,null,"NHS North Hampshire ","E38000120","10J",1570,0,null,0,null,0,null,20,null,240,null,400,null,390,null,250,null,150,null,70,null,40,null,10,null,0]
[null,null,null,null,"NHS Portsmouth ","E38000137","10R",5270,0,null,0,null,0,null,120,null,850,null,1150,null,910,null,730,null,560,null,540,null,340,null,60,null,10]
[null,null,null,null,"NHS South Eastern Hampshire ","E38000154","10V","~",0,null,0,null,0,null,0,null,0,null,0,null,0,null,0,null,0,null,0,null,0,null,0,null,"~"]
[null,null,null,null,"NHS West Hampshire ","E38000198","11A",2480,0,null,0,null,0,null,190,null,440,null,520,null,400,null,390,null,240,null,180,null,100,null,20,null,"~"]
[]
[]
[null,"Source: DMICP Data Warehouse"]
[null,"1. In line with Joint Service Publication 200, numbers 5 or fewer have been supressed and presented as '~'."]
[null,"2. Due to rounding, please note that totals may not equal the sum of their parts."]
[null,"3. The presence of  +/- indicates percentage changes in figures over the last quarter.  + indicates there has been a 5% to 10% increase and - indicates there has been between a 5% to 10% decrease.  ++ indicates a greater than 10% increase and -- indicates a greater than 10% decrease."]
[null,"4. Age bands are based on age as at time of data extraction."]

{"sheet":"Table B1.7","index":11,"n_rows":102,"n_cols":34,"rows_kept":102,"cut":false,"hidden":false,"merged":[[5,2,5,3],[8,1,8,4],[101,1,101,20],[100,1,100,20],[99,1,99,20],[98,1,98,20]]}
[null,"Annex B1 - England, by NHS Clinical Commissioning Group"]
[]
[null,"Table B1.7: UK Armed Forces females and entitled civilian females DMS registrations, registered to NHS Clinical Commissioning Groups by age band, 1 April 2017, Numbers"]
[null,"Defence Statistics (Health)"]
[]
[null,null,"Return to contents"]
[]
[null,null,null,null,null,"NEW","OLD"]
[null,"Area Name",null,null,null,"Area Code","Area Code","All Females","0-4","+/-","5-9","+/-","10-14","+/-","15-19","+/-","20-24","+/-","25-29","+/-","30-34","+/-","35-39","+/-","40-44","+/-","45-49","+/-","50-54","+/-","55-59","+/-","60+","+/-"]
[null,"ENGLAND                            ",null,null,null,"E92000001",null,23120,1940,"",1350,"",680,"",970,"",2900,"",4660,"",4280,"",3370,"",1670,"",920,"",330,"",60,"",10,""]
[null,null,"NORTH OF ENGLAND                        ",null,null,"E40000001",null,2510,240,null,160,null,80,null,160,null,330,null,530,null,410,null,340,null,150,null,70,null,30,null,"~",null,"~"]
[null,null,null,"CHESHIRE, WARRINGTON AND WIRRAL",null,"E39000001",null,40,0,null,0,null,0,null,0,null,"~",null,10,null,10,null,10,null,"~",null,"~",null,0,null,0,null,0]
[null,null,null,null,"NHS West Cheshire","E38000196","02F",40,0,null,0,null,0,null,0,null,"~",null,10,null,10,null,10,null,"~",null,"~",null,0,null,0,null,0]
[null,null,null,"LANCASHIRE",null,"E39000004",null,100,0,null,0,null,0,null,"~",null,30,null,30,null,20,null,20,null,"~",null,"~",null,0,null,0,null,0]
[null,null,null,null,"NHS Fylde & Wyre","E38000060","02M",20,0,null,0,null,0,null,"~",null,"~",null,"~",null,"~",null,"~",null,"~",null,0,null,0,null,0,null,0]
[null,null,null,null,"NHS Greater Preston","E38000065","01E",80,0,null,0,null,0,null,"~",null,30,null,20,null,10,null,10,null,"~",null,"~",null,0,null,0,null,0]
[null,null,null,"CUMBRIA, NORTHUMBERLAND, TYNE AND WEAR",null,"E39000006",null,130,0,null,0,null,0,null,10,null,30,null,30,null,20,null,20,null,10,null,"~",null,"~",null,0,null,0]
[null,null,null,null,"NHS Cumbria ","E38000041","01H",10,0,null,0,null,0,null,0,null,0,null,"~",null,"~",null,"~",null,0,null,0,null,0,null,0,null,0]
[null,null,null,null,"NHS Northumberland ","E38000130","00L",120,0,null,0,null,0,null,10,null,30,null,30,null,20,null,20,null,10,null,"~",null,"~",null,0,null,0]
[null,null,null,"NORTH YORKSHIRE AND HUMBER                 ",null,"E39000007",null,2250,240,null,160,null,80,null,150,null,270,null,450,null,360,null,300,null,130,null,60,null,30,null,"~",null,"~"]
[null,null,null,null,"NHS East Riding of Yorkshire ","E38000052","02Y",40,0,null,0,null,0,null,10,null,10,null,10,null,10,null,10,null,"~",null,0,null,0,null,0,null,0]
[null,null,null,null,"NHS Hambleton, Richmondshire and Whitby ","E38000069","03D",1660,210,null,140,null,80,null,50,null,180,null,350,null,270,null,220,null,90,null,50,null,20,null,"~",null,"~"]
[null,null,null,null,"NHS Harrogate and Rural District ","E38000073","03E",250,0,null,0,null,0,null,90,null,50,null,40,null,20,null,30,null,10,null,0,null,0,null,0,null,"~"]
[null,null,null,null,"NHS Scarborough and Ryedale ","E38000145","03M",10,0,null,0,null,0,null,0,null,0,null,"~",null,"~",null,"~",null,"~",null,"~",null,0,null,0,null,0]
[null,null,null,null,"NHS Vale of York ","E38000188","03Q",290,30,null,20,null,10,null,10,null,30,null,50,null,60,null,40,null,20,null,20,null,10,null,"~",null,0]
[null,null,"MIDLANDS AND EAST OF ENGLAND",null,null,"E40000002",null,5880,460,null,350,null,150,null,190,null,740,null,1180,null,1130,null,870,null,450,null,260,null,80,null,20,null,"~"]
[null,null,null,"ARDEN, HEREFORDSHIRE AND WORCESTERSHIRE",null,"E39000010",null,60,0,null,0,null,0,null,0,null,20,null,20,null,10,null,10,null,"~",null,"~",null,0,null,0,null,0]
[null,null,null,null,"NHS Coventry and Rugby ","E38000038","05A",50,0,null,0,null,0,null,0,null,10,null,10,null,10,null,10,null,"~",null,0,null,0,null,0,null,0]
[null,null,null,null,"NHS South Warwickshire ","E38000164","05R",20,0,null,0,null,0,null,0,null,"~",null,"~",null,"~",null,"~",null,0,null,"~",null,0,null,0,null,0]
[null,null,null,"BIRMINGHAM AND THE BLACK COUNTRY",null,"E39000011",null,360,0,null,0,null,0,null,10,null,70,null,100,null,90,null,50,null,20,null,10,null,10,null,"~",null,0]
[null,null,null,null,"NHS Birmingham CrossCity ","E38000012","13P",360,0,null,0,null,0,null,10,null,70,null,100,null,90,null,50,null,20,null,10,null,10,null,"~",null,0]
[null,null,null,"DERBYSHIRE AND NOTTINGHAMSHIRE",null,"E39000012",null,60,0,null,0,null,0,null,0,null,10,null,10,null,10,null,10,null,10,null,10,null,"~",null,0,null,0]
[null,null,null,null,"NHS Nottingham West ","E38000134","04M",60,0,null,0,null,0,null,0,null,10,null,10,null,10,null,10,null,10,null,10,null,"~",null,0,null,0]
[null,null,null,"EAST ANGLIA",null,"E39000013",null,1670,190,null,140,null,60,null,50,null,170,null,330,null,320,null,230,null,100,null,70,null,20,null,"~",null,0]
[null,null,null,null,"NHS Cambridgeshire and Peterborough ","E38000026","06H",570,50,null,50,null,30,null,20,null,50,null,110,null,100,null,80,null,40,null,30,null,10,null,"~",null,0]
[null,null,null,null,"NHS Ipswich and East Suffolk ","E38000086","06L",230,0,null,0,null,0,null,10,null,40,null,60,null,50,null,40,null,20,null,"~",null,"~",null,0,null,0]
[null,null,null,null,"NHS South Norfolk ","E38000159","06Y",10,0,null,0,null,0,null,0,null,"~",null,"~",null,"~",null,0,null,0,null,0,null,0,null,0,null,0]
[null,null,null,null,"NHS West Norfolk ","E38000203","07J",860,140,null,90,null,30,null,20,null,70,null,160,null,170,null,100,null,40,null,40,null,"~",null,"~",null,0]
[null,null,null,"ESSEX",null,"E39000014",null,250,0,null,0,null,0,null,10,null,50,null,80,null,60,null,40,null,20,null,"~",null,0,null,0,null,0]
[null,null,null,null,"NHS North East Essex ","E38000117","06T",210,0,null,0,null,0,null,10,null,40,null,70,null,50,null,30,null,20,null,"~",null,0,null,0,null,0]
[null,null,null,null,"NHS West Essex ","E38000197","07H",40,0,null,0,null,0,null,"~",null,10,null,10,null,10,null,10,null,"~",null,"~",null,0,null,0,null,0]
[null,null,null,"HERTFORDSHIRE AND THE SOUTH MIDLANDS",null,"E39000015",null,380,0,null,"~",null,0,null,10,null,50,null,90,null,90,null,70,null,40,null,30,null,10,null,0,null,0]
[null,null,null,null,"NHS Bedfordshire ","E38000010","06F",220,0,null,0,null,0,null,10,null,40,null,60,null,40,null,30,null,20,null,10,null,10,null,0,null,0]
[null,null,null,null,"NHS Herts Valleys ","E38000079","06N",160,0,null,"~",null,0,null,0,null,"~",null,30,null,40,null,40,null,20,null,20,null,"~",null,0,null,0]
[null,null,null,"LEICESTERSHIRE AND LINCOLNSHIRE",null,"E39000016",null,2000,180,null,150,null,80,null,40,null,210,null,370,null,360,null,320,null,170,null,80,null,20,null,"~",null,"~"]
[null,null,null,null,"NHS East Leicestershire and Rutland ","E38000051","03W",710,120,null,90,null,20,null,10,null,100,null,140,null,110,null,80,null,20,null,10,null,"~",null,0,null,"~"]
[null,null,null,null,"NHS Lincolnshire East ","E38000099","03T",260,10,null,10,null,"~",null,10,null,30,null,50,null,50,null,50,null,30,null,20,null,"~",null,0,null,0]
[null,null,null,null,"NHS Lincolnshire West ","E38000100","04D",310,0,null,0,null,0,null,"~",null,30,null,70,null,80,null,70,null,30,null,10,null,"~",null,"~",null,0]
[null,null,null,null,"NHS South West Lincolnshire ","E38000165","04Q",730,60,null,60,null,50,null,20,null,40,null,110,null,120,null,120,null,80,null,50,null,20,null,"~",null,0]
[null,null,null,"SHROPSHIRE AND STAFFORDSHIRE",null,"E39000017",null,1100,90,null,50,null,20,null,80,null,170,null,190,null,190,null,150,null,80,null,60,null,20,null,10,null,0]
[null,null,null,null,"NHS Shropshire ","E38000147","05N",660,90,null,50,null,20,null,30,null,60,null,110,null,130,null,90,null,40,null,40,null,10,null,"~",null,0]
[null,null,null,null,"NHS South East Staffs and Seisdon and Peninsular","E38000153","05Q",320,0,null,0,null,0,null,50,null,80,null,50,null,40,null,40,null,30,null,20,null,10,null,"~",null,0]
[null,null,null,null,"NHS Stafford and Surrounds ","E38000173","05V",120,0,null,0,null,0,null,"~",null,30,null,40,null,20,null,20,null,10,null,"~",null,0,null,0,null,0]
[null,null,null,null,"NHS Telford & Wrekin ","E38000183","05X",0,0,null,0,null,0,null,0,null,0,null,0,null,0,null,0,null,0,null,0,null,0,null,0,null,0]
[null,null,"LONDON",null,null,"E40000003",null,820,60,null,40,null,20,null,30,null,80,null,140,null,160,null,120,null,100,null,40,null,20,null,"~",null,0]
[null,null,null,"LONDON",null,"E39000018",null,820,60,null,40,null,20,null,30,null,80,null,140,null,160,null,120,null,100,null,40,null,20,null,"~",null,0]
[null,null,null,null,"NHS Central London (Westminster) ","E38000031","09A",10,0,null,0,null,0,null,0,null,"~",null,"~",null,"~",null,"~",null,"~",null,"~",null,0,null,0,null,0]
[null,null,null,null,"NHS Hillingdon ","E38000082","08G",460,60,null,40,null,20,null,20,null,30,null,80,null,90,null,50,null,50,null,20,null,10,null,0,null,0]
[null,null,null,null,"NHS Hounslow ","E38000084","07Y",30,0,null,0,null,0,null,"~",null,"~",null,10,null,10,null,"~",null,"~",null,0,null,"~",null,0,null,0]
[null,null,null,null,"NHS Greenwich ","E38000066","08A",100,0,null,0,null,0,null,10,null,30,null,30,null,10,null,10,null,"~",null,0,null,"~",null,0,null,0]
[null,null,null,null,"NHS Lambeth ","E38000092","08K",220,0,null,0,null,0,null,0,null,20,null,30,null,50,null,60,null,50,null,20,null,10,null,"~",null,0]
[null,null,"SOUTH OF ENGLAND",null,null,"E40000004",null,13920,1180,null,800,null,430,null,580,null,1750,null,2810,null,2580,null,2030,null,970,null,540,null,200,null,40,null,"~"]
[null,null,null,"BATH, GLOUCESTERSHIRE, SWINDON AND WILTSHIRE",null,"E39000019",null,5150,690,null,500,null,250,null,190,null,500,null,880,null,880,null,710,null,340,null,140,null,60,null,10,null,"~"]
[null,null,null,null,"NHS Gloucestershire ","E38000062","11M",230,0,null,0,null,0,null,"~",null,50,null,50,null,40,null,50,null,20,null,10,null,"~",null,0,null,0]
[null,null,null,null,"NHS Swindon ","E38000181","12D",130,0,null,0,null,0,null,0,null,0,null,10,null,40,null,40,null,30,null,10,null,"~",null,"~",null,"~"]
[null,null,null,null,"NHS Wiltshire ","E38000206","99N",4780,690,null,500,null,250,null,180,null,450,null,810,null,800,null,620,null,280,null,120,null,60,null,10,null,0]
[null,null,null,"BRISTOL, NORTH SOMERSET, SOMERSET AND SOUTH GLOS",null,"E39000020",null,350,0,null,0,null,0,null,10,null,40,null,80,null,90,null,60,null,40,null,20,null,"~",null,"~",null,0]
[null,null,null,null,"NHS Somerset ","E38000150","11X",240,0,null,0,null,0,null,10,null,40,null,70,null,70,null,30,null,20,null,10,null,"~",null,"~",null,0]
[null,null,null,null,"NHS South Gloucestershire ","E38000155","12A",110,0,null,0,null,0,null,0,null,10,null,10,null,20,null,30,null,20,null,20,null,"~",null,"~",null,0]
[null,null,null,"DEVON, CORNWALL AND ISLES OF SCILLY",null,"E39000021",null,1200,0,null,0,null,0,null,70,null,270,null,340,null,230,null,160,null,70,null,50,null,10,null,0,null,"~"]
[null,null,null,null,"NHS Kernow ","E38000089","11N",380,0,null,0,null,0,null,50,null,80,null,100,null,60,null,60,null,20,null,20,null,"~",null,0,null,0]
[null,null,null,null,"NHS North, East, West Devon ","E38000129","99P",740,0,null,0,null,0,null,20,null,140,null,230,null,160,null,100,null,50,null,30,null,10,null,0,null,"~"]
[null,null,null,null,"NHS South Devon and Torbay","E38000152","99Q",70,0,null,0,null,0,null,"~",null,40,null,10,null,10,null,"~",null,"~",null,"~",null,0,null,0,null,0]
[null,null,null,"KENT AND MEDWAY",null,"E39000022",null,40,0,null,0,null,0,null,0,null,10,null,10,null,10,null,10,null,10,null,"~",null,"~",null,0,null,0]
[null,null,null,null,"NHS Medway ","E38000104","09W",20,0,null,0,null,0,null,0,null,"~",null,10,null,"~",null,"~",null,"~",null,"~",null,"~",null,0,null,0]
[null,null,null,null,"NHS South Kent Coast ","E38000156","10A",10,0,null,0,null,0,null,0,null,0,null,"~",null,"~",null,"~",null,"~",null,"~",null,0,null,0,null,0]
[null,null,null,null,"NHS West Kent ","E38000199","99J",10,0,null,0,null,0,null,0,null,"~",null,"~",null,"~",null,"~",null,0,null,0,null,0,null,0,null,0]
[null,null,null,"SURREY AND SUSSEX",null,"E39000023",null,900,100,null,50,null,30,null,70,null,130,null,200,null,150,null,90,null,40,null,20,null,"~",null,"~",null,0]
[null,null,null,null,"NHS Coastal West Sussex ","E38000213","09G",100,0,null,0,null,0,null,10,null,30,null,30,null,20,null,10,null,"~",null,"~",null,0,null,0,null,0]
[null,null,null,null,"NHS North West Surrey ","E38000128","09Y",660,100,null,50,null,30,null,50,null,90,null,140,null,100,null,50,null,30,null,20,null,"~",null,"~",null,0]
[null,null,null,null,"NHS Surrey Downs ","E38000177","99H",60,0,null,0,null,0,null,"~",null,"~",null,10,null,20,null,20,null,"~",null,"~",null,"~",null,0,null,0]
[null,null,null,null,"NHS Surrey Heath ","E38000178","10C",70,0,null,0,null,0,null,20,null,10,null,20,null,10,null,10,null,10,null,"~",null,"~",null,0,null,0]
[null,null,null,"THAMES VALLEY",null,"E39000024",null,3830,380,null,250,null,150,null,140,null,360,null,690,null,680,null,570,null,290,null,200,null,80,null,20,null,"~"]
[null,null,null,null,"NHS Aylesbury Vale ","E38000003","10Y",920,60,null,40,null,40,null,50,null,60,null,110,null,160,null,170,null,100,null,80,null,40,null,"~",null,"~"]
[null,null,null,null,"NHS Bracknell and Ascot ","E38000017","10G",630,80,null,60,null,30,null,20,null,70,null,120,null,100,null,70,null,40,null,30,null,20,null,"~",null,"~"]
[null,null,null,null,"NHS Newbury and District ","E38000110","10M",40,0,null,0,null,0,null,0,null,"~",null,10,null,10,null,10,null,"~",null,"~",null,0,null,0,null,"~"]
[null,null,null,null,"NHS Oxfordshire ","E38000136","10Q",2200,250,null,160,null,80,null,70,null,220,null,440,null,410,null,300,null,140,null,80,null,30,null,10,null,0]
[null,null,null,null,"NHS Windsor, Ascot and Maidenhead ","E38000207","11C",50,0,null,0,null,0,null,"~",null,10,null,10,null,10,null,10,null,"~",null,0,null,0,null,0,null,0]
[null,null,null,null,"NHS Wokingham ","E38000209","11D",0,0,null,0,null,0,null,0,null,0,null,0,null,0,null,0,null,0,null,0,null,0,null,0,null,0]
[null,null,null,"WESSEX",null,"E39000025",null,2460,0,null,0,null,0,null,100,null,440,null,620,null,530,null,440,null,180,null,110,null,30,null,10,null,0]
[null,null,null,null,"NHS Fareham and Gosport ","E38000059","10K",330,0,null,0,null,0,null,20,null,40,null,90,null,80,null,50,null,20,null,20,null,10,null,0,null,0]
[null,null,null,null,"NHS North East Hampshire and Farnham ","E38000118","99M",540,0,null,0,null,0,null,20,null,100,null,140,null,120,null,100,null,40,null,20,null,"~",null,0,null,0]
[null,null,null,null,"NHS North Hampshire ","E38000120","10J",190,0,null,0,null,0,null,"~",null,30,null,60,null,50,null,40,null,10,null,10,null,"~",null,0,null,0]
[null,null,null,null,"NHS Portsmouth ","E38000137","10R",860,0,null,0,null,0,null,30,null,150,null,200,null,180,null,160,null,70,null,40,null,10,null,"~",null,0]
[null,null,null,null,"NHS South Eastern Hampshire ","E38000154","10V",0,0,null,0,null,0,null,0,null,0,null,0,null,0,null,0,null,0,null,0,null,0,null,0,null,0]
[null,null,null,null,"NHS West Hampshire ","E38000198","11A",530,0,null,0,null,0,null,40,null,120,null,130,null,100,null,90,null,30,null,30,null,10,null,"~",null,0]
[]
[null,"Source: DMICP Data Warehouse"]
[null,"1. In line with Joint Service Publication 200, numbers 5 or fewer have been supressed and presented as '~'."]
[null,"2. Due to rounding, please note that totals may not equal the sum of their parts."]
[null,"3. The presence of  +/- indicates percentage changes in figures over the last quarter.  + indicates there has been a 5% to 10% increase and - indicates there has been between a 5% to 10% decrease.  ++ indicates a greater than 10% increase and -- indicates a greater than 10% decrease."]
[null,"4. Age bands are based on age as at time of data extraction."]

{"sheet":"Table B2.1","index":12,"n_rows":66,"n_cols":13,"rows_kept":66,"cut":false,"hidden":false,"merged":[[6,150,6,152],[5,3,5,6],[6,8,6,10],[6,24,6,26],[6,38,6,40],[6,52,6,54],[6,66,6,68],[6,80,6,82],[6,94,6,96],[6,108,6,110],[6,122,6,124],[6,136,6,138],[6,248,6,250],[7,1,7,3],[7,15,7,18],[7,29,7,32],[7,43,7,46],[7,57,7,60],[7,71,7,74],[7,85,7,88],[7,99,7,102],[7,113,7,116],[6,164,6,166],[6,178,6,180],[6,192,6,194],[6,206,6,208],[6,220,6,222],[6,234,6,236],[65,1,65,18],[7,211,7,214],[7,225,7,228],[7,239,7,242],[7,253,7,256],[63,1,63,18],[64,1,64,18],[7,127,7,130],[7,141,7,144],[7,155,7,158],[7,169,7,172],[7,183,7,186],[7,197,7,200]]}
[null,"Table B1.7: UK Armed Forces females and entitled civilian females DMS registrations, registered to NHS Clinical Commissioning Groups by age band, 1 April 2017, Numbers"]
[]
[null,"Table B2.1: UK Armed Forces personnel and entitled civilian personnel DMS registrations, registered to regions & Local Area Authorities by Service, 1 April 2017, Numbers"]
[null,"Defence Statistics (Health)"]
[]
[null,null,null,"Return to contents"]
[null,null,null,null,null,null,null,null,"UK Armed Forces split by "]
[null,"Area Name",null,null,"Area Code","All Persons","All UK Armed Forces","+/-","Naval Service","Army","RAF","Civilian","+/-"]
[null,"ENGLAND",null,null,"E92000001",139180,124640,"",25560,69480,29600,14530,""]
[null,null,"NORTH EAST",null,"E12000001",1260,1260,"",10,740,510,0,""]
[null,null,null,"Northumberland","E06000057",1260,1260,"",10,740,510,0,""]
[null,null,"NORTH WEST ",null,"E12000002",1790,1790,"",90,1590,110,0,""]
[null,null,null,"Cheshire West and Chester","E06000050",660,660,"",30,610,20,0,""]
[null,null,null,"Cumbria","E10000006",150,150,"+",60,"~",90,0,""]
[null,null,null,"Lancashire","E10000017",990,990,"","~",970,10,0,""]
[null,null,"YORKSHIRE AND THE HUMBER",null,"E12000003",15050,13330,"",60,11530,1740,1720,""]
[null,null,null,"East Riding of Yorkshire","E06000011",400,400,"",30,350,20,0,""]
[null,null,null,"York","E06000014",970,970,"","~",960,"~",0,""]
[null,null,null,"North Yorkshire","E10000023",13680,11960,"",30,10220,1720,1720,""]
[null,null,"EAST MIDLANDS",null,"E12000004",10600,9100,"",160,2800,6150,1500,""]
[null,null,null,"Rutland","E06000017",2320,1540,"",0,1520,20,780,""]
[null,null,null,"Lincolnshire","E10000019",7370,6650,"",150,380,6110,720,""]
[null,null,null,"Nottinghamshire","E10000024",910,900,"","~",890,10,"~",""]
[null,null,"WEST MIDLANDS",null,"E12000005",7360,6660,"",370,3950,2340,700,""]
[null,null,null,"Shropshire","E06000051",3510,2810,"",100,880,1820,700,""]
[null,null,null,"Telford and Wrekin","E06000020","~","~","",0,"~",0,0,""]
[null,null,null,"Staffordshire","E10000028",2370,2370,"",120,1870,380,0,""]
[null,null,null,"Warwickshire","E10000031",860,860,"","~",850,10,0,""]
[null,null,null,"West Midlands","E11000005",620,620,"-",140,350,140,0,""]
[null,null,"EAST ",null,"E12000006",15250,13770,"",740,7410,5620,1470,""]
[null,null,null,"Central Bedfordshire","E06000056",1130,1130,"",110,590,430,"~",""]
[null,null,null,"Peterborough","E06000031",1520,1020,"",10,70,940,500,""]
[null,null,null,"Cambridgeshire","E10000003",740,740,"",30,360,350,0,""]
[null,null,null,"Essex","E10000012",4000,4000,"",20,3940,40,"~",""]
[null,null,null,"Hertfordshire","E10000015",1210,1200,"",540,300,350,10,""]
[null,null,null,"Norfolk","E10000020",3460,2500,"",20,400,2080,960,""]
[null,null,null,"Suffolk","E10000029",3180,3180,"",10,1740,1420,10,""]
[null,null,"LONDON",null,"E12000007",5090,4620,"",370,3230,1020,460,""]
[null,null,null,"Inner London","E13000001",2390,2390,"",360,1680,360,"~",""]
[null,null,null,"Outer London","E13000002",2690,2230,"",20,1560,660,460,""]
[null,null,"SOUTH EAST",null,"E12000008",42710,39120,"",9490,18930,10700,3580,""]
[null,null,null,"Bracknell Forest","E06000036",1940,1290,"+","~",1290,"~",640,""]
[null,null,null,"Medway","E06000035",510,510,"- -","~",500,"~",0,""]
[null,null,null,"Portsmouth","E06000044",6120,6100,"",6000,70,20,30,""]
[null,null,null,"West Berkshire","E06000037",320,320,"",10,300,10,0,""]
[null,null,null,"Windsor and Maidenhead","E06000040",1020,1020,"",0,1020,0,"~",""]
[null,null,null,"Wokingham","E06000041","~","~","",0,"~",0,"~",""]
[null,null,null,"Buckinghamshire","E10000002",3490,2980,"",40,50,2890,520,""]
[null,null,null,"Hampshire","E10000014",13060,13060,"",3180,7780,2090,10,""]
[null,null,null,"Kent","E10000016",1470,1470,"",10,1410,40,"~",""]
[null,null,null,"Oxfordshire","E10000025",10480,8770,"",220,3010,5540,1710,""]
[null,null,null,"Surrey","E10000030",3370,2700,"++",20,2600,70,680,""]
[null,null,null,"West Sussex","E10000032",920,920,"","~",890,30,"~",""]
[null,null,"SOUTH WEST",null,"E12000009",40070,34970,"",14270,19300,1410,5100,""]
[null,null,null,"Cornwall","E06000052",3170,3170,"",2890,120,150,"~",""]
[null,null,null,"Plymouth","E06000026",7400,7360,"-",6870,420,70,40,"++"]
[null,null,null,"South Gloucestershire","E06000025",1310,1310,"",440,390,480,0,""]
[null,null,null,"Wiltshire","E06000054",21310,16250,"",220,15490,540,5060,""]
[null,null,null,"Devon","E10000008",1480,1480,"",1020,460,"~",0,""]
[null,null,null,"Gloucestershire","E10000013",2060,2060,"",60,1870,130,0,""]
[null,null,null,"Somerset","E10000027",3340,3340,"",2770,540,20,"~",""]
[]
[null,"Source: DMICP Data Warehouse"]
[null,"1. In line with Joint Service Publication 200, numbers 5 or fewer have been supressed and presented as '~'."]
[null,"2. Due to rounding, please note that totals may not equal the sum of their parts."]
[null,"3. The presence of  +/- indicates percentage changes in figures over the last quarter.  + indicates there has been a 5% to 10% increase and - indicates there has been between a 5% to 10% decrease.  ++ indicates a greater than 10% increase and -- indicates a greater than 10% decrease."]

{"sheet":"Table B2.2","index":13,"n_rows":67,"n_cols":32,"rows_kept":67,"cut":false,"hidden":false,"merged":[[66,1,66,18],[5,2,5,3],[7,1,7,3],[63,1,63,21],[64,1,64,20],[65,1,65,21]]}
[null,"Table B1.7: UK Armed Forces females and entitled civilian females DMS registrations, registered to NHS Clinical Commissioning Groups by age band, 1 April 2017, Numbers"]
[]
[null,"Table B2.2: UK Armed Forces personnel and entitled civilian personnel DMS registrations, registered to regions & Local Area Authorities by age band, 1 April 2017, Numbers"]
[null,"Defence Statistics (Health)"]
[]
[null,null,"Return to contents"]
[]
[null,"Area Name",null,null,"Area Code","All Persons","0-4","+/-","5-9","+/-","10-14","+/-","15-19","+/-","20-24","+/-","25-29","+/-","30-34","+/-","35-39","+/-","40-44","+/-","45-49","+/-","50-54","+/-","55-59","+/-","60+","+/-"]
[null,"ENGLAND",null,null,"E92000001",139180,4010,"",2740,"",1420,"",7710,"+",24140,"",30800,"",24440,"",19740,"",11620,"",7660,"",4140,"",690,"+",70,""]
[null,null,"NORTH EAST",null,"E12000001",1260,0,null,0,null,0,null,40,null,270,null,330,null,260,null,180,null,110,null,60,null,30,null,"~",null,0]
[null,null,null,"Northumberland","E06000057",1260,0,null,0,null,0,null,40,null,270,null,330,null,260,null,180,null,110,null,60,null,30,null,"~",null,0]
[null,null,"NORTH WEST ",null,"E12000002",1790,0,null,0,null,0,null,60,null,390,null,510,null,330,null,230,null,140,null,80,null,40,null,10,null,0]
[null,null,null,"Cheshire West and Chester","E06000050",660,0,null,0,null,0,null,30,null,160,null,200,null,110,null,90,null,50,null,20,null,10,null,10,null,0]
[null,null,null,"Cumbria","E10000006",150,0,null,0,null,0,null,"~",null,10,null,30,null,40,null,20,null,20,null,10,null,10,null,"~",null,0]
[null,null,null,"Lancashire","E10000017",990,0,null,0,null,0,null,40,null,220,null,280,null,180,null,120,null,80,null,40,null,20,null,"~",null,0]
[null,null,"YORKSHIRE AND THE HUMBER",null,"E12000003",15050,510,null,340,null,180,null,2220,null,2830,null,3370,null,2360,null,1720,null,890,null,430,null,180,null,40,null,"~"]
[null,null,null,"East Riding of Yorkshire","E06000011",400,0,null,0,null,0,null,90,null,80,null,50,null,50,null,60,null,40,null,20,null,10,null,"~",null,0]
[null,null,null,"York","E06000014",970,0,null,0,null,0,null,10,null,150,null,220,null,200,null,180,null,110,null,60,null,30,null,"~",null,0]
[null,null,null,"North Yorkshire","E10000023",13680,510,null,340,null,180,null,2110,null,2600,null,3090,null,2110,null,1480,null,750,null,340,null,140,null,30,null,"~"]
[null,null,"EAST MIDLANDS",null,"E12000004",10600,400,null,320,null,170,null,190,null,1280,null,2050,null,1970,null,1830,null,1130,null,840,null,350,null,70,null,10]
[null,null,null,"Rutland","E06000017",2320,240,null,170,null,60,null,70,null,440,null,480,null,390,null,300,null,120,null,40,null,10,null,"~",null,"~"]
[null,null,null,"Lincolnshire","E10000019",7370,160,null,140,null,110,null,110,null,780,null,1450,null,1420,null,1340,null,850,null,660,null,290,null,50,null,10]
[null,null,null,"Nottinghamshire","E10000024",910,0,null,0,null,0,null,"~",null,60,null,120,null,160,null,190,null,160,null,150,null,40,null,10,null,0]
[null,null,"WEST MIDLANDS",null,"E12000005",7360,170,null,100,null,50,null,390,null,1600,null,1620,null,1220,null,1050,null,570,null,340,null,190,null,50,null,"~"]
[null,null,null,"Shropshire","E06000051",3510,170,null,100,null,50,null,240,null,780,null,700,null,500,null,420,null,250,null,180,null,90,null,30,null,"~"]
[null,null,null,"Telford and Wrekin","E06000020","~",0,null,0,null,0,null,0,null,0,null,0,null,0,null,0,null,0,null,"~",null,0,null,0,null,0]
[null,null,null,"Staffordshire","E10000028",2370,0,null,0,null,0,null,130,null,530,null,550,null,430,null,370,null,190,null,90,null,60,null,10,null,"~"]
[null,null,null,"Warwickshire","E10000031",860,0,null,0,null,0,null,10,null,200,null,240,null,150,null,160,null,70,null,20,null,10,null,"~",null,0]
[null,null,null,"West Midlands","E12000005",620,0,null,0,null,0,null,10,null,80,null,140,null,140,null,100,null,60,null,40,null,30,null,10,null,0]
[null,null,"EAST ",null,"E12000006",15250,420,null,290,null,120,null,380,null,2530,null,3770,null,2850,null,2210,null,1340,null,830,null,440,null,70,null,10]
[null,null,null,"Central Bedfordshire","E06000056",1130,0,null,0,null,0,null,20,null,120,null,240,null,270,null,200,null,140,null,80,null,60,null,"~",null,0]
[null,null,null,"Peterborough","E06000031",1520,120,null,110,null,60,null,40,null,140,null,280,null,240,null,200,null,140,null,120,null,50,null,20,null,"~"]
[null,null,null,"Cambridgeshire","E10000003",740,0,null,0,null,0,null,"~",null,90,null,200,null,140,null,130,null,80,null,50,null,40,null,"~",null,0]
[null,null,null,"Essex","E10000012",4000,0,null,0,null,0,null,140,null,970,null,1250,null,720,null,530,null,280,null,80,null,30,null,10,null,"~"]
[null,null,null,"Hertfordshire","E10000015",1210,0,null,"~",null,0,null,0,null,30,null,120,null,220,null,250,null,240,null,210,null,130,null,20,null,"~"]
[null,null,null,"Norfolk","E10000020",3460,300,null,180,null,60,null,70,null,520,null,780,null,640,null,450,null,220,null,160,null,80,null,20,null,"~"]
[null,null,null,"Suffolk","E10000029",3180,0,null,"~",null,0,null,100,null,660,null,900,null,630,null,450,null,230,null,140,null,70,null,10,null,"~"]
[null,null,"LONDON",null,"E12000007",5090,120,null,70,null,30,null,220,null,820,null,1000,null,840,null,710,null,510,null,450,null,260,null,40,null,"~"]
[null,null,null,"Inner London","E13000001",2390,0,null,0,null,0,null,110,null,290,null,340,null,360,null,390,null,320,null,340,null,200,null,30,null,"~"]
[null,null,null,"Outer London","E13000002",2690,120,null,70,null,30,null,110,null,520,null,660,null,480,null,320,null,190,null,100,null,60,null,10,null,"~"]
[null,null,"SOUTH EAST",null,"E12000008",42710,970,null,600,null,350,null,2220,null,7160,null,9300,null,7700,null,6330,null,3750,null,2590,null,1460,null,250,null,30]
[null,null,null,"Bracknell Forest","E06000036",1940,150,null,100,null,50,null,50,null,470,null,410,null,250,null,210,null,110,null,70,null,50,null,10,null,"~"]
[null,null,null,"Medway","E06000035",510,0,null,0,null,0,null,80,null,120,null,100,null,100,null,50,null,30,null,20,null,10,null,"~",null,0]
[null,null,null,"Portsmouth","E06000044",6120,0,null,0,null,0,null,150,null,1000,null,1350,null,1090,null,890,null,630,null,580,null,350,null,60,null,10]
[null,null,null,"West Berkshire","E06000037",320,0,null,0,null,0,null,"~",null,30,null,90,null,70,null,60,null,30,null,20,null,10,null,0,null,"~"]
[null,null,null,"Windsor and Maidenhead","E06000040",1020,0,null,0,null,0,null,10,null,240,null,330,null,220,null,140,null,60,null,20,null,"~",null,"~",null,0]
[null,null,null,"Wokingham","E06000041","~",0,null,0,null,0,null,0,null,0,null,"~",null,0,null,0,null,0,null,0,null,0,null,0,null,"~"]
[null,null,null,"Buckinghamshire","E10000002",3490,130,null,80,null,70,null,320,null,350,null,380,null,450,null,540,null,420,null,420,null,270,null,60,null,"~"]
[null,null,null,"Hampshire","E10000014",13060,0,null,0,null,0,null,810,null,2550,null,3170,null,2480,null,1930,null,1070,null,660,null,340,null,60,null,"~"]
[null,null,null,"Kent","E10000016",1470,0,null,0,null,0,null,20,null,330,null,390,null,280,null,260,null,130,null,40,null,10,null,"~",null,"~"]
[null,null,null,"Oxfordshire","E10000025",10480,500,null,310,null,160,null,270,null,1180,null,2070,null,2050,null,1820,null,1040,null,660,null,370,null,50,null,"~"]
[null,null,null,"Surrey","E10000030",3370,190,null,110,null,70,null,480,null,670,null,750,null,490,null,290,null,160,null,100,null,40,null,10,null,0]
[null,null,null,"West Sussex","E10000032",920,0,null,0,null,0,null,20,null,210,null,260,null,210,null,140,null,60,null,10,null,"~",null,"~",null,"~"]
[null,null,"SOUTH WEST",null,"E12000009",40070,1420,null,1020,null,520,null,2000,null,7260,null,8860,null,6920,null,5490,null,3180,null,2060,null,1190,null,150,null,20]
[null,null,null,"Cornwall","E06000052",3170,0,null,0,null,0,null,340,null,640,null,680,null,540,null,380,null,270,null,180,null,110,null,10,null,"~"]
[null,null,null,"Plymouth","E06000026",7400,0,null,0,null,0,null,320,null,1660,null,1870,null,1280,null,950,null,590,null,450,null,220,null,40,null,"~"]
[null,null,null,"South Gloucestershire","E06000025",1310,0,null,0,null,0,null,0,null,10,null,50,null,150,null,290,null,250,null,300,null,240,null,20,null,"~"]
[null,null,null,"Wiltshire","E06000054",21310,1420,null,1020,null,520,null,1180,null,3600,null,4370,null,3570,null,2890,null,1480,null,770,null,430,null,50,null,10]
[null,null,null,"Devon","E10000008",1480,0,null,0,null,0,null,30,null,370,null,520,null,270,null,140,null,90,null,40,null,20,null,"~",null,0]
[null,null,null,"Gloucestershire","E10000013",2060,0,null,0,null,0,null,50,null,380,null,430,null,400,null,360,null,230,null,120,null,80,null,10,null,0]
[null,null,null,"Somerset","E10000027",3340,0,null,0,null,0,null,70,null,600,null,930,null,690,null,480,null,270,null,200,null,90,null,20,null,"~"]
[]
[null,"Source: DMICP Data Warehouse"]
[null,"1. In line with Joint Service Publication 200, numbers 5 or fewer have been supressed and presented as '~'."]
[null,"2. Due to rounding, please note that totals may not equal the sum of their parts."]
[null,"3. The presence of  +/- indicates percentage changes in figures over the last quarter.  + indicates there has been a 5% to 10% increase and - indicates there has been between a 5% to 10% decrease.  ++ indicates a greater than 10% increase and -- indicates a greater than 10% decrease."]
[null,"4. Age bands are based on age as at time of data extraction."]

{"sheet":"Table B2.3","index":14,"n_rows":67,"n_cols":26,"rows_kept":67,"cut":false,"hidden":false,"merged":[[7,1,7,3],[5,2,5,3],[63,1,63,21],[65,1,65,22],[64,1,64,21]]}
[null,"Annex B2 - England, by Regions and Local Authorities"]
[]
[null,"Table B2.3: UK Armed Forces personnel DMS registrations, registered to regions & Local Area Authorities by age band, 1 April 2017, Numbers"]
[null,"Defence Statistics (Health)"]
[]
[null,null,"Return to contents"]
[]
[null,"Area Name",null,null,"Area Code","All UK Armed Forces","16-19","+/-","20-24","+/-","25-29","+/-","30-34","+/-","35-39","+/-","40-44","+/-","45-49","+/-","50-54","+/-","55-59","+/-","60+","+/-"]
[null,"ENGLAND",null,null,"E92000001",124640,7050,"+",23560,"",29420,"",22970,"",18650,"",11060,"",7290,"",3960,"",640,"+",50,"-"]
[null,null,"NORTH EAST",null,"E12000001",1260,40,null,270,null,330,null,260,null,180,null,110,null,60,null,30,null,"~",null,0]
[null,null,null,"Northumberland","E06000057",1260,40,null,270,null,330,null,260,null,180,null,110,null,60,null,30,null,"~",null,0]
[null,null,"NORTH WEST ",null,"E12000002",1790,60,null,390,null,510,null,330,null,230,null,140,null,80,null,40,null,10,null,0]
[null,null,null,"Cheshire West and Chester","E06000050",660,30,null,160,null,200,null,110,null,90,null,50,null,20,null,10,null,10,null,0]
[null,null,null,"Cumbria","E10000006",150,"~",null,10,null,30,null,40,null,20,null,20,null,10,null,10,null,"~",null,0]
[null,null,null,"Lancashire","E10000017",990,40,null,220,null,280,null,180,null,120,null,80,null,40,null,20,null,"~",null,0]
[null,null,"YORKSHIRE AND THE HUMBER",null,"E12000003",13330,2140,null,2780,null,3210,null,2200,null,1570,null,840,null,390,null,160,null,30,null,"~"]
[null,null,null,"East Riding of Yorkshire","E06000011",400,90,null,80,null,50,null,50,null,60,null,40,null,20,null,10,null,"~",null,0]
[null,null,null,"York","E06000014",970,10,null,150,null,220,null,200,null,180,null,110,null,60,null,30,null,"~",null,0]
[null,null,null,"North Yorkshire","E10000023",11960,2040,null,2550,null,2940,null,1940,null,1340,null,690,null,300,null,120,null,30,null,"~"]
[null,null,"EAST MIDLANDS",null,"E12000004",9100,130,null,1220,null,1920,null,1850,null,1710,null,1070,null,790,null,330,null,60,null,10]
[null,null,null,"Rutland","E06000017",1540,50,null,390,null,390,null,320,null,240,null,110,null,30,null,10,null,"~",null,0]
[null,null,null,"Lincolnshire","E10000019",6650,80,null,770,null,1410,null,1370,null,1280,null,800,null,620,null,280,null,50,null,10]
[null,null,null,"Nottinghamshire","E10000024",900,"~",null,60,null,120,null,160,null,190,null,160,null,150,null,40,null,10,null,0]
[null,null,"WEST MIDLANDS",null,"E12000005",6660,360,null,1530,null,1520,null,1150,null,1010,null,540,null,320,null,180,null,40,null,"~"]
[null,null,null,"Shropshire","E06000051",2810,210,null,720,null,590,null,430,null,370,null,220,null,160,null,80,null,20,null,"~"]
[null,null,null,"Telford and Wrekin","E06000020","~",0,null,0,null,0,null,0,null,0,null,0,null,"~",null,0,null,0,null,0]
[null,null,null,"Staffordshire","E10000028",2370,130,null,530,null,550,null,430,null,370,null,190,null,90,null,60,null,10,null,"~"]
[null,null,null,"Warwickshire","E10000031",860,10,null,200,null,240,null,150,null,160,null,70,null,20,null,10,null,"~",null,0]
[null,null,null,"West Midlands","E12000005",620,10,null,80,null,140,null,140,null,100,null,60,null,40,null,30,null,10,null,0]
[null,null,"EAST ",null,"E12000006",13770,310,null,2460,null,3620,null,2700,null,2110,null,1290,null,780,null,430,null,70,null,10]
[null,null,null,"Central Bedfordshire","E06000056",1130,20,null,120,null,240,null,270,null,200,null,140,null,80,null,60,null,"~",null,0]
[null,null,null,"Peterborough","E06000031",1020,10,null,130,null,240,null,200,null,160,null,130,null,100,null,50,null,20,null,"~"]
[null,null,null,"Cambridgeshire","E10000003",740,"~",null,90,null,200,null,140,null,130,null,80,null,50,null,40,null,"~",null,0]
[null,null,null,"Essex","E10000012",4000,140,null,970,null,1250,null,720,null,530,null,280,null,80,null,30,null,10,null,"~"]
[null,null,null,"Hertfordshire","E10000015",1200,0,null,30,null,120,null,220,null,250,null,240,null,210,null,130,null,20,null,"~"]
[null,null,null,"Norfolk","E10000020",2500,40,null,470,null,680,null,520,null,390,null,190,null,130,null,70,null,10,null,0]
[null,null,null,"Suffolk","E10000029",3180,100,null,660,null,900,null,630,null,450,null,230,null,140,null,70,null,10,null,"~"]
[null,null,"LONDON",null,"E12000007",4620,190,null,800,null,960,null,780,null,680,null,480,null,430,null,260,null,40,null,"~"]
[null,null,null,"Inner London","E13000001",2390,110,null,290,null,330,null,360,null,390,null,320,null,340,null,200,null,30,null,"~"]
[null,null,null,"Outer London","E13000002",2230,80,null,510,null,620,null,420,null,290,null,150,null,80,null,60,null,10,null,"~"]
[null,null,"SOUTH EAST",null,"E12000008",39120,2020,null,7040,null,8980,null,7330,null,6060,null,3580,null,2470,null,1400,null,230,null,20]
[null,null,null,"Bracknell Forest","E06000036",1290,10,null,440,null,350,null,180,null,160,null,70,null,50,null,40,null,"~",null,"~"]
[null,null,null,"Medway","E06000035",510,80,null,120,null,100,null,100,null,50,null,30,null,20,null,10,null,"~",null,0]
[null,null,null,"Portsmouth","E06000044",6100,150,null,1000,null,1350,null,1090,null,890,null,630,null,580,null,340,null,60,null,"~"]
[null,null,null,"West Berkshire","E06000037",320,"~",null,30,null,90,null,70,null,60,null,30,null,20,null,10,null,0,null,"~"]
[null,null,null,"Windsor and Maidenhead","E06000040",1020,10,null,240,null,330,null,220,null,140,null,60,null,20,null,"~",null,"~",null,0]
[null,null,null,"Wokingham","E06000041","~",0,null,0,null,"~",null,0,null,0,null,0,null,0,null,0,null,0,null,0]
[null,null,null,"Buckinghamshire","E10000002",2980,280,null,350,null,350,null,410,null,510,null,390,null,380,null,250,null,60,null,"~"]
[null,null,null,"Hampshire","E10000014",13060,810,null,2550,null,3170,null,2480,null,1930,null,1070,null,660,null,340,null,50,null,"~"]
[null,null,null,"Kent","E10000016",1470,20,null,330,null,390,null,280,null,260,null,130,null,40,null,10,null,"~",null,0]
[null,null,null,"Oxfordshire","E10000025",8770,170,null,1130,null,1930,null,1880,null,1680,null,970,null,610,null,340,null,40,null,"~"]
[null,null,null,"Surrey","E10000030",2700,460,null,640,null,670,null,410,null,250,null,140,null,90,null,40,null,10,null,0]
[null,null,null,"West Sussex","E10000032",920,20,null,210,null,260,null,210,null,140,null,60,null,10,null,"~",null,"~",null,0]
[null,null,"SOUTH WEST",null,"E12000009",34970,1790,null,7060,null,8370,null,6370,null,5110,null,3010,null,1980,null,1140,null,140,null,10]
[null,null,null,"Cornwall","E06000052",3170,340,null,640,null,680,null,540,null,380,null,270,null,180,null,110,null,10,null,"~"]
[null,null,null,"Plymouth","E06000026",7360,320,null,1660,null,1870,null,1280,null,950,null,590,null,450,null,220,null,40,null,0]
[null,null,null,"South Gloucestershire","E06000025",1310,0,null,10,null,50,null,150,null,290,null,250,null,300,null,240,null,20,null,"~"]
[null,null,null,"Wiltshire","E06000054",16250,980,null,3400,null,3880,null,3040,null,2510,null,1310,null,690,null,390,null,50,null,10]
[null,null,null,"Devon","E10000008",1480,30,null,370,null,520,null,270,null,140,null,90,null,40,null,20,null,"~",null,0]
[null,null,null,"Gloucestershire","E10000013",2060,50,null,380,null,430,null,400,null,360,null,230,null,120,null,80,null,10,null,0]
[null,null,null,"Somerset","E10000027",3340,70,null,600,null,930,null,690,null,480,null,270,null,200,null,90,null,20,null,"~"]
[]
[null,"Source: DMICP Data Warehouse"]
[null,"1. In line with Joint Service Publication 200, numbers 5 or fewer have been supressed and presented as '~'."]
[null,"2. Due to rounding, please note that totals may not equal the sum of their parts."]
[null,"3. The presence of  +/- indicates percentage changes in figures over the last quarter.  + indicates there has been a 5% to 10% increase and - indicates there has been between a 5% to 10% decrease.  ++ indicates a greater than 10% increase and -- indicates a greater than 10% decrease."]
[null,"4. Age bands are based on age as at time of data extraction."]

{"sheet":"Table B2.4","index":15,"n_rows":67,"n_cols":32,"rows_kept":67,"cut":false,"hidden":false,"merged":[[7,1,7,3],[5,2,5,3],[63,1,63,21]]}
[null,"Annex B2 - England, by Regions and Local Authorities"]
[]
[null,"Table B2.4: Entitled civilian personnel DMS registrations, registered to regions & Local Area Authorities by age band, 1 April 2017, Numbers"]
[null,"Defence Statistics (Health)"]
[]
[null,null,"Return to contents"]
[]
[null,"Area Name",null,null,"Area Code","All Civilians","0-4","+/-","5-9","+/-","10-14","+/-","15-19","+/-","20-24","+/-","25-29","+/-","30-34","+/-","35-39","+/-","40-44","+/-","45-49","+/-","50-54","+/-","55-59","+/-","60+","+/-"]
[null,"ENGLAND",null,null,"E92000001",14530,4010,"",2740,"",1420,"",660,"",580,"",1380,"",1480,"",1090,"",570,"",370,"",180,"",50,"",20,"++"]
[null,null,"NORTH EAST",null,"E12000001",0,0,null,0,null,0,null,0,null,0,null,0,null,0,null,0,null,0,null,0,null,0,null,0,null,0]
[null,null,null,"Northumberland","E06000057",0,0,null,0,null,0,null,0,null,0,null,0,null,0,null,0,null,0,null,0,null,0,null,0,null,0]
[null,null,"NORTH WEST ",null,"E12000002",0,0,null,0,null,0,null,0,null,0,null,0,null,0,null,0,null,0,null,0,null,0,null,0,null,0]
[null,null,null,"Cheshire West and Chester","E06000050",0,0,null,0,null,0,null,0,null,0,null,0,null,0,null,0,null,0,null,0,null,0,null,0,null,0]
[null,null,null,"Cumbria","E10000006",0,0,null,0,null,0,null,0,null,0,null,0,null,0,null,0,null,0,null,0,null,0,null,0,null,0]
[null,null,null,"Lancashire","E10000017",0,0,null,0,null,0,null,0,null,0,null,0,null,0,null,0,null,0,null,0,null,0,null,0,null,0]
[null,null,"YORKSHIRE AND THE HUMBER",null,"E12000003",1720,510,null,340,null,180,null,70,null,50,null,160,null,160,null,140,null,60,null,30,null,20,null,"~",null,0]
[null,null,null,"East Riding of Yorkshire","E06000011",0,0,null,0,null,0,null,0,null,0,null,0,null,0,null,0,null,0,null,0,null,0,null,0,null,0]
[null,null,null,"York","E06000014",0,0,null,0,null,0,null,0,null,0,null,0,null,0,null,0,null,0,null,0,null,0,null,0,null,0]
[null,null,null,"North Yorkshire","E10000023",1720,510,null,340,null,180,null,70,null,50,null,160,null,160,null,140,null,60,null,30,null,20,null,"~",null,0]
[null,null,"EAST MIDLANDS",null,"E12000004",1500,400,null,320,null,170,null,50,null,60,null,130,null,120,null,120,null,60,null,40,null,20,null,"~",null,"~"]
[null,null,null,"Rutland","E06000017",780,240,null,170,null,60,null,20,null,50,null,90,null,70,null,60,null,20,null,10,null,"~",null,0,null,"~"]
[null,null,null,"Lincolnshire","E10000019",720,160,null,140,null,110,null,40,null,10,null,40,null,50,null,60,null,50,null,40,null,10,null,"~",null,"~"]
[null,null,null,"Nottinghamshire","E10000024","~",0,null,0,null,0,null,0,null,0,null,0,null,0,null,0,null,0,null,0,null,"~",null,0,null,0]
[null,null,"WEST MIDLANDS",null,"E12000005",700,170,null,100,null,50,null,30,null,70,null,100,null,70,null,50,null,30,null,20,null,10,null,"~",null,0]
[null,null,null,"Shropshire","E06000051",700,170,null,100,null,50,null,30,null,70,null,100,null,70,null,50,null,30,null,20,null,10,null,"~",null,0]
[null,null,null,"Telford and Wrekin","E06000020",0,0,null,0,null,0,null,0,null,0,null,0,null,0,null,0,null,0,null,0,null,0,null,0,null,0]
[null,null,null,"Staffordshire","E10000028",0,0,null,0,null,0,null,0,null,0,null,0,null,0,null,0,null,0,null,0,null,0,null,0,null,0]
[null,null,null,"Warwickshire","E10000031",0,0,null,0,null,0,null,0,null,0,null,0,null,0,null,0,null,0,null,0,null,0,null,0,null,0]
[null,null,null,"West Midlands","E12000005",0,0,null,0,null,0,null,0,null,0,null,0,null,0,null,0,null,0,null,0,null,0,null,0,null,0]
[null,null,"EAST ",null,"E12000006",1470,420,null,290,null,120,null,60,null,70,null,140,null,160,null,100,null,50,null,50,null,10,null,10,null,"~"]
[null,null,null,"Central Bedfordshire","E06000056","~",0,null,0,null,0,null,0,null,0,null,0,null,"~",null,0,null,0,null,0,null,0,null,0,null,0]
[null,null,null,"Peterborough","E06000031",500,120,null,110,null,60,null,40,null,20,null,40,null,40,null,40,null,20,null,20,null,"~",null,"~",null,0]
[null,null,null,"Cambridgeshire","E10000003",0,0,null,0,null,0,null,0,null,0,null,0,null,0,null,0,null,0,null,0,null,0,null,0,null,0]
[null,null,null,"Essex","E10000012","~",0,null,0,null,0,null,0,null,0,null,"~",null,0,null,0,null,0,null,0,null,0,null,0,null,0]
[null,null,null,"Hertfordshire","E10000015",10,0,null,"~",null,0,null,0,null,0,null,"~",null,0,null,"~",null,0,null,"~",null,"~",null,"~",null,0]
[null,null,null,"Norfolk","E10000020",960,300,null,180,null,60,null,30,null,50,null,100,null,110,null,60,null,30,null,30,null,"~",null,"~",null,"~"]
[null,null,null,"Suffolk","E10000029",10,0,null,"~",null,0,null,0,null,"~",null,"~",null,0,null,0,null,0,null,0,null,"~",null,0,null,0]
[null,null,"LONDON",null,"E12000007",460,120,null,70,null,30,null,30,null,20,null,40,null,60,null,30,null,30,null,20,null,"~",null,0,null,0]
[null,null,null,"Inner London","E13000001","~",0,null,0,null,0,null,0,null,0,null,"~",null,0,null,0,null,0,null,0,null,0,null,0,null,0]
[null,null,null,"Outer London","E13000002",460,120,null,70,null,30,null,30,null,20,null,40,null,60,null,30,null,30,null,20,null,"~",null,0,null,0]
[null,null,"SOUTH EAST",null,"E12000008",3580,970,null,600,null,350,null,200,null,120,null,320,null,360,null,260,null,170,null,120,null,70,null,20,null,10]
[null,null,null,"Bracknell Forest","E06000036",640,150,null,100,null,50,null,40,null,30,null,60,null,70,null,50,null,40,null,20,null,10,null,"~",null,"~"]
[null,null,null,"Medway","E06000035",0,0,null,0,null,0,null,0,null,0,null,0,null,0,null,0,null,0,null,0,null,0,null,0,null,0]
[null,null,null,"Portsmouth","E06000044",30,0,null,0,null,0,null,0,null,"~",null,0,null,"~",null,"~",null,"~",null,"~",null,10,null,"~",null,"~"]
[null,null,null,"West Berkshire","E06000037",0,0,null,0,null,0,null,0,null,0,null,0,null,0,null,0,null,0,null,0,null,0,null,0,null,0]
[null,null,null,"Windsor and Maidenhead","E06000040","~",0,null,0,null,0,null,0,null,0,null,0,null,"~",null,0,null,0,null,0,null,0,null,0,null,0]
[null,null,null,"Wokingham","E06000041","~",0,null,0,null,0,null,0,null,0,null,0,null,0,null,0,null,0,null,0,null,0,null,0,null,"~"]
[null,null,null,"Buckinghamshire","E10000002",520,130,null,80,null,70,null,40,null,"~",null,30,null,40,null,40,null,30,null,30,null,20,null,"~",null,"~"]
[null,null,null,"Hampshire","E10000014",10,0,null,0,null,0,null,0,null,"~",null,0,null,0,null,"~",null,"~",null,"~",null,0,null,"~",null,0]
[null,null,null,"Kent","E10000016","~",0,null,0,null,0,null,0,null,0,null,0,null,0,null,0,null,0,null,0,null,0,null,0,null,"~"]
[null,null,null,"Oxfordshire","E10000025",1710,500,null,310,null,160,null,100,null,50,null,140,null,170,null,130,null,60,null,50,null,20,null,10,null,"~"]
[null,null,null,"Surrey","E10000030",680,190,null,110,null,70,null,30,null,30,null,90,null,80,null,40,null,20,null,10,null,"~",null,0,null,0]
[null,null,null,"West Sussex","E10000032","~",0,null,0,null,0,null,0,null,0,null,0,null,0,null,0,null,0,null,0,null,0,null,0,null,"~"]
[null,null,"SOUTH WEST",null,"E12000009",5100,1420,null,1020,null,520,null,210,null,200,null,490,null,540,null,380,null,180,null,80,null,50,null,10,null,"~"]
[null,null,null,"Cornwall","E06000052","~",0,null,0,null,0,null,0,null,0,null,0,null,"~",null,0,null,0,null,0,null,0,null,0,null,0]
[null,null,null,"Plymouth","E06000026",40,0,null,0,null,0,null,"~",null,0,null,"~",null,10,null,"~",null,10,null,"~",null,10,null,"~",null,"~"]
[null,null,null,"South Gloucestershire","E06000025",0,0,null,0,null,0,null,0,null,0,null,0,null,0,null,0,null,0,null,0,null,0,null,0,null,0]
[null,null,null,"Wiltshire","E06000054",5060,1420,null,1020,null,520,null,200,null,200,null,480,null,530,null,380,null,170,null,80,null,40,null,10,null,"~"]
[null,null,null,"Devon","E10000008",0,0,null,0,null,0,null,0,null,0,null,0,null,0,null,0,null,0,null,0,null,0,null,0,null,0]
[null,null,null,"Gloucestershire","E10000013",0,0,null,0,null,0,null,0,null,0,null,0,null,0,null,0,null,0,null,0,null,0,null,0,null,0]
[null,null,null,"Somerset","E10000027","~",0,null,0,null,0,null,0,null,0,null,0,null,0,null,0,null,0,null,0,null,0,null,"~",null,0]
[]
[null,"Source: DMICP Data Warehouse"]
[null,"1. In line with Joint Service Publication 200, numbers 5 or fewer have been supressed and presented as '~'."]
[null,"2. Due to rounding, please note that totals may not equal the sum of their parts."]
[null,"3. The presence of  +/- indicates percentage changes in figures over the last quarter.  + indicates there has been a 5% to 10% increase and - indicates there has been between a 5% to 10% decrease.  ++ indicates a greater than 10% increase and -- indicates a greater than 10% decrease."]
[null,"4. Age bands are based on age as at time of data extraction."]

{"sheet":"Table B2.5","index":16,"n_rows":67,"n_cols":23,"rows_kept":67,"cut":false,"hidden":false,"merged":[[5,2,5,3],[64,1,64,21],[7,17,7,22],[7,11,7,16],[8,1,8,3],[7,5,7,10]]}
[null,"Annex B2 - England, by Regions and Local Authorities"]
[]
[null,"Table B2.5: UK Armed Forces personnel and entitled civilian personnel DMS registrations, registered to regions & Local Area Authorities by gender, 1 April 2017, Numbers"]
[null,"Defence Statistics (Health)"]
[]
[null,null,"Return to contents"]
[]
[null,null,null,null,null,"All Persons",null,null,null,null,null,"UK Armed Forces",null,null,null,null,null,"Civilian"]
[null,"Area Name",null,null,"Area Code","All","+/-","Male","+/-","Female","+/-","All","+/-","Male","+/-","Female","+/-","All","+/-","Male","+/-","Female","+/-"]
[null,"ENGLAND",null,null,"E92000001",139180,"",116050,"",23120,"",124640,"",111070,"",13580,"",14530,"",4980,"",9550,""]
[null,null,"NORTH EAST",null,"E12000001",1260,null,1140,null,120,null,1260,null,1140,null,120,null,0,null,0,null,0]
[null,null,null,"Northumberland","E06000057",1260,null,1140,null,120,null,1260,null,1140,null,120,null,0,null,0,null,0]
[null,null,"NORTH WEST ",null,"E12000002",1790,null,1640,null,150,null,1790,null,1640,null,150,null,0,null,0,null,0]
[null,null,null,"Cheshire West and Chester","E06000050",660,null,620,null,40,null,660,null,620,null,40,null,0,null,0,null,0]
[null,null,null,"Cumbria","E10000006",150,null,140,null,10,null,150,null,140,null,10,null,0,null,0,null,0]
[null,null,null,"Lancashire","E10000017",990,null,880,null,100,null,990,null,880,null,100,null,0,null,0,null,0]
[null,null,"YORKSHIRE AND THE HUMBER",null,"E12000003",15050,null,12800,null,2250,null,13330,null,12210,null,1130,null,1720,null,600,null,1120]
[null,null,null,"East Riding of Yorkshire","E06000011",400,null,360,null,40,null,400,null,360,null,40,null,0,null,0,null,0]
[null,null,null,"York","E06000014",970,null,840,null,130,null,970,null,840,null,130,null,0,null,0,null,0]
[null,null,null,"North Yorkshire","E10000023",13680,null,11600,null,2080,null,11960,null,11000,null,960,null,1720,null,600,null,1120]
[null,null,"EAST MIDLANDS",null,"E12000004",10600,null,8540,null,2050,null,9100,null,8010,null,1090,null,1500,null,530,null,970]
[null,null,null,"Rutland","E06000017",2320,null,1610,null,710,null,1540,null,1350,null,200,null,780,null,260,null,510]
[null,null,null,"Lincolnshire","E10000019",7370,null,6080,null,1290,null,6650,null,5820,null,830,null,720,null,270,null,460]
[null,null,null,"Nottinghamshire","E10000024",910,null,850,null,60,null,900,null,850,null,60,null,"~",null,"~",null,0]
[null,null,"WEST MIDLANDS",null,"E12000005",7360,null,5840,null,1520,null,6660,null,5530,null,1140,null,700,null,310,null,390]
[null,null,null,"Shropshire","E06000051",3510,null,2850,null,660,null,2810,null,2540,null,270,null,700,null,310,null,390]
[null,null,null,"Telford and Wrekin","E06000020","~",null,"~",null,0,null,"~",null,"~",null,0,null,0,null,0,null,0]
[null,null,null,"Staffordshire","E10000028",2370,null,1930,null,440,null,2370,null,1930,null,440,null,0,null,0,null,0]
[null,null,null,"Warwickshire","E10000031",860,null,800,null,60,null,860,null,800,null,60,null,0,null,0,null,0]
[null,null,null,"West Midlands","E12000005",620,null,260,null,360,null,620,null,260,null,360,null,0,null,0,null,0]
[null,null,"EAST ",null,"E12000006",15250,null,12950,null,2300,null,13770,null,12440,null,1330,null,1470,null,500,null,970]
[null,null,null,"Central Bedfordshire","E06000056",1130,null,910,null,220,null,1130,null,910,null,220,null,"~",null,0,null,"~"]
[null,null,null,"Peterborough","E06000031",1520,null,1080,null,450,null,1020,null,900,null,120,null,500,null,170,null,330]
[null,null,null,"Cambridgeshire","E10000003",740,null,610,null,120,null,740,null,610,null,120,null,0,null,0,null,0]
[null,null,null,"Essex","E10000012",4000,null,3750,null,250,null,4000,null,3750,null,250,null,"~",null,"~",null,0]
[null,null,null,"Hertfordshire","E10000015",1210,null,1050,null,160,null,1200,null,1040,null,160,null,10,null,"~",null,"~"]
[null,null,null,"Norfolk","E10000020",3460,null,2580,null,870,null,2500,null,2270,null,240,null,960,null,320,null,640]
[null,null,null,"Suffolk","E10000029",3180,null,2960,null,230,null,3180,null,2950,null,220,null,10,null,10,null,"~"]
[null,null,"LONDON",null,"E12000007",5090,null,4270,null,820,null,4620,null,4120,null,510,null,460,null,150,null,310]
[null,null,null,"Inner London","E13000001",2390,null,2160,null,230,null,2390,null,2160,null,230,null,"~",null,0,null,"~"]
[null,null,null,"Outer London","E13000002",2690,null,2110,null,580,null,2230,null,1960,null,280,null,460,null,150,null,310]
[null,null,"SOUTH EAST",null,"E12000008",42710,null,35350,null,7360,null,39120,null,34160,null,4960,null,3580,null,1190,null,2400]
[null,null,null,"Bracknell Forest","E06000036",1940,null,1310,null,630,null,1290,null,1120,null,180,null,640,null,190,null,450]
[null,null,null,"Medway","E06000035",510,null,480,null,20,null,510,null,480,null,20,null,0,null,0,null,0]
[null,null,null,"Portsmouth","E06000044",6120,null,5270,null,860,null,6100,null,5240,null,850,null,30,null,20,null,"~"]
[null,null,null,"West Berkshire","E06000037",320,null,290,null,40,null,320,null,290,null,40,null,0,null,0,null,0]
[null,null,null,"Windsor and Maidenhead","E06000040",1020,null,970,null,50,null,1020,null,970,null,50,null,"~",null,"~",null,"~"]
[null,null,null,"Wokingham","E06000041","~",null,"~",null,0,null,"~",null,"~",null,0,null,"~",null,"~",null,0]
[null,null,null,"Buckinghamshire","E10000002",3490,null,2580,null,920,null,2980,null,2390,null,580,null,520,null,180,null,330]
[null,null,null,"Hampshire","E10000014",13060,null,11460,null,1600,null,13060,null,11460,null,1600,null,10,null,"~",null,"~"]
[null,null,null,"Kent","E10000016",1470,null,1440,null,20,null,1470,null,1440,null,20,null,"~",null,"~",null,0]
[null,null,null,"Oxfordshire","E10000025",10480,null,8150,null,2330,null,8770,null,7590,null,1190,null,1710,null,560,null,1150]
[null,null,null,"Surrey","E10000030",3370,null,2580,null,790,null,2700,null,2360,null,330,null,680,null,220,null,460]
[null,null,null,"West Sussex","E10000032",920,null,820,null,100,null,920,null,820,null,100,null,"~",null,"~",null,0]
[null,null,"SOUTH WEST",null,"E12000009",40070,null,33510,null,6560,null,34970,null,31810,null,3160,null,5100,null,1700,null,3400]
[null,null,null,"Cornwall","E06000052",3170,null,2790,null,380,null,3170,null,2780,null,380,null,"~",null,"~",null,0]
[null,null,null,"Plymouth","E06000026",7400,null,6620,null,780,null,7360,null,6600,null,760,null,40,null,20,null,20]
[null,null,null,"South Gloucestershire","E06000025",1310,null,1200,null,110,null,1310,null,1200,null,110,null,0,null,0,null,0]
[null,null,null,"Wiltshire","E06000054",21310,null,16530,null,4780,null,16250,null,14860,null,1400,null,5060,null,1680,null,3380]
[null,null,null,"Devon","E10000008",1480,null,1440,null,40,null,1480,null,1440,null,40,null,0,null,0,null,0]
[null,null,null,"Gloucestershire","E10000013",2060,null,1830,null,230,null,2060,null,1830,null,230,null,0,null,0,null,0]
[null,null,null,"Somerset","E10000027",3340,null,3100,null,240,null,3340,null,3100,null,230,null,"~",null,"~",null,"~"]
[]
[null,"Source: DMICP Data Warehouse"]
[null,"1. In line with Joint Service Publication 200, numbers 5 or fewer have been supressed and presented as '~'."]
[null,"2. Due to rounding, please note that totals may not equal the sum of their parts."]
[null,"3. The presence of  +/- indicates percentage changes in figures over the last quarter.  + indicates there has been a 5% to 10% increase and - indicates there has been between a 5% to 10% decrease.  ++ indicates a greater than 10% increase and -- indicates a greater than 10% decrease."]

{"sheet":"Table B2.6","index":17,"n_rows":67,"n_cols":32,"rows_kept":67,"cut":false,"hidden":false,"merged":[[7,1,7,3],[5,2,5,3],[63,1,63,21],[64,1,64,24],[65,1,65,30]]}
[null,"Annex B2 - England, by Regions and Local Authorities"]
[]
[null,"Table B2.6: UK Armed Forces males and entitled civilian males DMS registrations, registered to regions & Local Area Authorities by age band, 1 April 2017, Numbers"]
[null,"Defence Statistics (Health)"]
[]
[null,null,"Return to contents"]
[]
[null,"Area Name",null,null,"Area Code","All Males","0-4","+/-","5-9","+/-","10-14","+/-","15-19","+/-","20-24","+/-","25-29","+/-","30-34","+/-","35-39","+/-","40-44","+/-","45-49","+/-","50-54","+/-","55-59","+/-","60+","+/-"]
[null,"ENGLAND",null,null,"E92000001",116050,2070,"",1390,"",730,"",6740,"+",21240,"",26140,"",20160,"",16370,"",9950,"",6740,"",3810,"",630,"+",60,""]
[null,null,"NORTH EAST",null,"E12000001",1140,0,null,0,null,0,null,30,null,240,null,300,null,240,null,160,null,100,null,50,null,30,null,"~",null,0]
[null,null,null,"Northumberland","E06000057",1140,0,null,0,null,0,null,30,null,240,null,300,null,240,null,160,null,100,null,50,null,30,null,"~",null,0]
[null,null,"NORTH WEST ",null,"E12000002",1640,0,null,0,null,0,null,60,null,360,null,460,null,300,null,210,null,130,null,70,null,40,null,10,null,0]
[null,null,null,"Cheshire West and Chester","E06000050",620,0,null,0,null,0,null,30,null,150,null,180,null,100,null,80,null,40,null,20,null,10,null,10,null,0]
[null,null,null,"Cumbria","E10000006",140,0,null,0,null,0,null,"~",null,10,null,30,null,40,null,20,null,20,null,10,null,10,null,"~",null,0]
[null,null,null,"Lancashire","E10000017",880,0,null,0,null,0,null,30,null,190,null,250,null,160,null,110,null,70,null,40,null,20,null,"~",null,0]
[null,null,"YORKSHIRE AND THE HUMBER",null,"E12000003",12800,260,null,180,null,90,null,2060,null,2560,null,2920,null,2000,null,1420,null,760,null,360,null,150,null,40,null,"~"]
[null,null,null,"East Riding of Yorkshire","E06000011",360,0,null,0,null,0,null,90,null,70,null,40,null,40,null,50,null,40,null,20,null,10,null,"~",null,0]
[null,null,null,"York","E06000014",840,0,null,0,null,0,null,"~",null,120,null,200,null,170,null,160,null,100,null,60,null,30,null,"~",null,0]
[null,null,null,"North Yorkshire","E10000023",11600,260,null,180,null,90,null,1970,null,2360,null,2670,null,1780,null,1210,null,630,null,280,null,110,null,30,null,"~"]
[null,null,"EAST MIDLANDS",null,"E12000004",8540,220,null,160,null,90,null,150,null,1060,null,1680,null,1600,null,1500,null,960,null,750,null,320,null,60,null,10]
[null,null,null,"Rutland","E06000017",1610,120,null,80,null,40,null,60,null,340,null,340,null,280,null,220,null,100,null,30,null,10,null,"~",null,0]
[null,null,null,"Lincolnshire","E10000019",6080,100,null,80,null,60,null,80,null,670,null,1230,null,1170,null,1100,null,700,null,580,null,270,null,40,null,10]
[null,null,null,"Nottinghamshire","E10000024",850,0,null,0,null,0,null,"~",null,60,null,110,null,150,null,180,null,160,null,140,null,40,null,10,null,0]
[null,null,"WEST MIDLANDS",null,"E12000005",5840,80,null,50,null,30,null,300,null,1350,null,1320,null,930,null,850,null,460,null,270,null,160,null,40,null,"~"]
[null,null,null,"Shropshire","E06000051",2850,80,null,50,null,30,null,210,null,730,null,590,null,380,null,320,null,200,null,150,null,80,null,20,null,"~"]
[null,null,null,"Telford and Wrekin","E06000020","~",0,null,0,null,0,null,0,null,0,null,0,null,0,null,0,null,0,null,"~",null,0,null,0,null,0]
[null,null,null,"Staffordshire","E10000028",1930,0,null,0,null,0,null,80,null,420,null,470,null,360,null,310,null,150,null,70,null,40,null,10,null,"~"]
[null,null,null,"Warwickshire","E10000031",800,0,null,0,null,0,null,10,null,180,null,220,null,140,null,160,null,60,null,20,null,10,null,"~",null,0]
[null,null,null,"West Midlands","E12000005",260,0,null,0,null,0,null,"~",null,20,null,40,null,50,null,60,null,40,null,30,null,20,null,10,null,0]
[null,null,"EAST ",null,"E12000006",12950,230,null,140,null,60,null,310,null,2260,null,3270,null,2390,null,1870,null,1180,null,730,null,420,null,70,null,10]
[null,null,null,"Central Bedfordshire","E06000056",910,0,null,0,null,0,null,10,null,80,null,180,null,220,null,170,null,120,null,70,null,50,null,"~",null,0]
[null,null,null,"Peterborough","E06000031",1080,60,null,60,null,30,null,20,null,110,null,210,null,180,null,140,null,110,null,100,null,40,null,10,null,"~"]
[null,null,null,"Cambridgeshire","E10000003",610,0,null,0,null,0,null,"~",null,70,null,160,null,110,null,100,null,70,null,50,null,30,null,"~",null,0]
[null,null,null,"Essex","E10000012",3750,0,null,0,null,0,null,130,null,920,null,1170,null,660,null,490,null,260,null,70,null,30,null,10,null,"~"]
[null,null,null,"Hertfordshire","E10000015",1050,0,null,0,null,0,null,0,null,20,null,90,null,170,null,210,null,220,null,190,null,130,null,20,null,"~"]
[null,null,null,"Norfolk","E10000020",2580,170,null,90,null,30,null,50,null,440,null,610,null,460,null,340,null,180,null,120,null,70,null,10,null,"~"]
[null,null,null,"Suffolk","E10000029",2960,0,null,"~",null,0,null,90,null,620,null,840,null,580,null,400,null,210,null,130,null,60,null,10,null,"~"]
[null,null,"LONDON",null,"E12000007",4270,60,null,30,null,10,null,200,null,740,null,860,null,680,null,590,null,410,null,400,null,250,null,40,null,"~"]
[null,null,null,"Inner London","E13000001",2160,0,null,0,null,0,null,110,null,270,null,310,null,310,null,330,null,280,null,320,null,190,null,30,null,"~"]
[null,null,null,"Outer London","E13000002",2110,60,null,30,null,10,null,90,null,460,null,550,null,370,null,260,null,130,null,80,null,50,null,10,null,"~"]
[null,null,"SOUTH EAST",null,"E12000008",35350,490,null,300,null,180,null,1900,null,6220,null,7770,null,6270,null,5190,null,3210,null,2250,null,1330,null,230,null,20]
[null,null,null,"Bracknell Forest","E06000036",1310,80,null,50,null,30,null,30,null,390,null,300,null,150,null,140,null,70,null,40,null,40,null,"~",null,"~"]
[null,null,null,"Medway","E06000035",480,0,null,0,null,0,null,80,null,110,null,100,null,100,null,50,null,30,null,20,null,"~",null,"~",null,0]
[null,null,null,"Portsmouth","E06000044",5270,0,null,0,null,0,null,120,null,850,null,1150,null,910,null,730,null,560,null,540,null,340,null,60,null,10]
[null,null,null,"West Berkshire","E06000037",290,0,null,0,null,0,null,"~",null,30,null,80,null,60,null,50,null,30,null,20,null,10,null,0,null,"~"]
[null,null,null,"Windsor and Maidenhead","E06000040",970,0,null,0,null,0,null,10,null,230,null,310,null,210,null,130,null,60,null,20,null,"~",null,"~",null,0]
[null,null,null,"Wokingham","E06000041","~",0,null,0,null,0,null,0,null,0,null,"~",null,0,null,0,null,0,null,0,null,0,null,0,null,"~"]
[null,null,null,"Buckinghamshire","E10000002",2580,70,null,40,null,30,null,270,null,290,null,270,null,300,null,370,null,320,null,330,null,240,null,60,null,"~"]
[null,null,null,"Hampshire","E10000014",11460,0,null,0,null,0,null,730,null,2260,null,2760,null,2130,null,1650,null,960,null,590,null,320,null,50,null,"~"]
[null,null,null,"Kent","E10000016",1440,0,null,0,null,0,null,20,null,330,null,380,null,280,null,250,null,130,null,40,null,10,null,"~",null,"~"]
[null,null,null,"Oxfordshire","E10000025",8150,250,null,150,null,80,null,200,null,960,null,1620,null,1600,null,1480,null,870,null,570,null,330,null,40,null,"~"]
[null,null,null,"Surrey","E10000030",2580,90,null,60,null,40,null,420,null,570,null,580,null,360,null,200,null,120,null,80,null,40,null,10,null,0]
[null,null,null,"West Sussex","E10000032",820,0,null,0,null,0,null,10,null,180,null,230,null,190,null,140,null,60,null,10,null,"~",null,"~",null,"~"]
[null,null,"SOUTH WEST",null,"E12000009",33510,730,null,520,null,260,null,1740,null,6450,null,7570,null,5760,null,4590,null,2760,null,1860,null,1120,null,140,null,20]
[null,null,null,"Cornwall","E06000052",2790,0,null,0,null,0,null,300,null,560,null,580,null,480,null,320,null,250,null,160,null,110,null,10,null,"~"]
[null,null,null,"Plymouth","E06000026",6620,0,null,0,null,0,null,300,null,1480,null,1640,null,1120,null,860,null,540,null,420,null,220,null,40,null,0]
[null,null,null,"South Gloucestershire","E06000025",1200,0,null,0,null,0,null,0,null,"~",null,40,null,130,null,260,null,230,null,280,null,240,null,20,null,"~"]
[null,null,null,"Wiltshire","E06000054",16530,730,null,520,null,260,null,1000,null,3150,null,3550,null,2770,null,2270,null,1200,null,650,null,370,null,50,null,10]
[null,null,null,"Devon","E10000008",1440,0,null,0,null,0,null,30,null,370,null,510,null,260,null,140,null,90,null,40,null,20,null,"~",null,0]
[null,null,null,"Gloucestershire","E10000013",1830,0,null,0,null,0,null,50,null,340,null,380,null,370,null,300,null,210,null,110,null,70,null,10,null,0]
[null,null,null,"Somerset","E10000027",3100,0,null,0,null,0,null,60,null,560,null,860,null,630,null,440,null,250,null,190,null,90,null,20,null,"~"]
[]
[null,"Source: DMICP Data Warehouse"]
[null,"1. In line with Joint Service Publication 200, numbers 5 or fewer have been supressed and presented as '~'."]
[null,"2. Due to rounding, please note that totals may not equal the sum of their parts."]
[null,"3. The presence of  +/- indicates percentage changes in figures over the last quarter.  + indicates there has been a 5% to 10% increase and - indicates there has been between a 5% to 10% decrease.  ++ indicates a greater than 10% increase and -- indicates a greater than 10% decrease."]
[null,"4. Age bands are based on age as at time of data extraction."]

{"sheet":"Table B2.7","index":18,"n_rows":67,"n_cols":32,"rows_kept":67,"cut":false,"hidden":false,"merged":[[7,1,7,3],[5,2,5,3],[63,1,63,21],[65,1,65,28],[64,1,64,28]]}
[null,"Annex B2 - England, by Regions and Local Authorities"]
[]
[null,"Table B2.7: UK Armed Forces females and entitled civilian females DMS registrations, registered to regions & Local Area Authorities by age band, 1 April 2017, Numbers"]
[null,"Defence Statistics (Health)"]
[]
[null,null,"Return to contents"]
[]
[null,"Area Name",null,null,"Area Code","All Females","0-4","+/-","5-9","+/-","10-14","+/-","15-19","+/-","20-24","+/-","25-29","+/-","30-34","+/-","35-39","+/-","40-44","+/-","45-49","+/-","50-54","+/-","55-59","+/-","60+","+/-"]
[null,"ENGLAND",null,null,"E92000001",23120,1940,"",1350,"",680,"",970,"",2900,"",4660,"",4280,"",3370,"",1670,"",920,"",330,"",60,"",10,""]
[null,null,"NORTH EAST",null,"E12000001",120,0,null,0,null,0,null,10,null,30,null,30,null,20,null,20,null,10,null,"~",null,"~",null,0,null,0]
[null,null,null,"Northumberland","E06000057",120,0,null,0,null,0,null,10,null,30,null,30,null,20,null,20,null,10,null,"~",null,"~",null,0,null,0]
[null,null,"NORTH WEST ",null,"E12000002",150,0,null,0,null,0,null,"~",null,40,null,40,null,20,null,30,null,10,null,"~",null,0,null,0,null,0]
[null,null,null,"Cheshire West and Chester","E06000050",40,0,null,0,null,0,null,0,null,"~",null,10,null,10,null,10,null,"~",null,"~",null,0,null,0,null,0]
[null,null,null,"Cumbria","E10000006",10,0,null,0,null,0,null,0,null,0,null,"~",null,"~",null,"~",null,0,null,0,null,0,null,0,null,0]
[null,null,null,"Lancashire","E10000017",100,0,null,0,null,0,null,"~",null,30,null,30,null,20,null,20,null,"~",null,"~",null,0,null,0,null,0]
[null,null,"YORKSHIRE AND THE HUMBER",null,"E12000003",2250,240,null,160,null,80,null,150,null,270,null,450,null,360,null,300,null,130,null,60,null,30,null,"~",null,"~"]
[null,null,null,"East Riding of Yorkshire","E06000011",40,0,null,0,null,0,null,10,null,10,null,10,null,10,null,10,null,"~",null,0,null,0,null,0,null,0]
[null,null,null,"York","E06000014",130,0,null,0,null,0,null,"~",null,20,null,30,null,30,null,20,null,10,null,10,null,"~",null,0,null,0]
[null,null,null,"North Yorkshire","E10000023",2080,240,null,160,null,80,null,140,null,240,null,420,null,320,null,270,null,120,null,60,null,30,null,"~",null,"~"]
[null,null,"EAST MIDLANDS",null,"E12000004",2050,180,null,150,null,80,null,40,null,220,null,370,null,380,null,330,null,180,null,90,null,20,null,"~",null,"~"]
[null,null,null,"Rutland","E06000017",710,120,null,90,null,20,null,10,null,100,null,140,null,110,null,80,null,20,null,10,null,"~",null,0,null,"~"]
[null,null,null,"Lincolnshire","E10000019",1290,70,null,70,null,60,null,30,null,110,null,230,null,250,null,230,null,150,null,80,null,20,null,"~",null,0]
[null,null,null,"Nottinghamshire","E10000024",60,0,null,0,null,0,null,0,null,10,null,10,null,10,null,10,null,10,null,10,null,"~",null,0,null,0]
[null,null,"WEST MIDLANDS",null,"E12000005",1520,90,null,50,null,20,null,90,null,250,null,310,null,290,null,210,null,110,null,70,null,30,null,10,null,0]
[null,null,null,"Shropshire","E06000051",660,90,null,50,null,20,null,30,null,60,null,110,null,130,null,90,null,40,null,40,null,10,null,"~",null,0]
[null,null,null,"Telford and Wrekin","E06000020",0,0,null,0,null,0,null,0,null,0,null,0,null,0,null,0,null,0,null,0,null,0,null,0,null,0]
[null,null,null,"Staffordshire","E10000028",440,0,null,0,null,0,null,50,null,110,null,90,null,60,null,60,null,40,null,20,null,10,null,"~",null,0]
[null,null,null,"Warwickshire","E10000031",60,0,null,0,null,0,null,0,null,20,null,20,null,10,null,10,null,"~",null,"~",null,0,null,0,null,0]
[null,null,null,"West Midlands","E12000005",360,0,null,0,null,0,null,10,null,70,null,100,null,90,null,50,null,20,null,10,null,10,null,"~",null,0]
[null,null,"EAST ",null,"E12000006",2300,190,null,140,null,60,null,60,null,260,null,500,null,460,null,340,null,160,null,100,null,20,null,"~",null,0]
[null,null,null,"Central Bedfordshire","E06000056",220,0,null,0,null,0,null,10,null,40,null,60,null,40,null,30,null,20,null,10,null,10,null,0,null,0]
[null,null,null,"Peterborough","E06000031",450,50,null,50,null,30,null,20,null,40,null,80,null,60,null,60,null,30,null,20,null,"~",null,"~",null,0]
[null,null,null,"Cambridgeshire","E10000003",120,0,null,0,null,0,null,"~",null,20,null,30,null,30,null,20,null,10,null,10,null,"~",null,0,null,0]
[null,null,null,"Essex","E10000012",250,0,null,0,null,0,null,10,null,50,null,80,null,60,null,40,null,20,null,"~",null,0,null,0,null,0]
[null,null,null,"Hertfordshire","E10000015",160,0,null,"~",null,0,null,0,null,"~",null,30,null,40,null,40,null,20,null,20,null,"~",null,0,null,0]
[null,null,null,"Norfolk","E10000020",870,140,null,90,null,30,null,20,null,70,null,160,null,170,null,100,null,40,null,40,null,"~",null,"~",null,0]
[null,null,null,"Suffolk","E10000029",230,0,null,0,null,0,null,10,null,40,null,60,null,50,null,40,null,20,null,"~",null,"~",null,0,null,0]
[null,null,"LONDON",null,"E12000007",820,60,null,40,null,20,null,30,null,80,null,140,null,160,null,120,null,100,null,40,null,20,null,"~",null,0]
[null,null,null,"Inner London","E13000001",230,0,null,0,null,0,null,0,null,20,null,30,null,50,null,60,null,50,null,20,null,10,null,"~",null,0]
[null,null,null,"Outer London","E13000002",580,60,null,40,null,20,null,30,null,60,null,110,null,110,null,60,null,60,null,20,null,10,null,0,null,0]
[null,null,"SOUTH EAST",null,"E12000008",7360,490,null,300,null,180,null,320,null,940,null,1530,null,1420,null,1140,null,540,null,340,null,130,null,30,null,"~"]
[null,null,null,"Bracknell Forest","E06000036",630,80,null,60,null,30,null,20,null,70,null,120,null,100,null,70,null,40,null,30,null,20,null,"~",null,"~"]
[null,null,null,"Medway","E06000035",20,0,null,0,null,0,null,0,null,"~",null,10,null,"~",null,"~",null,"~",null,"~",null,"~",null,0,null,0]
[null,null,null,"Portsmouth","E06000044",860,0,null,0,null,0,null,30,null,150,null,200,null,180,null,160,null,70,null,40,null,10,null,"~",null,0]
[null,null,null,"West Berkshire","E06000037",40,0,null,0,null,0,null,0,null,"~",null,10,null,10,null,10,null,"~",null,"~",null,0,null,0,null,"~"]
[null,null,null,"Windsor and Maidenhead","E06000040",50,0,null,0,null,0,null,"~",null,10,null,10,null,10,null,10,null,"~",null,0,null,0,null,0,null,0]
[null,null,null,"Wokingham","E06000041",0,0,null,0,null,0,null,0,null,0,null,0,null,0,null,0,null,0,null,0,null,0,null,0,null,0]
[null,null,null,"Buckinghamshire","E10000002",920,60,null,40,null,40,null,50,null,60,null,110,null,160,null,170,null,100,null,80,null,40,null,"~",null,"~"]
[null,null,null,"Hampshire","E10000014",1600,0,null,0,null,0,null,80,null,290,null,410,null,350,null,270,null,110,null,70,null,20,null,"~",null,0]
[null,null,null,"Kent","E10000016",20,0,null,0,null,0,null,0,null,"~",null,10,null,10,null,"~",null,"~",null,"~",null,0,null,0,null,0]
[null,null,null,"Oxfordshire","E10000025",2330,250,null,160,null,80,null,70,null,220,null,450,null,450,null,340,null,170,null,90,null,40,null,10,null,"~"]
[null,null,null,"Surrey","E10000030",790,100,null,50,null,30,null,60,null,100,null,170,null,130,null,80,null,40,null,20,null,"~",null,"~",null,0]
[null,null,null,"West Sussex","E10000032",100,0,null,0,null,0,null,10,null,30,null,30,null,20,null,10,null,"~",null,"~",null,0,null,0,null,0]
[null,null,"SOUTH WEST",null,"E12000009",6560,690,null,500,null,250,null,260,null,810,null,1280,null,1160,null,900,null,430,null,200,null,80,null,10,null,"~"]
[null,null,null,"Cornwall","E06000052",380,0,null,0,null,0,null,50,null,80,null,100,null,60,null,60,null,20,null,20,null,"~",null,0,null,0]
[null,null,null,"Plymouth","E06000026",780,0,null,0,null,0,null,20,null,180,null,230,null,160,null,100,null,60,null,30,null,10,null,0,null,"~"]
[null,null,null,"South Gloucestershire","E06000025",110,0,null,0,null,0,null,0,null,10,null,10,null,20,null,30,null,20,null,20,null,"~",null,"~",null,0]
[null,null,null,"Wiltshire","E06000054",4780,690,null,500,null,250,null,180,null,450,null,810,null,800,null,620,null,280,null,120,null,60,null,10,null,0]
[null,null,null,"Devon","E10000008",40,0,null,0,null,0,null,"~",null,10,null,10,null,10,null,10,null,0,null,0,null,0,null,0,null,0]
[null,null,null,"Gloucestershire","E10000013",230,0,null,0,null,0,null,"~",null,50,null,50,null,40,null,50,null,20,null,10,null,"~",null,0,null,0]
[null,null,null,"Somerset","E10000027",240,0,null,0,null,0,null,10,null,40,null,70,null,70,null,30,null,20,null,10,null,"~",null,"~",null,0]
[]
[null,"Source: DMICP Data Warehouse"]
[null,"1. In line with Joint Service Publication 200, numbers 5 or fewer have been supressed and presented as '~'."]
[null,"2. Due to rounding, please note that totals may not equal the sum of their parts."]
[null,"3. The presence of  +/- indicates percentage changes in figures over the last quarter.  + indicates there has been a 5% to 10% increase and - indicates there has been between a 5% to 10% decrease.  ++ indicates a greater than 10% increase and -- indicates a greater than 10% decrease."]
[null,"4. Age bands are based on age as at time of data extraction."]

{"sheet":"Table C1.1","index":19,"n_rows":18,"n_cols":15,"rows_kept":18,"cut":false,"hidden":false,"merged":[[6,9,6,11],[15,1,15,18],[16,1,16,18],[17,1,17,18]]}
[null,"Annex C1 - Wales, by Local Health Boards"]
[]
[null,"Table C1.1: UK Armed Forces personnel and entitled civilian personnel DMS registrations, registered to Local Health Boards by Service, 1 April 2017, Numbers"]
[null,"Defence Statistics (Health)"]
[]
[null,null,null,"Return to contents"]
[null,null,null,null,"NEW","OLD",null,null,null,"UK Armed Forces split by "]
[null,null,null,"Area Name","Area Code","Area Code","All Persons","All UK Armed Forces","+/-","Naval Service","Army","RAF","Civilian","+/-"]
[null,null,"WALES",null,"W92000004",null,1380,1150,"",30,880,250,230,"",""]
[null,null,null,"Betsi Cadwaladr University","W11000023","7A1",500,270,"",20,30,220,230,"",""]
[null,null,null,"Powys Teaching","W11000024","7A7",400,400,"",10,370,20,0,"",""]
[null,null,null,"Hywel Dda","W11000025","7A2",490,490,"",0,480,10,0,"",""]
[]
[]
[null,"Source: DMICP Data Warehouse"]
[null,"1. In line with Joint Service Publication 200, numbers 5 or fewer have been supressed and presented as '~'."]
[null,"2. Due to rounding, please note that totals may not equal the sum of their parts."]
[null,"3. The presence of  +/- indicates percentage changes in figures over the last quarter.  + indicates there has been a 5% to 10% increase and - indicates there has been between a 5% to 10% decrease.  ++ indicates a greater than 10% increase and -- indicates a greater than 10% decrease."]

{"sheet":"Table C1.2","index":20,"n_rows":19,"n_cols":32,"rows_kept":19,"cut":false,"hidden":false,"merged":[[8,1,8,2],[15,1,15,21],[17,1,17,26],[16,1,16,26]]}
[null,"Annex C1 - Wales, by Local Health Boards"]
[]
[null,"Table C1.2: UK Armed Forces personnel and entitled civilian personnel DMS registrations, registered to Local Health Boards by age band, 1 April 2017, Numbers"]
[null,"Defence Statistics (Health)"]
[]
[null,null,"Return to contents"]
[]
[null,null,null,"NEW","OLD"]
[null,"Area Name",null,"Area Code","Area Code","All Persons","0-4","+/-","5-9","+/-","10-14","+/-","15-19","+/-","20-24","+/-","25-29","+/-","30-34","+/-","35-39","+/-","40-44","+/-","45-49","+/-","50-54","+/-","55-59","+/-","60+","+/-"]
[null,"WALES",null,"W92000004",null,1380,60,"",50,"++",20,"- -",20,"- -",160,"-",340,"",280,"",220,"",120,"",70,"",30,"- -","~","",0,""]
[null,null,"Betsi Cadwaladr University","W11000023","7A1",500,60,null,50,null,20,null,10,null,20,null,90,null,80,null,70,null,40,null,30,null,20,null,"~",null,0]
[null,null,"Powys Teaching","W11000024","7A7",400,0,null,0,null,0,null,"~",null,50,null,90,null,100,null,70,null,40,null,30,null,10,null,"~",null,0]
[null,null,"Hywel Dda","W11000025","7A2",490,0,null,0,null,0,null,"~",null,100,null,160,null,100,null,80,null,40,null,10,null,10,null,0,null,0]
[]
[null,"Source: DMICP Data Warehouse"]
[null,"1. In line with Joint Service Publication 200, numbers 5 or fewer have been supressed and presented as '~'."]
[null,"2. Due to rounding, please note that totals may not equal the sum of their parts."]
[null,"3. The presence of  +/- indicates percentage changes in figures over the last quarter.  + indicates there has been a 5% to 10% increase and - indicates there has been between a 5% to 10% decrease.  ++ indicates a greater than 10% increase and -- indicates a greater than 10% decrease."]
[null,"4. Age bands are based on age as at time of data extraction."]

{"sheet":"Table C1.3","index":21,"n_rows":19,"n_cols":26,"rows_kept":19,"cut":false,"hidden":false,"merged":[[8,1,8,2],[15,1,15,21],[17,1,17,22],[16,1,16,22]]}
[null,"Annex C1 - Wales, by Local Health Boards"]
[]
[null,"Table C1.3: UK Armed Forces personnel DMS registrations, registered to Local Health Boards by age band, 1 April 2017, Numbers"]
[null,"Defence Statistics (Health)"]
[]
[null,null,"Return to contents"]
[]
[null,null,null,"NEW","OLD"]
[null,"Area Name",null,"Area Code","Area Code","All UK Armed Forces","16-19","+/-","20-24","+/-","25-29","+/-","30-34","+/-","35-39","+/-","40-44","+/-","45-49","+/-","50-54","+/-","55-59","+/-","60+","+/-"]
[null,"WALES",null,"W92000004",null,1150,10,"",160,"-",320,"",260,"",200,"",110,"",60,"",30,"- -","~","",0,""]
[null,null,"Betsi Cadwaladr University","W11000023","7A1",270,0,null,20,null,70,null,60,null,50,null,30,null,20,null,20,null,"~",null,0]
[null,null,"Powys Teaching","W11000024","7A7",400,"~",null,50,null,90,null,100,null,70,null,40,null,30,null,10,null,"~",null,0]
[null,null,"Hywel Dda","W11000025","7A2",490,"~",null,100,null,160,null,100,null,80,null,40,null,10,null,10,null,0,null,0]
[]
[null,"Source: DMICP Data Warehouse"]
[null,"1. In line with Joint Service Publication 200, numbers 5 or fewer have been supressed and presented as '~'."]
[null,"2. Due to rounding, please note that totals may not equal the sum of their parts."]
[null,"3. The presence of  +/- indicates percentage changes in figures over the last quarter.  + indicates there has been a 5% to 10% increase and - indicates there has been between a 5% to 10% decrease.  ++ indicates a greater than 10% increase and -- indicates a greater than 10% decrease."]
[null,"4. Age bands are based on age as at time of data extraction."]

{"sheet":"Table C1.4","index":22,"n_rows":19,"n_cols":32,"rows_kept":19,"cut":false,"hidden":false,"merged":[[15,1,15,21],[17,1,17,28],[16,1,16,28]]}
[null,"Annex C1 - Wales, by Local Health Boards"]
[]
[null,"Table C1.4: Entitled civilian personnel DMS registrations, registered to Local Health Boards by age band, 1 April 2017, Numbers"]
[null,"Defence Statistics (Health)"]
[]
[null,null,"Return to contents"]
[]
[null,null,null,"NEW","OLD"]
[null,"Area Name",null,"Area Code","Area Code","All Civilians","0-4","+/-","5-9","+/-","10-14","+/-","15-19","+/-","20-24","+/-","25-29","+/-","30-34","+/-","35-39","+/-","40-44","+/-","45-49","+/-","50-54","+/-","55-59","+/-","60+","+/-"]
[null,"WALES",null,"W92000004",null,230,60,"",50,"++",20,"- -",10,"","~","",20,"",20,"- -",20,"++",10,"",10,"","~","","~","",0,""]
[null,null,"Betsi Cadwaladr University","W11000023","7A1",230,60,null,50,null,20,null,10,null,"~",null,20,null,20,null,20,null,10,null,10,null,"~",null,"~",null,0]
[null,null,"Powys Teaching","W11000024","7A7",0,0,null,0,null,0,null,0,null,0,null,0,null,0,null,0,null,0,null,0,null,0,null,0,null,0]
[null,null,"Hywel Dda","W11000025","7A2",0,0,null,0,null,0,null,0,null,0,null,0,null,0,null,0,null,0,null,0,null,0,null,0,null,0]
[]
[null,"Source: DMICP Data Warehouse"]
[null,"1. In line with Joint Service Publication 200, numbers 5 or fewer have been supressed and presented as '~'."]
[null,"2. Due to rounding, please note that totals may not equal the sum of their parts."]
[null,"3. The presence of  +/- indicates percentage changes in figures over the last quarter.  + indicates there has been a 5% to 10% increase and - indicates there has been between a 5% to 10% decrease.  ++ indicates a greater than 10% increase and -- indicates a greater than 10% decrease."]
[null,"4. Age bands are based on age as at time of data extraction."]

{"sheet":"Table C1.5","index":23,"n_rows":18,"n_cols":23,"rows_kept":18,"cut":false,"hidden":false,"merged":[[17,1,17,22],[7,5,7,9],[7,11,7,16],[7,17,7,22],[15,1,15,21],[16,1,16,19]]}
[null,"Annex C1 - Wales, by Local Health Boards"]
[]
[null,"Table C1.5: UK Armed Forces personnel and entitled civilian personnel DMS registrations, registered to Local Health Boards by gender, 1 April 2017, Numbers"]
[null,"Defence Statistics (Health)"]
[]
[null,null,"Return to contents"]
[]
[null,null,null,"NEW","OLD","All Persons",null,null,null,null,null,"UK Armed Forces",null,null,null,null,null,"Civilian"]
[null,"Area Name",null,"Area Code","Area Code","All","+/-","Male","+/-","Female","+/-","All","+/-","Male","+/-","Female","+/-","All","+/-","Male","+/-","Female","+/-"]
[null,"WALES",null,"W92000004",null,1380,"",1130,"",250,"-",1150,"",1060,"",90,"- -",230,"",70,"",160,""]
[null,null,"Betsi Cadwaladr University","W11000023","7A1",500,null,310,null,190,null,270,null,240,null,30,null,230,null,70,null,160]
[null,null,"Powys Teaching","W11000024","7A7",400,null,380,null,20,null,400,null,380,null,20,null,0,null,0,null,0]
[null,null,"Hywel Dda","W11000025","7A2",490,null,450,null,40,null,490,null,450,null,40,null,0,null,0,null,0]
[]
[null,"Source: DMICP Data Warehouse"]
[null,"1. In line with Joint Service Publication 200, numbers 5 or fewer have been supressed and presented as '~'."]
[null,"2. Due to rounding, please note that totals may not equal the sum of their parts."]
[null,"3. The presence of  +/- indicates percentage changes in figures over the last quarter.  + indicates there has been a 5% to 10% increase and - indicates there has been between a 5% to 10% decrease.  ++ indicates a greater than 10% increase and -- indicates a greater than 10% decrease."]

{"sheet":"Table C1.6","index":24,"n_rows":19,"n_cols":32,"rows_kept":19,"cut":false,"hidden":false,"merged":[[15,1,15,21],[17,1,17,27],[16,1,16,27]]}
[null,"Annex C1 - Wales, by Local Health Boards"]
[]
[null,"Table C1.6: UK Armed Forces males and entitled civilian males DMS registrations, registered to Local Health Boards by age band, 1 April 2017, Numbers"]
[null,"Defence Statistics (Health)"]
[]
[null,null,"Return to contents"]
[]
[null,null,null,"NEW","OLD"]
[null,"Area Name",null,"Area Code","Area Code","All Males","0-4","+/-","5-9","+/-","10-14","+/-","15-19","+/-","20-24","+/-","25-29","+/-","30-34","+/-","35-39","+/-","40-44","+/-","45-49","+/-","50-54","+/-","55-59","+/-","60+","+/-"]
[null,"WALES",null,"W92000004",null,1130,20,"- -",20,"++",10,"",10,"",150,"",290,"",240,"",180,"",100,"",60,"",30,"- -","~","",0,""]
[null,null,"Betsi Cadwaladr University","W11000023","7A1",310,20,null,20,null,10,null,"~",null,20,null,60,null,50,null,50,null,30,null,20,null,20,null,"~",null,0]
[null,null,"Powys Teaching","W11000024","7A7",380,0,null,0,null,0,null,"~",null,40,null,90,null,100,null,70,null,40,null,30,null,10,null,"~",null,0]
[null,null,"Hywel Dda","W11000025","7A2",450,0,null,0,null,0,null,"~",null,80,null,140,null,90,null,70,null,40,null,10,null,10,null,0,null,0]
[]
[null,"Source: DMICP Data Warehouse"]
[null,"1. In line with Joint Service Publication 200, numbers 5 or fewer have been supressed and presented as '~'."]
[null,"2. Due to rounding, please note that totals may not equal the sum of their parts."]
[null,"3. The presence of  +/- indicates percentage changes in figures over the last quarter.  + indicates there has been a 5% to 10% increase and - indicates there has been between a 5% to 10% decrease.  ++ indicates a greater than 10% increase and -- indicates a greater than 10% decrease."]
[null,"4. Age bands are based on age as at time of data extraction."]

{"sheet":"Table C1.7","index":25,"n_rows":18,"n_cols":32,"rows_kept":18,"cut":false,"hidden":false,"merged":[[14,1,14,21],[16,1,16,28],[15,1,15,28]]}
[null,"Annex C1 - Wales, by Local Health Boards"]
[]
[null,"Table C1.7: UK Armed Forces females and entitled civilian females DMS registrations, registered to Local Health Boards by age band, 1 April 2017, Numbers"]
[null,"Defence Statistics (Health)"]
[]
[null,null,"Return to contents"]
[null,null,null,"NEW","OLD"]
[null,"Area Name",null,"Area Code","Area Code","All Females","0-4","+/-","5-9","+/-","10-14","+/-","15-19","+/-","20-24","+/-","25-29","+/-","30-34","+/-","35-39","+/-","40-44","+/-","45-49","+/-","50-54","+/-","55-59","+/-","60+","+/-"]
[null,"WALES",null,"W92000004",null,250,30,"++",20,"",10,"",10,"",20,"- -",50,"-",40,"- -",40,"++",20,"- -",10,"","~","","~","",0,""]
[null,null,"Betsi Cadwaladr University","W11000023","7A1",190,30,null,20,null,10,null,10,null,10,null,30,null,30,null,30,null,10,null,10,null,"~",null,"~",null,0]
[null,null,"Powys Teaching","W11000024","7A7",20,0,null,0,null,0,null,0,null,"~",null,10,null,"~",null,"~",null,"~",null,"~",null,0,null,0,null,0]
[null,null,"Hywel Dda","W11000025","7A2",40,0,null,0,null,0,null,"~",null,10,null,10,null,10,null,10,null,"~",null,0,null,0,null,0,null,0]
[]
[null,"Source: DMICP Data Warehouse"]
[null,"1. In line with Joint Service Publication 200, numbers 5 or fewer have been supressed and presented as '~'."]
[null,"2. Due to rounding, please note that totals may not equal the sum of their parts."]
[null,"3. The presence of  +/- indicates percentage changes in figures over the last quarter.  + indicates there has been a 5% to 10% increase and - indicates there has been between a 5% to 10% decrease.  ++ indicates a greater than 10% increase and -- indicates a greater than 10% decrease."]
[null,"4. Age bands are based on age as at time of data extraction."]

{"sheet":"Table C2.1","index":26,"n_rows":18,"n_cols":14,"rows_kept":18,"cut":false,"hidden":false,"merged":[[17,1,17,18],[5,2,5,3],[7,1,7,3],[6,8,6,10],[15,1,15,21],[16,1,16,17]]}
[null,"Annex C2 - Wales, by Local Authorities"]
[]
[null,"Table C2.1: UK Armed Forces personnel and entitled civilian personnel DMS registrations, registered to Local Area Authorities by Service, 1 April 2017, Numbers"]
[null,"Defence Statistics (Health)"]
[]
[null,null,"Return to contents"]
[null,null,null,null,null,null,null,null,"UK Armed Forces split by "]
[null,"Area Name",null,null,"Area Code","All Persons","All UK Armed Forces","+/-","Naval Service","Army","RAF","Civilian","+/-"]
[null,null,"WALES",null,"W92000004",1380,1150,"",30,880,250,230,"",""]
[null,null,null,"Isle of Anglesey","W06000001",500,270,"",20,30,220,230,"",""]
[null,null,null,"Powys","W06000023",400,400,"",10,370,20,0,"",""]
[null,null,null,"Pembrokeshire","W06000009",490,490,"",0,480,10,0,"",""]
[]
[]
[null,"Source: DMICP Data Warehouse"]
[null,"1. In line with Joint Service Publication 200, numbers 5 or fewer have been supressed and presented as '~'."]
[null,"2. Due to rounding, please note that totals may not equal the sum of their parts."]
[null,"3. The presence of  +/- indicates percentage changes in figures over the last quarter.  + indicates there has been a 5% to 10% increase and - indicates there has been between a 5% to 10% decrease.  ++ indicates a greater than 10% increase and -- indicates a greater than 10% decrease."]

{"sheet":"Table C2.2","index":27,"n_rows":17,"n_cols":31,"rows_kept":17,"cut":false,"hidden":false,"merged":[[6,1,6,2],[13,1,13,21],[15,1,15,29],[14,1,14,29]]}
[null,"Annex C2 - Wales, by Local Authorities"]
[]
[null,"Table C2.2: UK Armed Forces personnel and entitled civilian personnel DMS registrations, registered to Local Area Authorities by age band, 1 April 2017, Numbers"]
[null," Defence Statistics (Health)"]
[]
[null,null,"Return to contents"]
[null,"Area Name",null,"Area Code","All Persons","0-4","+/-","5-9","+/-","10-14","+/-","15-19","+/-","20-24","+/-","25-29","+/-","30-34","+/-","35-39","+/-","40-44","+/-","45-49","+/-","50-54","+/-","55-59","+/-","60+","+/-"]
[null,"WALES",null,"W92000004",1380,60,"",50,"++",20,"- -",20,"- -",160,"-",340,"",280,"",220,"",120,"",70,"",30,"- -","~","",0,""]
[null,null,"Isle of Anglesey","W06000001",500,60,null,50,null,20,null,10,null,20,null,90,null,80,null,70,null,40,null,30,null,20,null,"~",null,0]
[null,null,"Powys","W06000023",400,0,null,0,null,0,null,"~",null,50,null,90,null,100,null,70,null,40,null,30,null,10,null,"~",null,0]
[null,null,"Pembrokeshire","W06000009",490,0,null,0,null,0,null,"~",null,100,null,160,null,100,null,80,null,40,null,10,null,10,null,0,null,0]
[]
[null,"Source: DMICP Data Warehouse"]
[null,"1. In line with Joint Service Publication 200, numbers 5 or fewer have been supressed and presented as '~'."]
[null,"2. Due to rounding, please note that totals may not equal the sum of their parts."]
[null,"3. The presence of  +/- indicates percentage changes in figures over the last quarter.  + indicates there has been a 5% to 10% increase and - indicates there has been between a 5% to 10% decrease.  ++ indicates a greater than 10% increase and -- indicates a greater than 10% decrease."]
[null,"4. Age bands are based on age as at time of data extraction."]

{"sheet":"Table C2.3","index":28,"n_rows":18,"n_cols":25,"rows_kept":18,"cut":false,"hidden":false,"merged":[[7,1,7,2],[14,1,14,21],[16,1,16,23],[15,1,15,23]]}
[null,"Annex C2 - Wales, by Local Authorities"]
[]
[null,"Table C2.3: UK Armed Forces personnel DMS registrations, registered to Local Area Authorities by age band, 1 April 2017, Numbers"]
[null,"Defence Statistics (Health)"]
[]
[null,null,"Return to contents"]
[]
[null,"Area Name",null,"Area Code","All UK Armed Forces","16-19","+/-","20-24","+/-","25-29","+/-","30-34","+/-","35-39","+/-","40-44","+/-","45-49","+/-","50-54","+/-","55-59","+/-","60+","+/-"]
[null,"WALES",null,"W92000004",1150,10,"",160,"-",320,"",260,"",200,"",110,"",60,"",30,"- -","~","",0,""]
[null,null,"Isle of Anglesey","W06000001",270,0,null,20,null,70,null,60,null,50,null,30,null,20,null,20,null,"~",null,0]
[null,null,"Powys","W06000023",400,"~",null,50,null,90,null,100,null,70,null,40,null,30,null,10,null,"~",null,0]
[null,null,"Pembrokeshire","W06000009",490,"~",null,100,null,160,null,100,null,80,null,40,null,10,null,10,null,0,null,0]
[]
[null,"Source: DMICP Data Warehouse"]
[null,"1. In line with Joint Service Publication 200, numbers 5 or fewer have been supressed and presented as '~'."]
[null,"2. Due to rounding, please note that totals may not equal the sum of their parts."]
[null,"3. The presence of  +/- indicates percentage changes in figures over the last quarter.  + indicates there has been a 5% to 10% increase and - indicates there has been between a 5% to 10% decrease.  ++ indicates a greater than 10% increase and -- indicates a greater than 10% decrease."]
[null,"4. Age bands are based on age as at time of data extraction."]

{"sheet":"Table C2.4","index":29,"n_rows":18,"n_cols":31,"rows_kept":18,"cut":false,"hidden":false,"merged":[[7,1,7,2],[14,1,14,21],[16,1,16,30],[15,1,15,30]]}
[null,"Annex C2 - Wales, by Local Authorities"]
[]
[null,"Table C2.4: Entitled civilian personnel DMS registrations, registered to Local Area Authorities by age band, 1 April 2017, Numbers"]
[null,"Defence Statistics (Health)"]
[]
[null,null,"Return to contents"]
[]
[null,"Area Name",null,"Area Code","All Civilians","0-4","+/-","5-9","+/-","10-14","+/-","15-19","+/-","20-24","+/-","25-29","+/-","30-34","+/-","35-39","+/-","40-44","+/-","45-49","+/-","50-54","+/-","55-59","+/-","60+","+/-"]
[null,"WALES",null,"W92000004",230,60,"",50,"++",20,"- -",10,"","~","",20,"",20,"- -",20,"++",10,"",10,"","~","","~","",0,""]
[null,null,"Isle of Anglesey","W06000001",230,60,null,50,null,20,null,10,null,"~",null,20,null,20,null,20,null,10,null,10,null,"~",null,"~",null,0]
[null,null,"Powys","W06000023",0,0,null,0,null,0,null,0,null,0,null,0,null,0,null,0,null,0,null,0,null,0,null,0,null,0]
[null,null,"Pembrokeshire","W06000009",0,0,null,0,null,0,null,0,null,0,null,0,null,0,null,0,null,0,null,0,null,0,null,0,null,0]
[]
[null,"Source: DMICP Data Warehouse"]
[null,"1. In line with Joint Service Publication 200, numbers 5 or fewer have been supressed and presented as '~'."]
[null,"2. Due to rounding, please note that totals may not equal the sum of their parts."]
[null,"3. The presence of  +/- indicates percentage changes in figures over the last quarter.  + indicates there has been a 5% to 10% increase and - indicates there has been between a 5% to 10% decrease.  ++ indicates a greater than 10% increase and -- indicates a greater than 10% decrease."]
[null,"4. Age bands are based on age as at time of data extraction."]

{"sheet":"Table C2.5","index":30,"n_rows":18,"n_cols":22,"rows_kept":18,"cut":false,"hidden":false,"merged":[[16,1,16,24],[17,1,17,25],[6,10,6,15],[6,16,6,21],[6,4,6,9],[7,1,7,2],[15,1,15,21]]}
[null,"Annex C2 - Wales, by Local Authorities"]
[]
[null,"Table C2.5: UK Armed Forces personnel and entitled civilian personnel DMS registrations, registered to Local Area Authorities by gender, 1 April 2017, Numbers"]
[null,"Defence Statistics (Health)"]
[]
[null,null,"Return to contents"]
[null,null,null,null,"All Persons",null,null,null,null,null,"UK Armed Forces",null,null,null,null,null,"Civilian"]
[null,"Area Name",null,"Area Code","All","+/-","Male","+/-","Female","+/-","All","+/-","Male","+/-","Female","+/-","All","+/-","Male","+/-","Female","+/-"]
[null,"WALES",null,"W92000004",1380,"",1130,"",250,"-",1150,"",1060,"",90,"- -",230,"",70,"",160,""]
[null,null,"Isle of Anglesey","W06000001",500,null,310,null,190,null,270,null,240,null,30,null,230,null,70,null,160]
[null,null,"Powys","W06000023",400,null,380,null,20,null,400,null,380,null,20,null,0,null,0,null,0]
[null,null,"Pembrokeshire","W06000009",490,null,450,null,40,null,490,null,450,null,40,null,0,null,0,null,0]
[]
[]
[null,"Source: DMICP Data Warehouse"]
[null,"1. In line with Joint Service Publication 200, numbers 5 or fewer have been supressed and presented as '~'."]
[null,"2. Due to rounding, please note that totals may not equal the sum of their parts."]
[null,"3. The presence of  +/- indicates percentage changes in figures over the last quarter.  + indicates there has been a 5% to 10% increase and - indicates there has been between a 5% to 10% decrease.  ++ indicates a greater than 10% increase and -- indicates a greater than 10% decrease."]

{"sheet":"Table C2.6","index":31,"n_rows":17,"n_cols":31,"rows_kept":17,"cut":false,"hidden":false,"merged":[[6,1,6,2],[13,1,13,21],[14,1,14,29],[15,1,15,30]]}
[null,"Annex C2 - Wales, by Local Authorities"]
[]
[null,"Table C2.6: UK Armed Forces males and entitled civilian males DMS registrations, registered to Local Area Authorities by age band, 1 April 2017, Numbers"]
[null,"Defence Statistics (Health)"]
[]
[null,null,"Return to contents"]
[null,"Area Name",null,"Area Code","All Males","0-4","+/-","5-9","+/-","10-14","+/-","15-19","+/-","20-24","+/-","25-29","+/-","30-34","+/-","35-39","+/-","40-44","+/-","45-49","+/-","50-54","+/-","55-59","+/-","60+","+/-"]
[null,"WALES",null,"W92000004",1130,20,"- -",20,"++",10,"",10,"",150,"",290,"",240,"",180,"",100,"",60,"",30,"- -","~","",0,""]
[null,null,"Isle of Anglesey","W06000001",310,20,null,20,null,10,null,"~",null,20,null,60,null,50,null,50,null,30,null,20,null,20,null,"~",null,0]
[null,null,"Powys","W06000023",380,0,null,0,null,0,null,"~",null,40,null,90,null,100,null,70,null,40,null,30,null,10,null,"~",null,0]
[null,null,"Pembrokeshire","W06000009",450,0,null,0,null,0,null,"~",null,80,null,140,null,90,null,70,null,40,null,10,null,10,null,0,null,0]
[]
[null,"Source: DMICP Data Warehouse"]
[null,"1. In line with Joint Service Publication 200, numbers 5 or fewer have been supressed and presented as '~'."]
[null,"2. Due to rounding, please note that totals may not equal the sum of their parts."]
[null,"3. The presence of  +/- indicates percentage changes in figures over the last quarter.  + indicates there has been a 5% to 10% increase and - indicates there has been between a 5% to 10% decrease.  ++ indicates a greater than 10% increase and -- indicates a greater than 10% decrease."]
[null,"4. Age bands are based on age as at time of data extraction."]

{"sheet":"Table C2.7","index":32,"n_rows":19,"n_cols":31,"rows_kept":19,"cut":false,"hidden":false,"merged":[[7,1,7,2],[15,1,15,21],[17,1,17,29],[16,1,16,27]]}
[null,"Annex C2 - Wales, by Local Authorities"]
[]
[null,"Table C2.7: UK Armed Forces females and entitled civilian females DMS registrations, registered to Local Area Authorities by age band, 1 April 2017, Numbers"]
[null,"Defence Statistics (Health)"]
[]
[null,null,"Return to contents"]
[]
[null,"Area Name",null,"Area Code","All Females","0-4","+/-","5-9","+/-","10-14","+/-","15-19","+/-","20-24","+/-","25-29","+/-","30-34","+/-","35-39","+/-","40-44","+/-","45-49","+/-","50-54","+/-","55-59","+/-","60+","+/-"]
[null,"WALES",null,"W92000004",250,30,"++",20,"",10,"",10,"",20,"- -",50,"-",40,"- -",40,"++",20,"- -",10,"","~","","~","",0,""]
[null,null,"Isle of Anglesey","W06000001",190,30,null,20,null,10,null,10,null,10,null,30,null,30,null,30,null,10,null,10,null,"~",null,"~",null,0]
[null,null,"Powys","W06000023",20,0,null,0,null,0,null,0,null,"~",null,10,null,"~",null,"~",null,"~",null,"~",null,0,null,0,null,0]
[null,null,"Pembrokeshire","W06000009",40,0,null,0,null,0,null,"~",null,10,null,10,null,10,null,10,null,"~",null,0,null,0,null,0,null,0]
[]
[]
[null,"Source: DMICP Data Warehouse"]
[null,"1. In line with Joint Service Publication 200, numbers 5 or fewer have been supressed and presented as '~'."]
[null,"2. Due to rounding, please note that totals may not equal the sum of their parts."]
[null,"3. The presence of  +/- indicates percentage changes in figures over the last quarter.  + indicates there has been a 5% to 10% increase and - indicates there has been between a 5% to 10% decrease.  ++ indicates a greater than 10% increase and -- indicates a greater than 10% decrease."]
[null,"4. Age bands are based on age as at time of data extraction."]

{"sheet":"Table D1.1","index":33,"n_rows":21,"n_cols":14,"rows_kept":21,"cut":false,"hidden":false,"merged":[[6,9,6,11],[7,1,7,3],[18,1,18,22],[20,1,20,18],[19,1,19,17]]}
[null,"Annex D1 - Scotland, by Health and Social Care Partnerships & Council Areas"]
[]
[null,"Table D1.1: UK Armed Forces personnel and entitled civilian personnel DMS registrations, registered to Health and Social Care Partnerships & Council Areas by Service, 1 April 2017, Numbers"]
[null," Defence Statistics (Health)"]
[]
[null,null,null,"Return to contents"]
[null,null,null,null,null,null,null,null,null,"UK Armed Forces split by "]
[null,"Area Name",null,null,"HSCP Area Code","CA Area Code","All Persons","All UK Armed Forces","+/-","Naval Service","Army","RAF","Civilian","+/-"]
[null,null,"SCOTLAND",null,"S92000003","S92000003",11800,11290,"+",5600,3870,1820,510,""]
[null,null,null,"Angus","S37000003","S12000041",680,680,"",620,70,"~",0,""]
[null,null,null,"Argyll & Bute","S37000004","S12000035",4230,4230,"++",4040,180,10,"~",""]
[null,null,null,"Edinburgh City of","S37000012","S12000036",1610,1610,"",10,1590,10,0,""]
[null,null,null,"Fife","S37000014","S12000015",2240,1730,"",940,740,60,500,""]
[null,null,null,"Highland","S37000016","S12000017",550,550,"",0,550,0,0,""]
[null,null,null,"Moray","S37000019","S12000020",2490,2490,"","~",750,1740,0,""]
[null,null,null,null,null,null,null,null,null,null,null,null,null,""]
[]
[null,"Source: DMICP Data Warehouse"]
[null,"1. In line with Joint Service Publication 200, numbers 5 or fewer have been supressed and presented as '~'."]
[null,"2. Due to rounding, please note that totals may not equal the sum of their parts."]
[null,"3. The presence of  +/- indicates percentage changes in figures over the last quarter.  + indicates there has been a 5% to 10% increase and - indicates there has been between a 5% to 10% decrease.  ++ indicates a greater than 10% increase and -- indicates a greater than 10% decrease."]

{"sheet":"Table D1.2","index":34,"n_rows":22,"n_cols":32,"rows_kept":22,"cut":false,"hidden":false,"merged":[[7,1,7,2],[18,1,18,22],[20,1,20,30],[19,1,19,30]]}
[null,"Annex D1 - Scotland, by Health and Social Care Partnerships & Council Areas"]
[]
[]
[null,"Table D1.2: UK Armed Forces personnel and entitled civilian personnel DMS registrations, registered to Health and Social Care Partnerships & Council Areas by age band, 1 April 2017, Numbers"]
[null,"Defence Statistics (Health)"]
[]
[null,null,"Return to contents"]
[null,"Area Name",null,"HSCP Area Code","CA Area Code","All Persons","0-4","+/-","5-9","+/-","10-14","+/-","15-19","+/-","20-24","+/-","25-29","+/-","30-34","+/-","35-39","+/-","40-44","+/-","45-49","+/-","50-54","+/-","55-59","+/-","60+","+/-"]
[null,"SCOTLAND",null,"S92000003","S92000003",11800,110,"",100,"+",60,"",350,"+",2350,"",3020,"",2180,"+",1670,"+",960,"+",630,"+",300,"+",70,"+","~",""]
[null,null,"Angus","S37000003","S12000041",680,0,null,0,null,0,null,10,null,210,null,250,null,100,null,60,null,30,null,10,null,"~",null,"~",null,0]
[null,null,"Argyll & Bute","S37000004","S12000035",4230,0,null,0,null,0,null,80,null,780,null,1070,null,850,null,620,null,340,null,300,null,160,null,30,null,"~"]
[null,null,"Edinburgh City of","S37000012","S12000036",1610,0,null,0,null,0,null,70,null,370,null,410,null,290,null,230,null,130,null,70,null,30,null,10,null,"~"]
[null,null,"Fife","S37000014","S12000015",2240,110,null,100,null,60,null,90,null,390,null,460,null,330,null,330,null,200,null,120,null,40,null,10,null,0]
[null,null,"Highland","S37000016","S12000017",550,0,null,0,null,0,null,30,null,150,null,160,null,100,null,70,null,30,null,10,null,"~",null,"~",null,0]
[null,null,"Moray","S37000019","S12000020",2490,0,null,0,null,0,null,60,null,450,null,670,null,510,null,370,null,240,null,120,null,70,null,20,null,0]
[]
[]
[null,"Source:DMICP Data Warehouse"]
[null,"1. In line with Joint Service Publication 200, numbers 5 or fewer have been supressed and presented as '~'."]
[null,"2. Due to rounding, please note that totals may not equal the sum of their parts."]
[null,"3. The presence of  +/- indicates percentage changes in figures over the last quarter.  + indicates there has been a 5% to 10% increase and - indicates there has been between a 5% to 10% decrease.  ++ indicates a greater than 10% increase and -- indicates a greater than 10% decrease."]
[null,"4. Age bands are based on age as at time of data extraction."]

{"sheet":"Table D1.3","index":35,"n_rows":21,"n_cols":26,"rows_kept":21,"cut":false,"hidden":false,"merged":[[6,1,6,2],[17,1,17,22],[19,1,19,26],[18,1,18,26]]}
[null,"Annex D1 - Scotland, by Health and Social Care Partnerships & Council Areas"]
[]
[null,"Table D1.3: UK Armed Forces personnel DMS registrations, registered to Health and Social Care Partnerships & Council Areas by age band, 1 April 2017, Numbers"]
[null,"Defence Statistics (Health)"]
[]
[null,null,"Return to contents"]
[null,"Area Name",null,"HSCP Area Code","CA Area Code","UK Armed Forces","16-19","+/-","20-24","+/-","25-29","+/-","30-34","+/-","35-39","+/-","40-44","+/-","45-49","+/-","50-54","+/-","55-59","+/-","60+","+/-"]
[null,"SCOTLAND",null,"S92000003","S92000003",11290,320,"+",2320,"",2970,"",2150,"+",1630,"+",930,"+",620,"+",290,"+",60,"+","~",""]
[null,null,"Angus","S37000003","S12000041",680,10,null,210,null,250,null,100,null,60,null,30,null,10,null,"~",null,"~",null,0]
[null,null,"Argyll & Bute","S37000004","S12000035",4230,80,null,780,null,1070,null,850,null,620,null,340,null,300,null,160,null,30,null,"~"]
[null,null,"Edinburgh City of","S37000012","S12000036",1610,70,null,370,null,410,null,290,null,230,null,130,null,70,null,30,null,10,null,"~"]
[null,null,"Fife","S37000014","S12000015",1730,60,null,360,null,410,null,300,null,290,null,170,null,100,null,30,null,10,null,0]
[null,null,"Highland","S37000016","S12000017",550,30,null,150,null,160,null,100,null,70,null,30,null,10,null,"~",null,"~",null,0]
[null,null,"Moray","S37000019","S12000020",2490,60,null,450,null,670,null,510,null,370,null,240,null,120,null,70,null,20,null,0]
[]
[]
[null,"Source:DMICP Data Warehouse"]
[null,"1. In line with Joint Service Publication 200, numbers 5 or fewer have been supressed and presented as '~'."]
[null,"2. Due to rounding, please note that totals may not equal the sum of their parts."]
[null,"3. The presence of  +/- indicates percentage changes in figures over the last quarter.  + indicates there has been a 5% to 10% increase and - indicates there has been between a 5% to 10% decrease.  ++ indicates a greater than 10% increase and -- indicates a greater than 10% decrease."]
[null,"4. Age bands are based on age as at time of data extraction."]

{"sheet":"Table D1.4","index":36,"n_rows":21,"n_cols":32,"rows_kept":21,"cut":false,"hidden":false,"merged":[[17,1,17,22],[19,1,19,30],[18,1,18,30]]}
[null,"Annex D1 - Scotland, by Health and Social Care Partnerships & Council Areas"]
[]
[null,"Table D1.4: Entitled civilian personnel DMS registrations, registered to Health and Social Care Partnerships & Council Areas by age band, 1 April 2017, Numbers"]
[null,"Defence Statistics (Health)"]
[]
[null,null,"Return to contents"]
[null,"Area Name",null,"HSCP Area Code","CA Area Code","All Civilians","0-4","+/-","5-9","+/-","10-14","+/-","15-19","+/-","20-24","+/-","25-29","+/-","30-34","+/-","35-39","+/-","40-44","+/-","45-49","+/-","50-54","+/-","55-59","+/-","60+","+/-"]
[null,"SCOTLAND",null,"S92000003","S92000003",510,110,"",100,"+",60,"",30,"+",30,"",50,"",30,"",40,"",30,"++",10,"",10,"","~","",0,""]
[null,null,"Angus","S37000003","S12000041",0,0,null,0,null,0,null,0,null,0,null,0,null,0,null,0,null,0,null,0,null,0,null,0,null,0]
[null,null,"Argyll & Bute","S37000004","S12000035","~",0,null,0,null,0,null,0,null,0,null,0,null,0,null,0,null,0,null,0,null,0,null,"~",null,0]
[null,null,"Edinburgh City of","S37000012","S12000036",0,0,null,0,null,0,null,0,null,0,null,0,null,0,null,0,null,0,null,0,null,0,null,0,null,0]
[null,null,"Fife","S37000014","S12000015",500,110,null,100,null,60,null,30,null,30,null,50,null,30,null,40,null,30,null,10,null,10,null,0,null,0]
[null,null,"Highland","S37000016","S12000017",0,0,null,0,null,0,null,0,null,0,null,0,null,0,null,0,null,0,null,0,null,0,null,0,null,0]
[null,null,"Moray","S37000019","S12000020",0,0,null,0,null,0,null,0,null,0,null,0,null,0,null,0,null,0,null,0,null,0,null,0,null,0]
[]
[]
[null,"Source:DMICP Data Warehouse"]
[null,"1. In line with Joint Service Publication 200, numbers 5 or fewer have been supressed and presented as '~'."]
[null,"2. Due to rounding, please note that totals may not equal the sum of their parts."]
[null,"3. The presence of  +/- indicates percentage changes in figures over the last quarter.  + indicates there has been a 5% to 10% increase and - indicates there has been between a 5% to 10% decrease.  ++ indicates a greater than 10% increase and -- indicates a greater than 10% decrease."]
[null,"4. Age bands are based on age as at time of data extraction."]

{"sheet":"Table D1.5","index":37,"n_rows":22,"n_cols":23,"rows_kept":22,"cut":false,"hidden":false,"merged":[[6,11,6,16],[6,17,6,22],[18,1,18,22],[20,1,20,25],[19,1,19,25]]}
[null,"Annex D1 - Scotland, by Health and Social Care Partnerships & Council Areas"]
[]
[null,"Table D1.5: UK Armed Forces personnel and entitled civilian personnel DMS registrations, registered to Health and Social Care Partnerships & Council Areas by gender, 1 April 2017, Numbers"]
[null,"Source: Defence Statistics (Health)"]
[]
[null,null,"Return to contents"]
[null,null,null,null,null,null,null,"All Persons",null,null,null,"UK Armed Forces",null,null,null,null,null,"Civilian"]
[null,"Area Name",null,"HSCP Area Code","CA Area Code","All","+/-","Male","+/-","Female","+/-","All","+/-","Male","+/-","Female","+/-","All","+/-","Male","+/-","Female","+/-"]
[null,"SCOTLAND",null,"S92000003","S92000003",11800,"+",10850,"+",950,"",11290,"+",10670,"+",620,"",510,"",180,"+",330,""]
[null,null,"Angus","S37000003","S12000041",680,null,680,null,10,null,680,null,680,null,10,null,0,null,0,null,0]
[null,null,"Argyll & Bute","S37000004","S12000035",4230,null,4080,null,150,null,4230,null,4080,null,150,null,"~",null,"~",null,0]
[null,null,"Edinburgh City of","S37000012","S12000036",1610,null,1520,null,90,null,1610,null,1520,null,90,null,0,null,0,null,0]
[null,null,"Fife","S37000014","S12000015",2240,null,1740,null,500,null,1730,null,1560,null,170,null,500,null,180,null,330]
[null,null,"Highland","S37000016","S12000017",550,null,540,null,10,null,550,null,540,null,10,null,0,null,0,null,0]
[null,null,"Moray","S37000019","S12000020",2490,null,2300,null,190,null,2490,null,2300,null,190,null,0,null,0,null,0]
[]
[]
[null,"Source:DMICP Data Warehouse"]
[null,"1. In line with Joint Service Publication 200, numbers 5 or fewer have been supressed and presented as '~'."]
[null,"2. Due to rounding, please note that totals may not equal the sum of their parts."]
[null,"3. The presence of  +/- indicates percentage changes in figures over the last quarter.  + indicates there has been a 5% to 10% increase and - indicates there has been between a 5% to 10% decrease.  ++ indicates a greater than 10% increase and -- indicates a greater than 10% decrease."]
[null,"4. Age bands are based on age as at time of data extraction."]

{"sheet":"Table D1.6","index":38,"n_rows":21,"n_cols":32,"rows_kept":21,"cut":false,"hidden":false,"merged":[[17,1,17,22],[19,1,19,31],[18,1,18,31]]}
[null,"Annex D1 - Scotland, by Health and Social Care Partnerships & Council Areas"]
[]
[null,"Table D1.6: UK Armed Forces males and entitled civilian males DMS registrations, registered to Health and Social Care Partnerships & Council Areas by age band, 1 April 2017, Numbers"]
[null,"Defence Statistics (Health)"]
[]
[null,null,"Return to contents"]
[null,"Area Name",null,"HSCP Area Code","CA Area Code","All Males","0-4","+/-","5-9","+/-","10-14","+/-","15-19","+/-","20-24","+/-","25-29","+/-","30-34","+/-","35-39","+/-","40-44","+/-","45-49","+/-","50-54","+/-","55-59","+/-","60+","+/-"]
[null,"SCOTLAND",null,"S92000003","S92000003",10850,60,"",60,"++",30,"",320,"++",2220,"",2810,"",2020,"+",1520,"++",880,"+",580,"+",280,"+",70,"+","~",""]
[null,null,"Angus","S37000003","S12000041",680,0,null,0,null,0,null,10,null,210,null,250,null,100,null,60,null,30,null,10,null,"~",null,"~",null,0]
[null,null,"Argyll & Bute","S37000004","S12000035",4080,0,null,0,null,0,null,80,null,750,null,1030,null,830,null,590,null,330,null,290,null,160,null,30,null,"~"]
[null,null,"Edinburgh City of","S37000012","S12000036",1520,0,null,0,null,0,null,70,null,360,null,400,null,260,null,200,null,120,null,60,null,30,null,10,null,"~"]
[null,null,"Fife","S37000014","S12000015",1740,60,null,60,null,30,null,70,null,330,null,360,null,270,null,260,null,160,null,100,null,30,null,10,null,0]
[null,null,"Highland","S37000016","S12000017",540,0,null,0,null,0,null,30,null,140,null,160,null,100,null,70,null,30,null,10,null,"~",null,"~",null,0]
[null,null,"Moray","S37000019","S12000020",2300,0,null,0,null,0,null,60,null,420,null,620,null,450,null,340,null,220,null,110,null,60,null,20,null,0]
[]
[]
[null,"Source:DMICP Data Warehouse"]
[null,"1. In line with Joint Service Publication 200, numbers 5 or fewer have been supressed and presented as '~'."]
[null,"2. Due to rounding, please note that totals may not equal the sum of their parts."]
[null,"3. The presence of  +/- indicates percentage changes in figures over the last quarter.  + indicates there has been a 5% to 10% increase and - indicates there has been between a 5% to 10% decrease.  ++ indicates a greater than 10% increase and -- indicates a greater than 10% decrease."]
[null,"4. Age bands are based on age as at time of data extraction."]

{"sheet":"Table D1.7","index":39,"n_rows":22,"n_cols":32,"rows_kept":22,"cut":false,"hidden":false,"merged":[[18,1,18,22],[20,1,20,30],[19,1,19,30]]}
[null,"Annex D1 - Scotland, by Health and Social Care Partnerships & Council Areas"]
[]
[]
[null,"Table D1.7: UK Armed Forces females and entitled civilian females DMS registrations, registered to Health and Social Care Partnerships & Council Areas by age band, 1 April 2017, Numbers"]
[null,"Defence Statistics (Health)"]
[]
[null,null,"Return to contents"]
[null,"Area Name",null,"HSCP Area Code","CA Area Code","All Females","0-4","+/-","5-9","+/-","10-14","+/-","15-19","+/-","20-24","+/-","25-29","+/-","30-34","+/-","35-39","+/-","40-44","+/-","45-49","+/-","50-54","+/-","55-59","+/-","60+","+/-"]
[null,"SCOTLAND",null,"S92000003","S92000003",950,50,"",40,"",20,"",30,"",130,"-",210,"",160,"",150,"",80,"+",50,"+",20,"",0,"",0,""]
[null,null,"Angus","S37000003","S12000041",10,0,null,0,null,0,null,"~",null,0,null,"~",null,"~",null,0,null,0,null,0,null,0,null,0,null,0]
[null,null,"Argyll & Bute","S37000004","S12000035",150,0,null,0,null,0,null,"~",null,30,null,40,null,20,null,30,null,10,null,10,null,"~",null,0,null,0]
[null,null,"Edinburgh City of","S37000012","S12000036",90,0,null,0,null,0,null,0,null,10,null,20,null,20,null,20,null,"~",null,10,null,"~",null,0,null,0]
[null,null,"Fife","S37000014","S12000015",500,50,null,40,null,20,null,20,null,60,null,100,null,60,null,70,null,40,null,20,null,10,null,0,null,0]
[null,null,"Highland","S37000016","S12000017",10,0,null,0,null,0,null,0,null,"~",null,10,null,"~",null,"~",null,0,null,"~",null,0,null,0,null,0]
[null,null,"Moray","S37000019","S12000020",190,0,null,0,null,0,null,"~",null,30,null,40,null,60,null,30,null,20,null,10,null,"~",null,0,null,0]
[]
[]
[null,"Source:DMICP Data Warehouse"]
[null,"1. In line with Joint Service Publication 200, numbers 5 or fewer have been supressed and presented as '~'."]
[null,"2. Due to rounding, please note that totals may not equal the sum of their parts."]
[null,"3. The presence of  +/- indicates percentage changes in figures over the last quarter.  + indicates there has been a 5% to 10% increase and - indicates there has been between a 5% to 10% decrease.  ++ indicates a greater than 10% increase and -- indicates a greater than 10% decrease."]
[null,"4. Age bands are based on age as at time of data extraction."]

{"sheet":"Table E1.1","index":40,"n_rows":18,"n_cols":13,"rows_kept":18,"cut":false,"hidden":false,"merged":[[7,8,7,10],[8,1,8,2],[14,1,14,21],[16,1,16,20],[15,1,15,20]]}
[null,"Annex E1 - Northern Ireland, by Local Commissioning Groups"]
[]
[null,"Table E1.1: UK Armed Forces personnel and entitled civilian personnel DMS registrations, registered to Local Commissioning Groups by Service, 1 April 2017, Numbers"]
[null,"Defence Statistics (Health)"]
[]
[null,null,"Return to contents"]
[]
[null,null,null,"NEW","OLD",null,null,null,"UK Armed Forces split by "]
[null,"Area Name",null,"Area Code","Area Code","All Persons","All UK Armed Forces","+/-","Naval Service","Army","RAF","Civilian","+/-"]
[null,"NORTHERN IRELAND",null,"N92000002 ",null,2590,2180,"",30,2080,80,410,""]
[null,null,"South Eastern","ZC040","ZC4",2590,2180,"",30,2080,80,410,""]
[]
[]
[null,"Source: DMICP Data Warehouse"]
[null,"1. In line with Joint Service Publication 200, numbers 5 or fewer have been supressed and presented as '~'."]
[null,"2. Due to rounding, please note that totals may not equal the sum of their parts."]
[null,"3. The presence of  +/- indicates percentage changes in figures over the last quarter.  + indicates there has been a 5% to 10% increase and - indicates there has been between a 5% to 10% decrease.  ++ indicates a greater than 10% increase and -- indicates a greater than 10% decrease."]
[null,"4. There are no nine character codes for the local commissioning groups in Northern Ireland."]

{"sheet":"Table E1.2","index":41,"n_rows":18,"n_cols":32,"rows_kept":18,"cut":false,"hidden":false,"merged":[[8,1,8,2],[13,1,13,21],[15,1,15,29],[14,1,14,25]]}
[null,"Annex E1 - Northern Ireland, by Local Commissioning Groups"]
[]
[null,"Table E1.2: UK Armed Forces personnel and entitled civilian personnel DMS registrations, registered to Local Commissioning Groups by age band, 1 April 2017, Numbers"]
[null,"Defence Statistics (Health)"]
[]
[null,null,"Return to contents"]
[]
[null,null,null,"NEW","OLD"]
[null,"Area Name",null,"Area Code","Area Code","All Persons","0-4","+/-","5-9","+/-","10-14","+/-","15-19","+/-","20-24","+/-","25-29","+/-","30-34","+/-","35-39","+/-","40-44","+/-","45-49","+/-","50-54","+/-","55-59","+/-","60+","+/-"]
[null,"NORTHERN IRELAND",null,"N92000002 ",null,2590,110,"",90,"",40,"",70,"- -",490,"-",620,"",480,"",370,"",190,"",90,"++",40,"",10,"","~",""]
[null,null,"South Eastern","ZC040","ZC4",2590,110,null,90,null,40,null,70,null,490,null,620,null,480,null,370,null,190,null,90,null,40,null,10,null,"~"]
[]
[null,"Source:DMICP Data Warehouse"]
[null,"1. In line with Joint Service Publication 200, numbers 5 or fewer have been supressed and presented as '~'."]
[null,"2. Due to rounding, please note that totals may not equal the sum of their parts."]
[null,"3. The presence of  +/- indicates percentage changes in figures over the last quarter.  + indicates there has been a 5% to 10% increase and - indicates there has been between a 5% to 10% decrease.  ++ indicates a greater than 10% increase and -- indicates a greater than 10% decrease."]
[null,"4. Age bands are based on age as at time of data extraction."]
[null,"5. There are no nine character codes for the local commissioning groups in Northern Ireland."]

{"sheet":"Table E1.3","index":42,"n_rows":18,"n_cols":26,"rows_kept":18,"cut":false,"hidden":false,"merged":[[7,1,7,2],[13,1,13,21],[15,1,15,24],[14,1,14,24]]}
[null,"Annex E1 - Northern Ireland, by Local Commissioning Groups"]
[]
[null,"Table E1.3: UK Armed Forces personnel DMS registrations, registered to Local Commissioning Groups by age band, 1 April 2017, Numbers"]
[null,"Source: Defence Statistics (Health)"]
[]
[null,null,"Return to contents"]
[null,null,null,"NEW","OLD"]
[null,"Area Name",null,"Area Code","Area Code","All UK Armed Forces","16-19","+/-","20-24","+/-","25-29","+/-","30-34","+/-","35-39","+/-","40-44","+/-","45-49","+/-","50-54","+/-","55-59","+/-","60+","+/-"]
[null,"NORTHERN IRELAND",null,"N92000002 ",null,2180,60,"- -",480,"- -",580,"",430,"",340,"",160,"",80,"++",40,"",10,"","~",""]
[null,null,"South Eastern","ZC040","ZC4",2180,60,null,480,null,580,null,430,null,340,null,160,null,80,null,40,null,10,null,"~"]
[]
[]
[null,"Source:DMICP Data Warehouse"]
[null,"1. In line with Joint Service Publication 200, numbers 5 or fewer have been supressed and presented as '~'."]
[null,"2. Due to rounding, please note that totals may not equal the sum of their parts."]
[null,"3. The presence of  +/- indicates percentage changes in figures over the last quarter.  + indicates there has been a 5% to 10% increase and - indicates there has been between a 5% to 10% decrease.  ++ indicates a greater than 10% increase and -- indicates a greater than 10% decrease."]
[null,"4. Age bands are based on age as at time of data extraction."]
[null,"5. There are no nine character codes for the local commissioning groups in Northern Ireland."]

{"sheet":"Table E1.4","index":43,"n_rows":17,"n_cols":32,"rows_kept":17,"cut":false,"hidden":false,"merged":[[7,1,7,2],[13,1,13,26],[14,1,14,26],[12,1,12,21]]}
[null,"Annex E1 - Northern Ireland, by Local Commissioning Groups"]
[]
[null,"Table E1.4: Entitled civilian personnel DMS registrations, registered to Local Commissioning Groups by age band, 1 April 2017, Numbers"]
[null,"Defence Statistics (Health)"]
[]
[null,null,"Return to contents"]
[null,null,null,"NEW","OLD"]
[null,"Area Name",null,"Area Code","Area Code","All Civilians","0-4","+/-","5-9","+/-","10-14","+/-","15-19","+/-","20-24","+/-","25-29","+/-","30-34","+/-","35-39","+/-","40-44","+/-","45-49","+/-","50-54","+/-","55-59","+/-","60+","+/-"]
[null,"NORTHERN IRELAND",null,"N92000002 ",null,410,110,"",90,"",40,"",10,"",10,"",40,"",50,"+",30,"- -",20,"++","~","","~","",0,"","~",""]
[null,null,"South Eastern","ZC040","ZC4",410,110,null,90,null,40,null,10,null,10,null,40,null,50,null,30,null,20,null,"~",null,"~",null,0,null,"~"]
[]
[null,"Source:DMICP Data Warehouse"]
[null,"1. In line with Joint Service Publication 200, numbers 5 or fewer have been supressed and presented as '~'."]
[null,"2. Due to rounding, please note that totals may not equal the sum of their parts."]
[null,"3. The presence of  +/- indicates percentage changes in figures over the last quarter.  + indicates there has been a 5% to 10% increase and - indicates there has been between a 5% to 10% decrease.  ++ indicates a greater than 10% increase and -- indicates a greater than 10% decrease."]
[null,"4. Age bands are based on age as at time of data extraction."]
[null,"5. There are no nine character codes for the local commissioning groups in Northern Ireland."]

{"sheet":"Table E1.5","index":44,"n_rows":17,"n_cols":23,"rows_kept":17,"cut":false,"hidden":false,"merged":[[14,1,14,25],[13,1,13,25],[6,17,6,22],[6,11,6,16],[6,5,6,10],[7,1,7,2],[12,1,12,21]]}
[null,"Annex E1 - Northern Ireland, by Local Commissioning Groups"]
[]
[null,"Table E1.5: UK Armed Forces personnel and entitled civilian personnel DMS registrations, registered to Local Commissioning Groups by gender, 1 April 2017, Numbers"]
[null,"Defence Statistics (Health)"]
[]
[null,null,"Return to contents"]
[null,null,null,"NEW","OLD","All Persons",null,null,null,null,null,"UK Armed Forces",null,null,null,null,null,"Civilian"]
[null,"Area Name",null,"Area Code","Area Code","All","+/-","Male","+/-","Female","+/-","All","+/-","Male","+/-","Female","+/-","All","+/-","Male","+/-","Female","+/-"]
[null,"NORTHERN IRELAND",null,"N92000002 ",null,2590,"",2140,"",450,"",2180,"",2020,"-",160,"",410,"",120,"",290,""]
[null,null,"South Eastern","ZC040","ZC4",2590,null,2140,null,450,null,2180,null,2020,null,160,null,410,null,120,null,290]
[]
[null,"Source:DMICP Data Warehouse"]
[null,"1. In line with Joint Service Publication 200, numbers 5 or fewer have been supressed and presented as '~'."]
[null,"2. Due to rounding, please note that totals may not equal the sum of their parts."]
[null,"3. The presence of  +/- indicates percentage changes in figures over the last quarter.  + indicates there has been a 5% to 10% increase and - indicates there has been between a 5% to 10% decrease.  ++ indicates a greater than 10% increase and -- indicates a greater than 10% decrease."]
[null,"4. Age bands are based on age as at time of data extraction."]
[null,"5. There are no nine character codes for the local commissioning groups in Northern Ireland."]

{"sheet":"Table E1.6","index":45,"n_rows":17,"n_cols":32,"rows_kept":17,"cut":false,"hidden":false,"merged":[[7,1,7,2],[12,1,12,21],[14,1,14,28],[13,1,13,13]]}
[null,"Annex E1 - Northern Ireland, by Local Commissioning Groups"]
[]
[null,"Table E1.6: UK Armed Forces males and entitled civilian males DMS registrations, registered to Local Commissioning Groups by age band, 1 April 2017, Numbers"]
[null,"Defence Statistics (Health)"]
[]
[null,null,"Return to contents"]
[null,null,null,"NEW","OLD"]
[null,"Area Name",null,"Area Code","Area Code","All Males","0-4","+/-","5-9","+/-","10-14","+/-","15-19","+/-","20-24","+/-","25-29","+/-","30-34","+/-","35-39","+/-","40-44","+/-","45-49","+/-","50-54","+/-","55-59","+/-","60+","+/-"]
[null,"NORTHERN IRELAND",null,"N92000002 ",null,2140,50,"",40,"+",20,"",60,"- -",460,"- -",530,"",400,"",320,"",140,"",80,"++",30,"","~","","~",""]
[null,null,"South Eastern","ZC040","ZC4",2140,50,null,40,null,20,null,60,null,460,null,530,null,400,null,320,null,140,null,80,null,30,null,"~",null,"~"]
[]
[null,"Source:DMICP Data Warehouse"]
[null,"1. In line with Joint Service Publication 200, numbers 5 or fewer have been supressed and presented as '~'."]
[null,"2. Due to rounding, please note that totals may not equal the sum of their parts."]
[null,"3. The presence of  +/- indicates percentage changes in figures over the last quarter.  + indicates there has been a 5% to 10% increase and - indicates there has been between a 5% to 10% decrease.  ++ indicates a greater than 10% increase and -- indicates a greater than 10% decrease."]
[null,"4. Age bands are based on age as at time of data extraction."]
[null,"5. There are no nine character codes for the local commissioning groups in Northern Ireland."]

{"sheet":"Table E1.7","index":46,"n_rows":17,"n_cols":32,"rows_kept":17,"cut":false,"hidden":false,"merged":[[7,1,7,2],[12,1,12,21],[14,1,14,28],[13,1,13,26]]}
[null,"Annex E1 - Northern Ireland, by Local Commissioning Groups"]
[]
[null,"Table E1.7: UK Armed Forces females and entitled civilian females DMS registrations, registered to Local Commissioning Groups by age band, 1 April 2017, Numbers"]
[null,"Defence Statistics (Health)"]
[]
[null,null,"Return to contents"]
[null,null,null,"NEW","OLD"]
[null,"Area Name",null,"Area Code","Area Code","All Females","0-4","+/-","5-9","+/-","10-14","+/-","15-19","+/-","20-24","+/-","25-29","+/-","30-34","+/-","35-39","+/-","40-44","+/-","45-49","+/-","50-54","+/-","55-59","+/-","60+","+/-"]
[null,"NORTHERN IRELAND",null,"N92000002 ",null,450,60,"+",40,"",20,"+",10,"",40,"",90,"",80,"",50,"-",40,"++",10,"","~","","~","",0,""]
[null,null,"South Eastern","ZC040","ZC4",450,60,null,40,null,20,null,10,null,40,null,90,null,80,null,50,null,40,null,10,null,"~",null,"~",null,0]
[]
[null,"Source:DMICP Data Warehouse"]
[null,"1. In line with Joint Service Publication 200, numbers 5 or fewer have been supressed and presented as '~'."]
[null,"2. Due to rounding, please note that totals may not equal the sum of their parts."]
[null,"3. The presence of  +/- indicates percentage changes in figures over the last quarter.  + indicates there has been a 5% to 10% increase and - indicates there has been between a 5% to 10% decrease.  ++ indicates a greater than 10% increase and -- indicates a greater than 10% decrease."]
[null,"4. Age bands are based on age as at time of data extraction."]
[null,"5. There are no nine character codes for the local commissioning groups in Northern Ireland."]

{"sheet":"Table E2.1","index":47,"n_rows":16,"n_cols":12,"rows_kept":16,"cut":false,"hidden":false,"merged":[[6,7,6,9],[13,1,13,21],[15,1,15,20],[14,1,14,20]]}
[null,"Annex E2 - Northern Ireland, by District Council Areas"]
[]
[null,"Table E2.1: UK Armed Forces personnel and entitled civilian personnel DMS registrations, registered to District Council Areas by Service, 1 April 2017, Numbers"]
[null,"Defence Statistics (Health)"]
[]
[null,null,"Return to contents"]
[null,null,null,null,null,null,null,"UK Armed Forces split by "]
[null,null,"Area Name","Area Code","All Persons","All UK Armed Forces","+/-","Naval Service","Army","RAF","Civilian","+/-"]
[null,"NORTHERN IRELAND",null,"N92000002 ",2590,2180,"",30,2080,80,410,""]
[null,null,"Lisburn and Castlereagh","N09000007",2110,1700,"",30,1600,70,410,"++"]
[null,null,"Ards and North Down","N09000011",480,480,"- -",0,480,"~",0,""]
[]
[null,"Source: DMICP Data Warehouse"]
[null,"1. In line with Joint Service Publication 200, numbers 5 or fewer have been supressed and presented as '~'."]
[null,"2. Due to rounding, please note that totals may not equal the sum of their parts."]
[null,"3. The presence of  +/- indicates percentage changes in figures over the last quarter.  + indicates there has been a 5% to 10% increase and - indicates there has been between a 5% to 10% decrease.  ++ indicates a greater than 10% increase and -- indicates a greater than 10% decrease."]

{"sheet":"Table E2.2","index":48,"n_rows":17,"n_cols":31,"rows_kept":17,"cut":false,"hidden":false,"merged":[[7,1,7,2],[14,1,14,24],[15,1,15,24],[13,1,13,21]]}
[null,"Annex E2 - Northern Ireland, by District Council Areas"]
[]
[null,"Table E2.2: UK Armed Forces personnel and entitled civilian personnel DMS registrations, registered to District Council Areas by age band, 1 April 2017, Numbers"]
[null,"Defence Statistics (Health)"]
[]
[null,null,"Return to contents"]
[]
[null,"Area Name",null,"Area Code","All Persons","0-4","+/-","5-9","+/-","10-14","+/-","15-19","+/-","20-24","+/-","25-29","+/-","30-34","+/-","35-39","+/-","40-44","+/-","45-49","+/-","50-54","+/-","55-59","+/-","60+","+/-"]
[null,"NORTHERN IRELAND",null,"N92000002 ",2590,110,"",90,"",40,"",70,"- -",490,"-",620,"",480,"",370,"",190,"",90,"++",40,"",10,"","~",""]
[null,null,"Lisburn and Castlereagh","N09000007",2110,110,null,90,null,40,null,60,null,380,null,490,null,370,null,300,null,160,null,70,null,30,null,"~",null,"~"]
[null,null,"Ards and North Down","N09000011",480,0,null,0,null,0,null,10,null,110,null,140,null,100,null,70,null,30,null,20,null,10,null,"~",null,"~"]
[]
[null,"Source:DMICP Data Warehouse"]
[null,"1. In line with Joint Service Publication 200, numbers 5 or fewer have been supressed and presented as '~'."]
[null,"2. Due to rounding, please note that totals may not equal the sum of their parts."]
[null,"3. The presence of  +/- indicates percentage changes in figures over the last quarter.  + indicates there has been a 5% to 10% increase and - indicates there has been between a 5% to 10% decrease.  ++ indicates a greater than 10% increase and -- indicates a greater than 10% decrease."]
[null,"4. Age bands are based on age as at time of data extraction."]

{"sheet":"Table E2.3","index":49,"n_rows":17,"n_cols":25,"rows_kept":17,"cut":false,"hidden":false,"merged":[[7,1,7,2],[14,1,14,24],[15,1,15,24],[13,1,13,21]]}
[null,"Annex E2 - Northern Ireland, by District Council Areas"]
[]
[null,"Table E2.3: UK Armed Forces personnel DMS registrations, registered to District Council Areas by age band, 1 April 2017, Numbers"]
[null,"Defence Statistics (Health)"]
[]
[null,null,"Return to contents"]
[]
[null,"Area Name",null,"Area Code","UK Armed Forces","16-19","+/-","20-24","+/-","25-29","+/-","30-34","+/-","35-39","+/-","40-44","+/-","45-49","+/-","50-54","+/-","55-59","+/-","60+","+/-"]
[null,"NORTHERN IRELAND",null,"N92000002 ",2180,60,"- -",480,"- -",580,"",430,"",340,"",160,"",80,"++",40,"",10,"","~",""]
[null,null,"Lisburn and Castlereagh","N09000007",1700,50,null,360,null,440,null,330,null,280,null,140,null,60,null,30,null,"~",null,"~"]
[null,null,"Ards and North Down","N09000011",480,10,null,110,null,140,null,100,null,70,null,30,null,20,null,10,null,"~",null,"~"]
[]
[null,"Source:DMICP Data Warehouse"]
[null,"1. In line with Joint Service Publication 200, numbers 5 or fewer have been supressed and presented as '~'."]
[null,"2. Due to rounding, please note that totals may not equal the sum of their parts."]
[null,"3. The presence of  +/- indicates percentage changes in figures over the last quarter.  + indicates there has been a 5% to 10% increase and - indicates there has been between a 5% to 10% decrease.  ++ indicates a greater than 10% increase and -- indicates a greater than 10% decrease."]
[null,"4. Age bands are based on age as at time of data extraction."]

{"sheet":"Table E2.4","index":50,"n_rows":16,"n_cols":31,"rows_kept":16,"cut":false,"hidden":false,"merged":[[6,1,6,2],[12,1,12,21],[14,1,14,29],[13,1,13,29]]}
[null,"Annex E2 - Northern Ireland, by District Council Areas"]
[]
[null,"Table E2.4: Entitled civilian personnel DMS registrations, registered to District Council Areas by age band, 1 April 2017, Numbers"]
[null,"Defence Statistics (Health)"]
[]
[null,null,"Return to contents"]
[null,"Area Name",null,"Area Code","All Civilians","0-4","+/-","5-9","+/-","10-14","+/-","15-19","+/-","20-24","+/-","25-29","+/-","30-34","+/-","35-39","+/-","40-44","+/-","45-49","+/-","50-54","+/-","55-59","+/-","60+","+/-"]
[null,"NORTHERN IRELAND",null,"N92000002 ",410,110,"",90,"",40,"",10,"",10,"",40,"",50,"+",30,"- -",20,"++","~","","~","",0,"","~",""]
[null,null,"Lisburn and Castlereagh","N09000007",410,110,null,90,null,40,null,10,null,10,null,40,null,50,null,30,null,20,null,"~",null,"~",null,0,null,"~"]
[null,null,"Ards and North Down","N09000011",0,0,null,0,null,0,null,0,null,0,null,0,null,0,null,0,null,0,null,0,null,0,null,0,null,0]
[]
[null,"Source:DMICP Data Warehouse"]
[null,"1. In line with Joint Service Publication 200, numbers 5 or fewer have been supressed and presented as '~'."]
[null,"2. Due to rounding, please note that totals may not equal the sum of their parts."]
[null,"3. The presence of  +/- indicates percentage changes in figures over the last quarter.  + indicates there has been a 5% to 10% increase and - indicates there has been between a 5% to 10% decrease.  ++ indicates a greater than 10% increase and -- indicates a greater than 10% decrease."]
[null,"4. Age bands are based on age as at time of data extraction."]

{"sheet":"Table E2.5","index":51,"n_rows":17,"n_cols":22,"rows_kept":17,"cut":false,"hidden":false,"merged":[[6,10,6,15],[6,16,6,21],[6,4,6,9],[13,1,13,21],[15,1,15,25],[14,1,14,25]]}
[null,"Annex E2 - Northern Ireland, by District Council Areas"]
[]
[null,"Table E2.5: UK Armed Forces personnel and entitled civilian personnel DMS registrations, registered to District Council Areas by gender, 1 April 2017, Numbers"]
[null,"Defence Statistics (Health)"]
[]
[null,null,"Return to contents"]
[null,null,null,null,"All Persons",null,null,null,null,null,"UK Armed Forces",null,null,null,null,null,"Civilian"]
[null,"Area Name",null,"Area Code","All","+/-","Male","+/-","Female","+/-","All","+/-","Male","+/-","Female","+/-","All","+/-","Male","+/-","Female","+/-"]
[null,"NORTHERN IRELAND",null,"N92000002 ",2590,"",2140,"",450,"",2180,"",2020,"",160,"-",410,"",120,"",290,""]
[null,null,"Lisburn and Castlereagh","N09000007",2110,null,1670,null,430,null,1700,null,1550,null,140,null,410,null,120,null,290]
[null,null,"Ards and North Down","N09000011",480,null,460,null,20,null,480,null,460,null,20,null,0,null,0,null,0]
[]
[null,"Source:DMICP Data Warehouse"]
[null,"1. In line with Joint Service Publication 200, numbers 5 or fewer have been supressed and presented as '~'."]
[null,"2. Due to rounding, please note that totals may not equal the sum of their parts."]
[null,"3. The presence of  +/- indicates percentage changes in figures over the last quarter.  + indicates there has been a 5% to 10% increase and - indicates there has been between a 5% to 10% decrease.  ++ indicates a greater than 10% increase and -- indicates a greater than 10% decrease."]
[null,"4. Age bands are based on age as at time of data extraction."]

{"sheet":"Table E2.6","index":52,"n_rows":16,"n_cols":31,"rows_kept":16,"cut":false,"hidden":false,"merged":[[12,1,12,21],[14,1,14,30],[13,1,13,29]]}
[null,"Annex E2 - Northern Ireland, by District Council Areas"]
[]
[null,"Table E2.6: UK Armed Forces males and entitled civilian males DMS registrations, registered to District Council Areas by age band, 1 April 2017, Numbers"]
[null,"Defence Statistics (Health)"]
[]
[null,null,"Return to contents"]
[null,"Area Name",null,"Area Code","All Males","0-4","+/-","5-9","+/-","10-14","+/-","15-19","+/-","20-24","+/-","25-29","+/-","30-34","+/-","35-39","+/-","40-44","+/-","45-49","+/-","50-54","+/-","55-59","+/-","60+","+/-"]
[null,"NORTHERN IRELAND",null,"N92000002 ",2140,50,"",40,"+",20,"",60,"- -",460,"- -",530,"",400,"",320,"",140,"",80,"++",30,"","~","","~",""]
[null,null,"Lisburn and Castlereagh","N09000007",1670,50,null,40,null,20,null,50,null,350,null,400,null,300,null,250,null,120,null,60,null,30,null,"~",null,"~"]
[null,null,"Ards and North Down","N09000011",460,0,null,0,null,0,null,10,null,110,null,130,null,100,null,70,null,30,null,20,null,10,null,"~",null,"~"]
[]
[null,"Source:DMICP Data Warehouse"]
[null,"1. In line with Joint Service Publication 200, numbers 5 or fewer have been supressed and presented as '~'."]
[null,"2. Due to rounding, please note that totals may not equal the sum of their parts."]
[null,"3. The presence of  +/- indicates percentage changes in figures over the last quarter.  + indicates there has been a 5% to 10% increase and - indicates there has been between a 5% to 10% decrease.  ++ indicates a greater than 10% increase and -- indicates a greater than 10% decrease."]
[null,"4. Age bands are based on age as at time of data extraction."]

{"sheet":"Table E2.7","index":53,"n_rows":16,"n_cols":31,"rows_kept":16,"cut":false,"hidden":false,"merged":[[6,1,6,2],[12,1,12,21],[14,1,14,29],[13,1,13,29]]}
[null,"Annex E2 - Northern Ireland, by District Council Areas"]
[]
[null,"Table E2.7: UK Armed Forces females and entitled civilian females DMS registrations, registered to District Council Areas by age band, 1 April 2017, Numbers"]
[null,"Defence Statistics (Health)"]
[null,null," "]
[null,null,"Return to contents"]
[null,"Area Name",null,"Area Code","All Females","0-4","+/-","5-9","+/-","10-14","+/-","15-19","+/-","20-24","+/-","25-29","+/-","30-34","+/-","35-39","+/-","40-44","+/-","45-49","+/-","50-54","+/-","55-59","+/-","60+","+/-"]
[null,"NORTHERN IRELAND",null,"N92000002 ",450,60,"+",40,"",20,"+",10,"",40,"",90,"",80,"",50,"-",40,"++",10,"","~","","~","",0,""]
[null,null,"Lisburn and Castlereagh","N09000007",430,60,null,40,null,20,null,10,null,30,null,80,null,70,null,50,null,40,null,10,null,"~",null,"~",null,0]
[null,null,"Ards and North Down","N09000011",20,0,null,0,null,0,null,"~",null,"~",null,10,null,"~",null,"~",null,0,null,0,null,"~",null,0,null,0]
[]
[null,"Source:DMICP Data Warehouse"]
[null,"1. In line with Joint Service Publication 200, numbers 5 or fewer have been supressed and presented as '~'."]
[null,"2. Due to rounding, please note that totals may not equal the sum of their parts."]
[null,"3. The presence of  +/- indicates percentage changes in figures over the last quarter.  + indicates there has been a 5% to 10% increase and - indicates there has been between a 5% to 10% decrease.  ++ indicates a greater than 10% increase and -- indicates a greater than 10% decrease."]
[null,"4. Age bands are based on age as at time of data extraction."]

{"sheet":"Table F1.1","index":54,"n_rows":29,"n_cols":12,"rows_kept":29,"cut":false,"hidden":false,"merged":[[28,1,28,10],[6,7,6,9],[7,1,7,3],[5,2,5,3],[27,1,27,10]]}
[null,"Annex F - Defence Primary Healthcare Regions"]
[]
[null,"Table F1.1: UK Armed Forces personnel and entitled civilian personnel DMS registrations, registered to Defence Primary Healthcare regions by Service, 1 April 2017, Numbers"]
[null,"Defence Statistics (Health)"]
[]
[null,null,"Return to contents"]
[null,null,null,null,null,null,null,"UK Armed Forces split by "]
[null,null,null,null,"All Persons","All UK Armed Forces","+/-","Naval Service","Army","RAF","Civilian","+/-"]
[null,"ALL",null,null,177032,147861,"",31880,82780,33201,29171,""]
[null,null,"UNITED KINGDOM",null,154945,139269,"",31220,76304,31745,15676,""]
[null,null,null,"Central",14295,12069,"",263,3364,8442,2226,""]
[null,null,null,"East",24637,21672,"",354,9906,11412,2965,""]
[null,null,null,"London & South East",12661,11510,"",957,9069,1484,1151,""]
[null,null,null,"Northern England",16462,14745,"-",131,12276,2338,1717,""]
[null,null,null,"Scotland & Northern Ireland",14387,13470,"",5629,5948,1893,917,""]
[null,null,null,"South",22044,21368,"",9192,10032,2144,676,""]
[null,null,null,"South West",15382,15344,"",13544,1545,255,38,"++"]
[null,null,null,"Wales & West Midlands",10998,10071,"+",427,7022,2622,927,""]
[null,null,null,"Wessex",24079,19020,"",723,17142,1155,5059,""]
[null,null,"OTHER",null,22087,8592,"",660,6476,1456,13495,""]
[null,null,null,"Germany",10466,4457,"",200,3871,386,6009,""]
[null,null,null,"Cyprus",6556,2244,"",25,1370,849,4312,""]
[null,null,null,"Other overseas",3828,772,"",8,748,16,3056,""]
[null,null,null,"Reserve Practices",195,190,"+",36,154,0,5,""]
[null,null,null,"Unknown2",1042,929,"",391,333,205,113,"++"]
[]
[null,"Source: DMICP Data Warehouse"]
[null,"1. The presence of  +/- indicates percentage changes in figures over the last quarter.  + indicates there has been a 5% to 10% increase and - indicates there has been between a 5% to 10% decrease.  ++ indicates a greater than 10% increase and -- indicates a greater than 10% decrease."]
[null,"2. Unknown includes data quality issues and data management practice registrations."]

{"sheet":"Table F1.2","index":55,"n_rows":31,"n_cols":18,"rows_kept":31,"cut":false,"hidden":false,"merged":[[30,1,30,15],[5,2,5,3],[7,1,7,3],[28,1,28,21],[29,1,29,18]]}
[null,"Annex F - Defence Primary Healthcare Regions"]
[]
[null,"Table F1.2: UK Armed Forces personnel and entitled civilian personnel DMS registrations, registered to Defence Primary Healthcare regions by age band, 1 April 2017, Numbers"]
[null," Defence Statistics (Health)"]
[]
[null,null,"Return to contents"]
[]
[null,null,null,null,"All Persons","0-4","5-9","10-14","15-19","20-24","25-29","30-34","35-39","40-44","45-49","50-54","55-59","60+"]
[null,"ALL",null,null,177030,6700,5120,2740,8960,29100,37540,30130,24510,14550,10000,5840,1420,430]
[null,null,"UNITED KINGDOM",null,154940,4290,2980,1530,8150,27140,34780,27380,22010,12890,8440,4520,770,80]
[null,null,null,"Central",14300,630,380,230,590,1570,2530,2580,2420,1500,1100,650,110,10]
[null,null,null,"East",24640,820,600,290,560,3790,5700,4610,3780,2230,1460,660,120,10]
[null,null,null,"London & South East",12660,310,190,100,820,2200,2690,2150,1700,1140,830,460,80,10]
[null,null,null,"Northern England",16460,510,340,180,2250,3110,3730,2660,1920,1020,500,220,40,"~"]
[null,null,null,"Scotland & Northern Ireland",14390,220,190,100,420,2840,3640,2660,2040,1140,710,340,70,"~"]
[null,null,null,"South",22040,150,100,50,1030,4240,5190,4030,3170,1870,1320,750,120,20]
[null,null,null,"South West",15380,0,0,0,760,3270,4000,2790,1950,1220,870,440,70,"~"]
[null,null,null,"Wales & West Midlands",11000,230,150,60,510,2340,2590,1900,1560,840,480,250,70,"~"]
[null,null,null,"Wessex",24080,1420,1020,520,1200,3800,4700,4020,3460,1940,1180,740,80,10]
[null,null,"OTHER",null,22090,2410,2140,1210,810,1950,2770,2750,2500,1660,1550,1330,650,360]
[null,null,null,"Germany",10470,1070,1010,600,480,1140,1310,1260,1220,730,650,590,250,160]
[null,null,null,"Cyprus",6560,930,730,370,220,480,900,900,710,460,370,260,140,90]
[null,null,null,"Other overseas",3830,400,400,220,100,260,470,480,470,320,280,220,120,80]
[null,null,null,"Reserve Practices",200,0,0,0,0,"~",10,10,10,20,60,50,30,"~"]
[null,null,null,"Unknown3",1040,"~","~",10,20,70,90,100,100,130,190,200,120,20]
[]
[]
[null,"Source: DMICP Data Warehouse"]
[null,"1. In line with Joint Service Publication 200, numbers 5 or fewer have been supressed and presented as '~'."]
[null,"2. Due to rounding, please note that totals may not equal the sum of their parts."]
[null,"3. Unknown includes data quality issues and data management practice registrations."]

{"sheet":"Table F1.3","index":56,"n_rows":29,"n_cols":15,"rows_kept":29,"cut":false,"hidden":false,"merged":[[5,2,5,3],[6,1,6,3],[28,1,28,17],[27,1,27,17],[26,1,26,17]]}
[null,"Annex F - Defence Primary Healthcare Regions"]
[]
[null,"Table F1.3: UK Armed Forces personnel DMS registrations, registered to Defence Primary Healthcare regions by age band, 1 April 2017, Numbers"]
[null,"Defence Statistics (Health)"]
[]
[null,null,"Return to contents"]
[null,null,null,null,"All UK Armed Forces","16-19","20-24","25-29","30-34","35-39","40-44","45-49","50-54","55-59","60+"]
[null,"ALL",null,null,147860,7680,28000,35040,27300,22160,13060,8740,4900,900,70]
[null,null,"UNITED KINGDOM",null,139270,7430,26520,33290,25810,20830,12260,8040,4320,720,60]
[null,null,null,"Central",12070,450,1510,2370,2370,2250,1400,1010,600,100,10]
[null,null,null,"East",21670,440,3660,5420,4330,3560,2120,1370,640,120,10]
[null,null,null,"London & South East",11510,760,2150,2560,2010,1630,1080,800,450,80,10]
[null,null,null,"Northern England",14740,2180,3060,3570,2490,1770,960,460,190,40,"~"]
[null,null,null,"Scotland & Northern Ireland",13470,380,2800,3550,2580,1970,1090,700,330,70,"~"]
[null,null,null,"South",21370,990,4210,5130,3950,3110,1830,1300,730,110,10]
[null,null,null,"South West",15340,760,3270,4000,2780,1950,1210,870,440,70,"~"]
[null,null,null,"Wales & West Midlands",10070,460,2260,2480,1810,1500,800,450,250,60,"~"]
[null,null,null,"Wessex",19020,1000,3600,4220,3490,3080,1770,1090,700,70,10]
[null,null,"OTHER",null,8590,240,1480,1750,1490,1340,800,700,580,190,20]
[null,null,null,"Germany",4460,170,910,900,750,740,390,300,260,40,0]
[null,null,null,"Cyprus",2240,60,360,590,490,350,200,120,60,10,0]
[null,null,null,"Other overseas",770,"~",150,190,150,150,70,40,20,"~",0]
[null,null,null,"Reserve Practices",190,0,"~","~",10,10,20,50,50,30,"~"]
[null,null,null,"Unknown3",930,10,50,60,90,100,120,190,190,110,20]
[]
[null,"Source: DMICP Data Warehouse"]
[null,"1. In line with Joint Service Publication 200, numbers 5 or fewer have been supressed and presented as '~'."]
[null,"2. Due to rounding, please note that totals may not equal the sum of their parts."]
[null,"3. Unknown includes data quality issues and data management practice registrations."]

{"sheet":"Table F1.4","index":57,"n_rows":30,"n_cols":18,"rows_kept":30,"cut":false,"hidden":false,"merged":[[5,2,5,3],[7,1,7,3],[29,1,29,17],[28,1,28,17],[27,1,27,16]]}
[null,"Annex F - Defence Primary Healthcare Regions"]
[]
[null,"Table F1.4: Entitled civilian personnel DMS registrations, registered to Defence Primary Healthcare regions by age band, 1 April 2017, Numbers"]
[null,"Defence Statistics (Health)"]
[]
[null,null,"Return to contents"]
[]
[null,null,null,null,"All Civilians","0-4","5-9","10-14","15-19","20-24","25-29","30-34","35-39","40-44","45-49","50-54","55-59","60+"]
[null,"ALL",null,null,29170,6700,5120,2740,1290,1100,2510,2830,2340,1480,1250,940,520,360]
[null,null,"UNITED KINGDOM",null,15680,4290,2980,1530,720,620,1490,1580,1180,630,400,190,50,20]
[null,null,null,"Central",2230,630,380,230,140,60,170,210,170,100,80,40,10,"~"]
[null,null,null,"East",2960,820,600,290,120,130,270,280,220,110,90,20,10,"~"]
[null,null,null,"London & South East",1150,310,190,100,60,50,130,140,70,60,30,10,"~","~"]
[null,null,null,"Northern England",1720,510,340,180,70,50,160,160,140,60,30,20,"~",0]
[null,null,null,"Scotland & Northern Ireland",920,220,190,100,40,40,90,80,70,50,20,10,"~","~"]
[null,null,null,"South",680,150,100,50,40,30,60,80,50,40,20,20,10,10]
[null,null,null,"South West",40,0,0,0,"~",0,"~",10,"~",10,"~",10,"~","~"]
[null,null,null,"Wales & West Midlands",930,230,150,60,40,70,120,90,70,40,30,10,10,0]
[null,null,null,"Wessex",5060,1420,1020,520,200,200,480,530,380,170,80,40,10,"~"]
[null,null,"OTHER",null,13500,2410,2140,1210,570,470,1020,1260,1160,850,850,740,470,340]
[null,null,null,"Germany",6010,1070,1010,600,310,230,410,510,480,340,350,330,210,160]
[null,null,null,"Cyprus",4310,930,730,370,160,120,310,400,360,260,260,200,130,90]
[null,null,null,"Other overseas",3060,400,400,220,100,110,280,330,320,250,240,200,120,80]
[null,null,null,"Reserve Practices","~",0,0,0,0,0,"~","~",0,"~","~",0,0,0]
[null,null,null,"Unknown3",110,"~","~",10,10,20,20,10,"~",10,"~",10,10,"~"]
[]
[null,"Source: DMICP Data Warehouse"]
[null,"1. In line with Joint Service Publication 200, numbers 5 or fewer have been supressed and presented as '~'."]
[null,"2. Due to rounding, please note that totals may not equal the sum of their parts."]
[null,"3. Unknown includes data quality issues and data management practice registrations."]

{"sheet":"Table F1.5","index":58,"n_rows":32,"n_cols":13,"rows_kept":32,"cut":false,"hidden":false,"merged":[[29,1,29,20],[30,1,30,20],[5,2,5,3],[7,7,7,9],[7,10,7,12],[7,4,7,6],[28,1,28,21]]}
[null,"Annex F - Defence Primary Healthcare Regions"]
[]
[null,"Table F1.5: UK Armed Forces personnel and entitled civilian personnel DMS registrations, registered to Defence Primary Healthcare regions by gender, 1 April 2017, Numbers"]
[null,"Defence Statistics (Health)"]
[]
[null,null,"Return to contents"]
[]
[null,null,null,null,"All Persons",null,null,"UK Armed Forces",null,null,"Civilian"]
[null,null,null,null,"All","Male","Female","All","Male","Female","All","Male","Female"]
[null,"ALL",null,null,177030,143400,33630,147860,132760,15110,29170,10640,18520]
[null,null,"UNITED KINGDOM",null,154940,130170,24770,139270,124820,14450,15680,5350,10330]
[null,null,null,"Central",14300,11010,3290,12070,10260,1800,2230,740,1480]
[null,null,null,"East",24640,20440,4190,21670,19410,2260,2960,1030,1930]
[null,null,null,"London & South East",12660,10800,1860,11510,10420,1090,1150,380,780]
[null,null,null,"Northern England",16460,14090,2380,14740,13490,1250,1720,600,1120]
[null,null,null,"Scotland & Northern Ireland",14390,12990,1400,13470,12690,780,920,300,620]
[null,null,null,"South",22040,18860,3180,21370,18640,2730,680,220,450]
[null,null,null,"South West",15380,13950,1430,15340,13930,1420,40,20,20]
[null,null,null,"Wales & West Midlands",11000,9060,1930,10070,8680,1390,930,380,540]
[null,null,null,"Wessex",24080,18970,5110,19020,17300,1720,5060,1680,3380]
[null,null,"OTHER",null,22090,13230,8860,8590,7930,660,13500,5300,8200]
[null,null,null,"Germany",10470,6260,4210,4460,4090,370,6010,2170,3840]
[null,null,null,"Cyprus",6560,3720,2840,2240,2050,190,4310,1670,2650]
[null,null,null,"Other overseas",3830,2140,1690,770,760,20,3060,1380,1670]
[null,null,null,"Reserve Practices",200,180,20,190,170,20,"~","~","~"]
[null,null,null,"Unknown3",1040,930,110,930,860,70,110,80,40]
[]
[null,"Source: DMICP Data Warehouse"]
[null,"1. In line with Joint Service Publication 200, numbers 5 or fewer have been supressed and presented as '~'."]
[null,"2. Due to rounding, please note that totals may not equal the sum of their parts."]
[null,"3. Unknown includes data quality issues and data management practice registrations."]
[null,"4. See Annex G which maps CCGs into DPHC regions."]

{"sheet":"Table F1.6","index":59,"n_rows":30,"n_cols":18,"rows_kept":30,"cut":false,"hidden":false,"merged":[[5,2,5,3],[28,1,28,20],[27,1,27,20],[26,1,26,20]]}
[null,"Annex F - Defence Primary Healthcare Regions"]
[]
[null,"Table F1.6: UK Armed Forces males and entitled civilian males DMS registrations, registered to Defence Primary Healthcare regions by age band, 1 April 2017, Numbers"]
[null,"Defence Statistics (Health)"]
[]
[null,null,"Return to contents"]
[null,null,null,null,"All Males","0-4","5-9","10-14","15-19","20-24","25-29","30-34","35-39","40-44","45-49","50-54","55-59","60+"]
[null,"ALL",null,null,143400,3440,2580,1390,7630,25520,31500,24380,19860,12080,8460,5100,1170,300]
[null,null,"UNITED KINGDOM",null,130170,2200,1520,790,7130,24060,29770,22820,18400,11080,7460,4160,710,70]
[null,null,null,"Central",11010,320,190,110,470,1280,1960,1960,1900,1220,920,580,100,10]
[null,null,null,"East",20440,450,310,160,460,3310,4860,3810,3160,1910,1290,620,110,10]
[null,null,null,"London & South East",10800,150,90,60,730,2000,2320,1790,1430,960,740,430,80,10]
[null,null,null,"Northern England",14090,260,180,90,2090,2810,3240,2270,1600,880,430,190,40,"~"]
[null,null,null,"Scotland & Northern Ireland",12990,110,100,50,380,2670,3340,2420,1840,1020,660,320,70,"~"]
[null,null,null,"South",18860,80,50,30,900,3690,4430,3370,2660,1650,1180,700,110,20]
[null,null,null,"South West",13950,0,0,0,690,2960,3600,2490,1760,1120,820,430,70,"~"]
[null,null,null,"Wales & West Midlands",9060,110,80,40,400,2030,2190,1540,1290,700,390,220,60,"~"]
[null,null,null,"Wessex",18970,730,520,260,1010,3300,3830,3160,2750,1610,1020,680,70,10]
[null,null,"OTHER",null,13230,1240,1060,590,490,1460,1730,1560,1460,990,1010,940,460,240]
[null,null,null,"Germany",6260,560,490,300,300,870,850,750,740,420,380,380,140,100]
[null,null,null,"Cyprus",3720,470,350,180,130,360,560,500,370,260,220,170,90,50]
[null,null,null,"Other overseas",2140,210,210,110,50,180,240,220,250,180,180,150,90,60]
[null,null,null,"Reserve Practices",180,0,0,0,0,"~","~",10,10,20,50,50,30,"~"]
[null,null,null,"Unknown3",930,"~","~",10,10,50,80,80,90,120,180,190,110,20]
[]
[null,"Source: DMICP Data Warehouse"]
[null,"1. In line with Joint Service Publication 200, numbers 5 or fewer have been supressed and presented as '~'."]
[null,"2. Due to rounding, please note that totals may not equal the sum of their parts."]
[null,"3. Unknown includes data quality issues and data management practice registrations."]
[null,"4. See Annex G which maps CCGs into DPHC regions."]

{"sheet":"Table F1.7","index":60,"n_rows":30,"n_cols":18,"rows_kept":30,"cut":false,"hidden":false,"merged":[[5,2,5,3],[28,1,28,20],[27,1,27,20],[26,1,26,20]]}
[null,"Annex F - Defence Primary Healthcare Regions"]
[]
[null,"Table F1.7: UK Armed Forces females and entitled civilian females DMS registrations, registered to Defence Primary Healthcare regions by age band, 1 April 2017, Numbers"]
[null,"Defence Statistics (Health)"]
[]
[null,null,"Return to contents"]
[null,null,null,null,"All Females","0-4","5-9","10-14","15-19","20-24","25-29","30-34","35-39","40-44","45-49","50-54","55-59","60+"]
[null,"ALL",null,null,33630,3250,2540,1350,1340,3570,6040,5750,4650,2470,1530,740,250,130]
[null,null,"UNITED KINGDOM",null,24770,2080,1460,740,1020,3080,5000,4560,3610,1810,990,360,60,10]
[null,null,null,"Central",3290,310,200,120,120,290,570,620,520,270,180,70,10,"~"]
[null,null,null,"East",4190,370,300,140,100,480,840,800,620,320,170,50,10,"~"]
[null,null,null,"London & South East",1860,160,90,40,100,190,360,350,270,170,90,30,"~",0]
[null,null,null,"Northern England",2380,240,160,80,160,300,480,380,320,140,70,30,"~","~"]
[null,null,null,"Scotland & Northern Ireland",1400,110,80,50,40,170,300,240,200,120,60,20,"~",0]
[null,null,null,"South",3180,80,60,30,130,540,760,660,510,220,140,50,10,"~"]
[null,null,null,"South West",1430,0,0,0,70,310,410,300,190,100,50,10,"~","~"]
[null,null,null,"Wales & West Midlands",1930,120,80,20,100,310,410,360,270,140,80,30,10,0]
[null,null,null,"Wessex",5110,690,500,250,190,500,870,860,700,330,150,60,10,0]
[null,null,"OTHER",null,8860,1170,1090,610,320,490,1040,1190,1040,660,540,390,190,120]
[null,null,null,"Germany",4210,510,520,300,180,270,460,520,480,310,270,210,110,60]
[null,null,null,"Cyprus",2840,460,380,190,90,120,340,400,330,200,150,80,50,40]
[null,null,null,"Other overseas",1690,190,190,110,50,80,230,250,220,140,110,70,30,20]
[null,null,null,"Reserve Practices",20,0,0,0,0,0,"~","~","~","~","~","~","~",0]
[null,null,null,"Unknown3",110,"~",0,"~","~",10,10,20,10,20,10,10,10,"~"]
[]
[null,"Source: DMICP Data Warehouse"]
[null,"1. In line with Joint Service Publication 200, numbers 5 or fewer have been supressed and presented as '~'."]
[null,"2. Due to rounding, please note that totals may not equal the sum of their parts."]
[null,"3. Unknown includes data quality issues and data management practice registrations."]
[null,"4. See Annex G which maps CCGs into DPHC regions."]

{"sheet":"Figure G1","index":61,"n_rows":31,"n_cols":4,"rows_kept":31,"cut":false,"hidden":false,"merged":[[5,2,5,3],[30,3,30,22],[27,1,27,20],[28,1,28,20]]}
[null,"Annex G - Report figures"]
[]
[null,"Figure G1: UK Armed Forces and entitled civilian personnel DMS registrations, by registration location, 1 April 2017, Numbers and Percentages"]
[null,"Defence Statistics (Health)"]
[]
[null,null,"Return to contents"]
[]
[]
[]
[]
[]
[]
[]
[]
[]
[]
[]
[]
[]
[]
[]
[]
[]
[]
[]
[]
[]
[]
[]
[null,null,null,"Source: DMICP Data Warehouse and JPA"]
[null,null,null,"1 Due to rounding, subtotals will not always add up to the total."]

{"sheet":"Figure G2","index":62,"n_rows":31,"n_cols":3,"rows_kept":31,"cut":false,"hidden":false,"merged":[[5,2,5,3],[28,1,28,20],[29,1,29,20],[30,1,30,20]]}
[null,"Annex G - Report figures"]
[]
[null,"Figure G2: UK Armed Forces DMS registrations, by country and quarter, 1 April 2017, Numbers"]
[null,"Defence Statistics (Health)"]
[]
[null,null,"Return to contents"]
[]
[]
[]
[]
[]
[]
[]
[]
[]
[]
[]
[]
[]
[]
[]
[]
[]
[]
[]
[]
[]
[null,"Source: DMICP Data Warehouse and JPA"]
[null,"1 Rest of UK consists of Wales, Scotland and Northern Ireland.  \n"]
[null,"2 All Overseas consists of Germany, Cyprus and Other Overseas."]
[null,"3 Other consists of Reserve Practices and Unknown. "]

{"sheet":"Figure G3","index":63,"n_rows":26,"n_cols":3,"rows_kept":26,"cut":false,"hidden":false,"merged":[[5,2,5,3],[26,1,26,20],[27,1,27,20],[28,1,28,20]]}
[null,{"$f":"Contents!B92","v":"Annex G - Report figures"}]
[]
[null,{"$f":"Sheet1!B66","v":"Figure G3: UK Armed Forces DMS registrations, by gender and age band, 1 April 2017, Numbers"}]
[null,"Defence Statistics (Health)"]
[]
[null,null,"Return to contents"]
[]
[]
[]
[]
[]
[]
[]
[]
[]
[]
[]
[]
[]
[]
[]
[]
[]
[]
[]
[null,"Source: DMICP Data Warehouse and JPA"]

{"sheet":"Figure G4","index":64,"n_rows":29,"n_cols":3,"rows_kept":29,"cut":false,"hidden":false,"merged":[[5,2,5,3],[26,1,26,20],[27,1,27,20],[28,1,28,20]]}
[null,{"$f":"Contents!B92","v":"Annex G - Report figures"}]
[]
[null,{"$f":"Sheet1!B67","v":"Figure G4: Entitled civilian DMS registrations, by country and quarter, 1 April 2017, Numbers"}]
[null,"Defence Statistics (Health)"]
[]
[null,null,"Return to contents"]
[]
[]
[]
[]
[]
[]
[]
[]
[]
[]
[]
[]
[]
[]
[]
[]
[]
[]
[]
[null,"Source: DMICP Data Warehouse"]
[null,"1 Rest of UK consists of Wales, Scotland and Northern Ireland.  \n"]
[null,"2 All Overseas consists of Germany, Cyprus and Other Overseas."]
[null,"3 Other consists of Reserve Practices and Unknown. "]

{"sheet":"Figure G5","index":65,"n_rows":27,"n_cols":3,"rows_kept":27,"cut":false,"hidden":false,"merged":[[5,2,5,3],[26,1,26,20],[27,1,27,20],[28,1,28,20]]}
[null,{"$f":"Contents!B92","v":"Annex G - Report figures"}]
[]
[null,{"$f":"Sheet1!B68","v":"Figure G5: Entitled civilian DMS registrations, by gender and age band, 1 April 2017, Numbers"}]
[null,"Defence Statistics (Health)"]
[]
[null,null,"Return to contents"]
[]
[]
[]
[]
[]
[]
[]
[]
[]
[]
[]
[]
[]
[]
[]
[]
[]
[]
[]
[null,"Source: DMICP Data Warehouse"]
[null,"1 Please note there was 1 civilian whose gender was recorded as “unspecified” and therefore has been excluded from Figure 5."]

{"sheet":"Figure G6","index":66,"n_rows":24,"n_cols":3,"rows_kept":24,"cut":false,"hidden":false,"merged":[[5,2,5,3],[26,1,26,20],[27,1,27,20],[28,1,28,20]]}
[null,{"$f":"Contents!B92","v":"Annex G - Report figures"}]
[]
[null,{"$f":"Sheet1!B69","v":"Figure G6: UK Armed Forces and entitled civilian England DMS registrations, 1 April 2017, Numbers and Percentages"}]
[null,"Defence Statistics (Health)"]
[]
[null,null,"Return to contents"]
[]
[]
[]
[]
[]
[]
[]
[]
[]
[]
[]
[]
[]
[]
[]
[]
[]
[null,"Source: DMICP Data Warehouse and JPA"]

{"sheet":"Figure G7","index":67,"n_rows":24,"n_cols":3,"rows_kept":24,"cut":false,"hidden":false,"merged":[[5,2,5,3],[26,1,26,20],[27,1,27,20],[28,1,28,20]]}
[null,{"$f":"Contents!B92","v":"Annex G - Report figures"}]
[]
[null,{"$f":"Sheet1!B70","v":"Figure G7: UK Armed Forces and entitled civilian Wales DMS registrations, 1 April 2017, Numbers and Percentages"}]
[null,"Defence Statistics (Health)"]
[]
[null,null,"Return to contents"]
[]
[]
[]
[]
[]
[]
[]
[]
[]
[]
[]
[]
[]
[]
[]
[]
[]
[null,"Source: DMICP Data Warehouse and JPA"]

{"sheet":"Figure G8","index":68,"n_rows":26,"n_cols":3,"rows_kept":26,"cut":false,"hidden":false,"merged":[[5,2,5,3],[26,1,26,20],[27,1,27,20],[28,1,28,20]]}
[null,{"$f":"Contents!B92","v":"Annex G - Report figures"}]
[]
[null,{"$f":"Sheet1!B71","v":"Figure G8: UK Armed Forces and entitled civilian Scotland DMS registrations, 1 April 2017, Numbers and Percentages"}]
[null,"Defence Statistics (Health)"]
[]
[null,null,"Return to contents"]
[]
[]
[]
[]
[]
[]
[]
[]
[]
[]
[]
[]
[]
[]
[]
[]
[]
[]
[]
[null,"Source: DMICP Data Warehouse and JPA"]

{"sheet":"Annex H","index":69,"n_rows":69,"n_cols":3,"rows_kept":69,"cut":false,"hidden":false,"merged":[[66,1,68,1],[55,1,65,1],[35,1,41,1],[0,1,0,2],[6,1,9,1],[10,1,21,1],[42,1,50,1],[51,1,54,1],[22,1,34,1]]}
[null,{"$f":"Sheet1!B72","v":"ANNEX H: DPHC region mapping of CCGs"}]
[]
[null,"Defence Statistics (Health)"]
[null,"Return to contents"]
[]
[null,"DPHC Region","CCG"]
[null,"Central","NHS Aylesbury Vale CCG"]
[null,null,"NHS Newbury and District CCG"]
[null,null,"NHS Oxfordshire CCG"]
[null,null,"NHS Swindon CCG"]
[null,"East","NHS Bedfordshire CCG"]
[null,null,"NHS Cambridgeshire and Peterborough CCG"]
[null,null,"NHS East Leicestershire and Rutland CCG"]
[null,null,"NHS Ipswich and East Suffolk CCG"]
[null,null,"NHS Lincolnshire East CCG"]
[null,null,"NHS Lincolnshire West CCG"]
[null,null,"NHS North East Essex CCG"]
[null,null,"NHS Nottingham West CCG"]
[null,null,"NHS South Norfolk CCG"]
[null,null,"NHS South West Lincolnshire CCG "]
[null,null,"NHS West Essex CCG"]
[null,null,"NHS West Norfolk CCG"]
[null,"London & South East","NHS Central London (Westminster) CCG"]
[null,null,"NHS Greenwich CCG"]
[null,null,"NHS Herts Valleys CCG"]
[null,null,"NHS Hillingdon CCG"]
[null,null,"NHS Hounslow CCG"]
[null,null,"NHS Lambeth CCG"]
[null,null,"NHS Medway CCG"]
[null,null,"NHS North West Surrey CCG"]
[null,null,"NHS South Kent Coast CCG"]
[null,null,"NHS Surrey Downs CCG"]
[null,null,"NHS Surrey Heath CCG"]
[null,null,"NHS West Kent CCG"]
[null,null,"NHS Windsor, Ascot and Maidenhead CCG"]
[null,"Northern England","NHS Cumbria CCG"]
[null,null,"NHS East Riding of Yorkshire CCG"]
[null,null,"NHS Hambleton, Richmondshire and Whitby CCG"]
[null,null,"NHS Harrogate and Rural District CCG"]
[null,null,"NHS Northumberland CCG"]
[null,null,"NHS Scarborough and Ryedale CCG"]
[null,null,"NHS Vale of York CCG"]
[null,"South","NHS Bracknell and Ascot CCG"]
[null,null,"NHS Coastal West Sussex CCG"]
[null,null,"NHS Fareham and Gosport CCG"]
[null,null,"NHS North East Hampshire and Farnham CCG"]
[null,null,"NHS North Hampshire CCG"]
[null,null,"NHS Portsmouth CCG"]
[null,null,"NHS South Eastern Hampshire CCG"]
[null,null,"NHS West Hampshire CCG"]
[null,null,"NHS Wokingham CCG"]
[null,"South West","NHS Kernow CCG"]
[null,null,"NHS North, East, West Devon CCG"]
[null,null,"NHS Somerset CCG"]
[null,null,"NHS South Devon and Torbay CCG"]
[null,"Wales & West Midlands","NHS Birmingham CrossCity CCG"]
[null,null,"NHS Coventry and Rugby CCG"]
[null,null,"NHS Fylde & Wyre CCG"]
[null,null,"NHS Gloucestershire CCG"]
[null,null,"NHS Greater Preston CCG"]
[null,null,"NHS Shropshire CCG"]
[null,null,"NHS South East Staffs and Seisdon and Peninsular CCG"]
[null,null,"NHS South Warwickshire CCG"]
[null,null,"NHS Stafford and Surrounds CCG"]
[null,null,"NHS Telford & Wrekin CCG"]
[null,null,"NHS West Cheshire CCG"]
[null,"Wessex","NHS Gloucestershire CCG"]
[null,null,"NHS South Gloucestershire CCG"]
[null,null,"NHS Wiltshire CCG"]

{"sheet":"Annex I","index":70,"n_rows":57,"n_cols":3,"rows_kept":57,"cut":false,"hidden":false,"merged":[[0,1,0,2],[6,1,7,1],[6,2,7,2],[8,1,9,1],[8,2,9,2],[16,1,17,1],[16,2,17,2],[10,1,11,1],[10,2,11,2],[12,1,13,1],[12,2,13,2],[14,1,15,1],[14,2,15,2],[22,1,23,1],[22,2,23,2],[24,1,25,1],[24,2,25,2],[18,1,19,1],[18,2,19,2],[20,1,21,1],[20,2,21,2],[30,1,31,1],[30,2,31,2],[32,1,33,1],[32,2,33,2],[26,1,27,1],[26,2,27,2],[28,1,29,1],[28,2,29,2],[38,1,39,1],[38,2,39,2],[40,1,41,1],[40,2,41,2],[34,1,35,1],[34,2,35,2],[36,1,37,1],[36,2,37,2],[46,1,47,1],[46,2,47,2],[48,1,49,1],[48,2,49,2],[42,1,43,1],[42,2,43,2],[44,1,45,1],[44,2,45,2],[54,1,55,1],[54,2,55,2],[56,1,57,1],[56,2,57,2],[50,1,51,1],[50,2,51,2],[52,1,53,1],[52,2,53,2]]}
[null,{"$f":"Sheet1!B73","v":"ANNEX I: MOD UK medical centres offering primary healthcare to entitled civilians"}]
[]
[null,"Defence Statistics (Health)"]
[null,"Return to contents"]
[]
[null,"Medical Centre","DPHC Region"]
[null,"Bovington","Wessex"]
[]
[null,"Bulford","Wessex"]
[]
[null,"Catterick","Northern England"]
[]
[null,"Cosford","Wales and West Midlands"]
[]
[null,"Cottesmore","East"]
[]
[null,"Larkhill","Wessex"]
[]
[null,"MRS Aldergrove","Scotland and Northern Ireland"]
[]
[null,"Pirbright","London and South East"]
[]
[null,"RAF Benson","Central"]
[]
[null,"RAF Brize Norton","Central"]
[]
[null,"RAF Coningsby","East"]
[]
[null,"RAF Cranwell","East"]
[]
[null,"RAF Halton","Central"]
[]
[null,"RAF Leeming","Northern England"]
[]
[null,"RAF Leuchars","Scotland and Northern Ireland"]
[]
[null,"RAF Linton-on-Ouse","Northern England"]
[]
[null,"RAF Marham","East"]
[]
[null,"RAF Northolt","London and South East"]
[]
[null,"RAF Shawbury","Wales and West Midlands"]
[]
[null,"RAF Valley","Wales and West Midlands"]
[]
[null,"RAF Wittering","East"]
[]
[null,"RM CTC Lympstone","South West"]
[]
[null,"Sandhurst","South"]
[]
[null,"Tidworth","Wessex"]
[]
[null,"Warminster","Wessex"]
[]
[null,"Winchester","South"]